Workbook

Sheet 今月バイオリズム
G1: 【TIT_バイオリズム】 | L1: =TODAY() -> 2021-02-18
B3: あなたの生年月日 | D3: 開始日
J5: 《開始日の状況》
J6: 身体(P)リズム | K6: =IFERROR(バイオリズム計算表!Y4&バイオリズム計算表!Z4,"") -> 
J7: =IFERROR(VLOOKUP(MID(K6,1,3),バイオリズム計算表!AJ2:AL4,2,FALSE)&" "&VLOOKUP(MID(K6,1,3),バイオリズム計算表!AJ2:AL4,3,FALSE),"") -> 
F9: 2021 | G9: 2 | H9: 18 | J9: 感情(S)リズム | K9: =IFERROR(バイオリズム計算表!AB4&バイオリズム計算表!AC4,"") -> 
J10: =IFERROR(VLOOKUP(MID(K9,1,3),バイオリズム計算表!AJ5:AL7,2,FALSE)&" "&VLOOKUP(MID(K9,1,3),バイオリズム計算表!AJ5:AL7,3,FALSE),"") -> 
J12: 知性(I)リズム | K12: =IFERROR(バイオリズム計算表!AE4&バイオリズム計算表!AF4,"") -> 
J13: =IFERROR(VLOOKUP(MID(K12,1,3),バイオリズム計算表!AJ8:AL10,2,FALSE)&" "&VLOOKUP(MID(K12,1,3),バイオリズム計算表!AJ8:AL10,3,FALSE),"") -> 
K15: 次回到来時期
K16: 要注意 | L16: 高調期ピーク | M16: 低調期ピーク
J17: 身体(P)リズム | K17: =IF(ISERROR(VLOOKUP(K$16,バイオリズム計算表!$Y$4:$AG$34,9,FALSE))=TRUE,"",VLOOKUP(K$16,バイオリズム計算表!$Y$4:$AG$34,9,FALSE)) ->  | L17: =IF(ISERROR(VLOOKUP(L$16,バイオリズム計算表!$Y$4:$AG$34,9,FALSE))=TRUE,"",VLOOKUP(L$16,バイオリズム計算表!$Y$4:$AG$34,9,FALSE)) ->  | M17: =IF(ISERROR(VLOOKUP(M$16,バイオリズム計算表!$Y$4:$AG$34,9,FALSE))=TRUE,"",VLOOKUP(M$16,バイオリズム計算表!$Y$4:$AG$34,9,FALSE)) -> 
J18: 感情(S)リズム | K18: =IF(ISERROR(VLOOKUP(K$16,バイオリズム計算表!$AB$4:$AG$34,6,FALSE))=TRUE,"",VLOOKUP(K$16,バイオリズム計算表!$AB$4:$AG$34,6,FALSE)) ->  | L18: =IF(ISERROR(VLOOKUP(L$16,バイオリズム計算表!$AB$4:$AG$34,6,FALSE))=TRUE,"",VLOOKUP(L$16,バイオリズム計算表!$AB$4:$AG$34,6,FALSE)) ->  | M18: =IF(ISERROR(VLOOKUP(M$16,バイオリズム計算表!$AB$4:$AG$34,6,FALSE))=TRUE,"",VLOOKUP(M$16,バイオリズム計算表!$AB$4:$AG$34,6,FALSE)) -> 
J19: 知性(I)リズム | K19: =IF(ISERROR(VLOOKUP(K$16,バイオリズム計算表!$AE$4:$AG$34,3,FALSE))=TRUE,"",VLOOKUP(K$16,バイオリズム計算表!$AE$4:$AG$34,3,FALSE)) ->  | L19: =IF(ISERROR(VLOOKUP(L$16,バイオリズム計算表!$AE$4:$AG$34,3,FALSE))=TRUE,"",VLOOKUP(L$16,バイオリズム計算表!$AE$4:$AG$34,3,FALSE)) ->  | M19: =IF(ISERROR(VLOOKUP(M$16,バイオリズム計算表!$AE$4:$AG$34,3,FALSE))=TRUE,"",VLOOKUP(M$16,バイオリズム計算表!$AE$4:$AG$34,3,FALSE)) -> 

Sheet 3ヶ月バイオリズム

Sheet バイオリズム計算表 (hidden)
B1: １年間バイオリズム | T1: １ヶ月バイオリズム
B2: サイクル日数 | C2: 23 | D2: 28 | E2: 33 | F2: 身体リズム状況 | I2: 感情リズム状況 | L2: 知性リズム状況 | O2: 総合評価状況 | T2: サイクル日数 | U2: 23 | V2: 28 | W2: 33 | X2: 身体リズム状況 | AA2: 感情リズム状況 | AD2: 知性リズム状況 | AI2: 身体 | AJ2: 高調期 | AK2: 体力好調 | AL2: 仕事、旅行、スポーツ、強化訓練に適する。但し体力を過信した暴走に注意。回復力がある為、外科手術等に適す。
B3: 日付 | C3: 身体(P) | D3: 感情(S) | E3: 知性(I) | T3: 日付 | U3: 身体(P) | V3: 感情(S) | W3: 知性(I) | AJ3: 要注意 | AK3: 体調不安定 | AL3: 発熱 ・発作・カゼ・頭痛・病状の悪化・悪酔い・能力の低下が起きやすい。運転には要注意。
A4: =B4 -> 1900-01-01 | B4: =DATE(YEAR(今月バイオリズム!D4),1,1) -> 1900-01-01 | C4: =SIN(2*PI()*(MOD(($B4-今月バイオリズム!$B$4),C$2))/C$2) -> 0.2697967712 | D4: =SIN(2*PI()*(MOD(($B4-今月バイオリズム!$B$4),D$2))/D$2) -> 0.222520934 | E4: =SIN(2*PI()*(MOD(($B4-今月バイオリズム!$B$4),E$2))/E$2) -> 0.1892512444 | G4: =IF(C4>0,"高調期（活動期）","低調期（充電期）") -> 高調期（活動期） | J4: =IF(D4>0,"高調期（活動期）","低調期（充電期）") -> 高調期（活動期） | M4: =IF(E4>0,"高調期（活動期）","低調期（充電期）") -> 高調期（活動期） | O4: =SUM(C4:E4) -> 0.6815689495 | Q4: =IF(O4>0,"高調期（活動期）","低調期（充電期）") -> 高調期（活動期） | S4: =T4 ->  | T4: =IF(今月バイオリズム!D4<>"",今月バイオリズム!D4,今月バイオリズム!#REF!) ->  | U4: =SIN(2*PI()*(MOD(($T4-今月バイオリズム!$B$4),U$2))/U$2) ->  | V4: =SIN(2*PI()*(MOD(($T4-今月バイオリズム!$B$4),V$2))/V$2) ->  | W4: =SIN(2*PI()*(MOD(($T4-今月バイオリズム!$B$4),W$2))/W$2) ->  | X4: =VLOOKUP($T4,$B$4:$O$368,5,FALSE) ->  | Y4: =VLOOKUP($T4,$B$4:$O$368,6,FALSE) ->  | Z4: =VLOOKUP($T4,$B$4:$O$368,7,FALSE) ->  | AA4: =VLOOKUP($T4,$B$4:$O$368,8,FALSE) ->  | AB4: =VLOOKUP($T4,$B$4:$O$368,9,FALSE) ->  | AC4: =VLOOKUP($T4,$B$4:$O$368,10,FALSE) ->  | AD4: =VLOOKUP($T4,$B$4:$O$368,11,FALSE) ->  | AE4: =VLOOKUP($T4,$B$4:$O$368,12,FALSE) ->  | AF4: =VLOOKUP($T4,$B$4:$O$368,13,FALSE) ->  | AG4: =T4 ->  | AJ4: 低調期 | AK4: 体力低調 | AL4: 疲れやすく、過労の症状が出やすい時期。暴飲、暴食は慎み、体力の蓄積に努めること。
A5: =B5 -> 1900-01-02 | B5: =B4+1 -> 1900-01-02 | C5: =SIN(2*PI()*(MOD(($B5-今月バイオリズム!$B$4),C$2))/C$2) -> 0.51958395 | D5: =SIN(2*PI()*(MOD(($B5-今月バイオリズム!$B$4),D$2))/D$2) -> 0.4338837391 | E5: =SIN(2*PI()*(MOD(($B5-今月バイオリズム!$B$4),E$2))/E$2) -> 0.3716624557 | F5: =IF(C5>0,IF(C4<C5,IF(C6<C5,"▽","↑"),"↓"),IF(C4>C5,IF(C6>C5,"▲","↓"),"↑")) -> ↑ | G5: =IF(OR(AND(C4<=0,C5>=0),AND(C4>=0,C5<=0)),"要注意",IF(C5>0,IF(F5="▽","高調期ピーク","高調期（活動期）"),IF(F5="▲","低調期ピーク","低調期（充電期）"))) -> 高調期（活動期） | H5: =IF(G5="要注意","",IF(F5="↑","上昇中","下降中")) -> 上昇中 | I5: =IF(D5>0,IF(D4<D5,IF(D6<D5,"▽","↑"),"↓"),IF(D4>D5,IF(D6>D5,"▲","↓"),"↑")) -> ↑ | J5: =IF(OR(AND(D4<=0,D5>=0),AND(D4>=0,D5<=0)),"要注意",IF(D5>0,IF(I5="▽","高調期ピーク","高調期（活動期）"),IF(I5="▲","低調期ピーク","低調期（充電期）"))) -> 高調期（活動期） | K5: =IF(J5="要注意","",IF(I5="↑","上昇中","下降中")) -> 上昇中 | L5: =IF(E5>0,IF(E4<E5,IF(E6<E5,"▽","↑"),"↓"),IF(E4>E5,IF(E6>E5,"▲","↓"),"↑")) -> ↑ | M5: =IF(OR(AND(E4<=0,E5>=0),AND(E4>=0,E5<=0)),"要注意",IF(E5>0,IF(L5="▽","高調期ピーク","高調期（活動期）"),IF(L5="▲","低調期ピーク","低調期（充電期）"))) -> 高調期（活動期） | N5: =IF(M5="要注意","",IF(L5="↑","上昇中","下降中")) -> 上昇中 | O5: =SUM(C5:E5) -> 1.325130145 | P5: =IF(O5>0,IF(O4<O5,IF(O6<O5,"▽","↑"),"↓"),IF(O4>O5,IF(O6>O5,"▲","↓"),"↑")) -> ↑ | Q5: =IF(OR(AND(O4<=0,O5>=0),AND(O4>=0,O5<=0)),"要注意",IF(O5>0,IF(P5="▽","高調期ピーク","高調期（活動期）"),IF(P5="▲","低調期ピーク","低調期（充電期）"))) -> 高調期（活動期） | R5: =IF(Q5="要注意","",IF(P5="↑","上昇中","下降中")) -> 上昇中 | S5: =T5 ->  | T5: =T4+1 ->  | U5: =SIN(2*PI()*(MOD(($T5-今月バイオリズム!$B$4),U$2))/U$2) ->  | V5: =SIN(2*PI()*(MOD(($T5-今月バイオリズム!$B$4),V$2))/V$2) ->  | W5: =SIN(2*PI()*(MOD(($T5-今月バイオリズム!$B$4),W$2))/W$2) ->  | X5: =IF(U5>0,IF(U4<U5,IF(U6<U5,"▽","↑"),"↓"),IF(U4>U5,IF(U6>U5,"▲","↓"),"↑")) ->  | Y5: =IF(OR(AND(U4<=0,U5>=0),AND(U4>=0,U5<=0)),"要注意",IF(U5>0,IF(X5="▽","高調期ピーク","高調期（活動期）"),IF(X5="▲","低調期ピーク","低調期（充電期）"))) ->  | Z5: =IF(Y5="要注意","",IF(X5="↑","上昇中","下降中")) ->  | AA5: =IF(V5>0,IF(V4<V5,IF(V6<V5,"▽","↑"),"↓"),IF(V4>V5,IF(V6>V5,"▲","↓"),"↑")) ->  | AB5: =IF(OR(AND(V4<=0,V5>=0),AND(V4>=0,V5<=0)),"要注意",IF(V5>0,IF(AA5="▽","高調期ピーク","高調期（活動期）"),IF(AA5="▲","低調期ピーク","低調期（充電期）"))) ->  | AC5: =IF(AB5="要注意","",IF(AA5="↑","上昇中","下降中")) ->  | AD5: =IF(W5>0,IF(W4<W5,IF(W6<W5,"▽","↑"),"↓"),IF(W4>W5,IF(W6>W5,"▲","↓"),"↑")) ->  | AE5: =IF(OR(AND(W4<=0,W5>=0),AND(W4>=0,W5<=0)),"要注意",IF(W5>0,IF(AD5="▽","高調期ピーク","高調期（活動期）"),IF(AD5="▲","低調期ピーク","低調期（充電期）"))) ->  | AF5: =IF(AE5="要注意","",IF(AD5="↑","上昇中","下降中")) ->  | AG5: =T5 ->  | AI5: 感情 | AJ5: 高調期 | AK5: 気力充実 | AL5: 気力に溢れ、積極的に仕事を片付けることが可能。共同作業、求愛、デートまた、麻雀やパチンコなどのギャンブルにも好調。
A6: 1900-01-03 | B6: =B5+1 -> 1900-01-03 | C6: =SIN(2*PI()*(MOD(($B6-今月バイオリズム!$B$4),C$2))/C$2) -> 0.7308359643 | D6: =SIN(2*PI()*(MOD(($B6-今月バイオリズム!$B$4),D$2))/D$2) -> 0.6234898019 | E6: =SIN(2*PI()*(MOD(($B6-今月バイオリズム!$B$4),E$2))/E$2) -> 0.5406408175 | F6: =IF(C6>0,IF(C5<C6,IF(C7<C6,"▽","↑"),"↓"),IF(C5>C6,IF(C7>C6,"▲","↓"),"↑")) -> ↑ | G6: =IF(OR(AND(C5<=0,C6>=0),AND(C5>=0,C6<=0)),"要注意",IF(C6>0,IF(F6="▽","高調期ピーク","高調期（活動期）"),IF(F6="▲","低調期ピーク","低調期（充電期）"))) -> 高調期（活動期） | H6: =IF(G6="要注意","",IF(F6="↑","上昇中","下降中")) -> 上昇中 | I6: ↑ | J6: 高調期（活動期） | K6: =IF(J6="要注意","",IF(I6="↑","上昇中","下降中")) -> 上昇中 | L6: ↑ | M6: 高調期（活動期） | N6: =IF(M6="要注意","",IF(L6="↑","上昇中","下降中")) -> 上昇中 | O6: 1.894966584 | P6: ↑ | Q6: =IF(OR(AND(O5<=0,O6>=0),AND(O5>=0,O6<=0)),"要注意",IF(O6>0,IF(P6="▽","高調期ピーク","高調期（活動期）"),IF(P6="▲","低調期ピーク","低調期（充電期）"))) -> 高調期（活動期） | R6: =IF(Q6="要注意","",IF(P6="↑","上昇中","下降中")) -> 上昇中 | T6: =T5+1 ->  | U6: =SIN(2*PI()*(MOD(($T6-今月バイオリズム!$B$4),U$2))/U$2) ->  | V6: =SIN(2*PI()*(MOD(($T6-今月バイオリズム!$B$4),V$2))/V$2) ->  | W6: =SIN(2*PI()*(MOD(($T6-今月バイオリズム!$B$4),W$2))/W$2) ->  | X6: =IF(U6>0,IF(U5<U6,IF(U7<U6,"▽","↑"),"↓"),IF(U5>U6,IF(U7>U6,"▲","↓"),"↑")) ->  | Z6: =IF(Y6="要注意","",IF(X6="↑","上昇中","下降中")) ->  | AC6: =IF(AB6="要注意","",IF(AA6="↑","上昇中","下降中")) ->  | AF6: =IF(AE6="要注意","",IF(AD6="↑","上昇中","下降中")) ->  | AJ6: 要注意 | AK6: 情緒不安定 | AL6: 感情や神経が動揺しやすい。立腹・失言・口論、病状悪化、反応低下あり。勝負事には向かない。運転にも注意。
A7: 1900-01-04 | B7: 1900-01-04 | C7: =SIN(2*PI()*(MOD(($B7-今月バイオリズム!$B$4),C$2))/C$2) -> 0.8878852184 | D7: =SIN(2*PI()*(MOD(($B7-今月バイオリズム!$B$4),D$2))/D$2) -> 0.7818314825 | E7: =SIN(2*PI()*(MOD(($B7-今月バイオリズム!$B$4),E$2))/E$2) -> 0.6900790115 | F7: ↑ | G7: 高調期（活動期） | H7: 上昇中 | I7: ↑ | J7: 高調期（活動期） | K7: 上昇中 | L7: ↑ | M7: 高調期（活動期） | N7: 上昇中 | O7: 2.359795712 | P7: ↑ | Q7: =IF(OR(AND(O6<=0,O7>=0),AND(O6>=0,O7<=0)),"要注意",IF(O7>0,IF(P7="▽","高調期ピーク","高調期（活動期）"),IF(P7="▲","低調期ピーク","低調期（充電期）"))) -> 高調期（活動期） | R7: 上昇中 | U7: =SIN(2*PI()*(MOD(($T7-今月バイオリズム!$B$4),U$2))/U$2) ->  | V7: =SIN(2*PI()*(MOD(($T7-今月バイオリズム!$B$4),V$2))/V$2) ->  | W7: =SIN(2*PI()*(MOD(($T7-今月バイオリズム!$B$4),W$2))/W$2) ->  | AJ7: 低調期 | AK7: 気力沈滞 | AL7: すべての事柄に対して、消極的な気持になりがち。忍耐や神経を要する仕事は避けること。対人関係や勝負事も向かない。
A8: 1900-01-05 | B8: 1900-01-05 | C8: =SIN(2*PI()*(MOD(($B8-今月バイオリズム!$B$4),C$2))/C$2) -> 0.9790840877 | D8: =SIN(2*PI()*(MOD(($B8-今月バイオリズム!$B$4),D$2))/D$2) -> 0.9009688679 | E8: =SIN(2*PI()*(MOD(($B8-今月バイオリズム!$B$4),E$2))/E$2) -> 0.8145759521 | F8: ↑ | G8: 高調期（活動期） | H8: 上昇中 | I8: ↑ | J8: 高調期（活動期） | K8: 上昇中 | L8: ↑ | M8: 高調期（活動期） | N8: 上昇中 | O8: 2.694628908 | P8: ↑ | Q8: 高調期（活動期） | R8: 上昇中 | U8: =SIN(2*PI()*(MOD(($T8-今月バイオリズム!$B$4),U$2))/U$2) ->  | V8: =SIN(2*PI()*(MOD(($T8-今月バイオリズム!$B$4),V$2))/V$2) ->  | W8: =SIN(2*PI()*(MOD(($T8-今月バイオリズム!$B$4),W$2))/W$2) ->  | AI8: 知性 | AJ8: 高調期 | AK8: 知力活動 | AL8: 頭の回転がよく、知的作業には最適。計画の立案や、検討・決定をしたり、不得意・難解な科目の勉強や暗記をするのに最適。
A9: 1900-01-06 | B9: 1900-01-06 | C9: =SIN(2*PI()*(MOD(($B9-今月バイオリズム!$B$4),C$2))/C$2) -> 0.9976687692 | D9: =SIN(2*PI()*(MOD(($B9-今月バイオリズム!$B$4),D$2))/D$2) -> 0.9749279122 | E9: =SIN(2*PI()*(MOD(($B9-今月バイオリズム!$B$4),E$2))/E$2) -> 0.9096319954 | F9: ▽ | G9: 高調期ピーク | H9: 下降中 | I9: ↑ | J9: 高調期（活動期） | K9: 上昇中 | L9: ↑ | M9: 高調期（活動期） | N9: 上昇中 | O9: 2.882228677 | P9: ↑ | Q9: 高調期（活動期） | R9: 上昇中 | U9: =SIN(2*PI()*(MOD(($T9-今月バイオリズム!$B$4),U$2))/U$2) ->  | V9: =SIN(2*PI()*(MOD(($T9-今月バイオリズム!$B$4),V$2))/V$2) ->  | W9: =SIN(2*PI()*(MOD(($T9-今月バイオリズム!$B$4),W$2))/W$2) ->  | AJ9: 要注意 | AK9: 知力不安定 | AL9: 注意力、集中力の欠如により、大小問わずにミスやポカを頻発しそう。重要な決定事項や契約のサインは避けること。運転注意。
A10: 1900-01-07 | B10: 1900-01-07 | C10: =SIN(2*PI()*(MOD(($B10-今月バイオリズム!$B$4),C$2))/C$2) -> 0.9422609221 | D10: =SIN(2*PI()*(MOD(($B10-今月バイオリズム!$B$4),D$2))/D$2) -> 1 | E10: =SIN(2*PI()*(MOD(($B10-今月バイオリズム!$B$4),E$2))/E$2) -> 0.9718115683 | F10: ↓ | G10: 高調期（活動期） | H10: 下降中 | I10: ▽ | J10: 高調期ピーク | K10: 下降中 | L10: ↑ | M10: 高調期（活動期） | N10: 上昇中 | O10: 2.91407249 | P10: ▽ | Q10: 高調期ピーク | R10: 下降中 | U10: =SIN(2*PI()*(MOD(($T10-今月バイオリズム!$B$4),U$2))/U$2) ->  | V10: =SIN(2*PI()*(MOD(($T10-今月バイオリズム!$B$4),V$2))/V$2) ->  | W10: =SIN(2*PI()*(MOD(($T10-今月バイオリズム!$B$4),W$2))/W$2) ->  | AJ10: 低調期 | AK10: 知的減衰 | AL10: 知的活動には不向き。頭を酷使せず、データ整理などの単純作業が良。
A11: 1900-01-08 | B11: 1900-01-08 | C11: =SIN(2*PI()*(MOD(($B11-今月バイオリズム!$B$4),C$2))/C$2) -> 0.816969893 | D11: =SIN(2*PI()*(MOD(($B11-今月バイオリズム!$B$4),D$2))/D$2) -> 0.9749279122 | E11: =SIN(2*PI()*(MOD(($B11-今月バイオリズム!$B$4),E$2))/E$2) -> 0.9988673392 | F11: =IF(C11>0,IF(C10<C11,IF(C12<C11,"▽","↑"),"↓"),IF(C10>C11,IF(C12>C11,"▲","↓"),"↑")) -> ↓ | G11: 高調期（活動期） | H11: =IF(G11="要注意","",IF(F11="↑","上昇中","下降中")) -> 下降中 | I11: ↓ | J11: 高調期（活動期） | K11: 下降中 | L11: ▽ | M11: 高調期ピーク | N11: 下降中 | O11: 2.790765144 | P11: ↓ | Q11: 高調期（活動期） | R11: 下降中 | U11: =SIN(2*PI()*(MOD(($T11-今月バイオリズム!$B$4),U$2))/U$2) ->  | V11: =SIN(2*PI()*(MOD(($T11-今月バイオリズム!$B$4),V$2))/V$2) ->  | W11: =SIN(2*PI()*(MOD(($T11-今月バイオリズム!$B$4),W$2))/W$2) ->  | AB11: =IF(OR(AND(V10<=0,V11>=0),AND(V10>=0,V11<=0)),"要注意",IF(V11>0,IF(AA11="▽","高調期ピーク","高調期（活動期）"),IF(AA11="▲","低調期ピーク","低調期（充電期）"))) -> 
A12: 1900-01-09 | B12: 1900-01-09 | C12: =SIN(2*PI()*(MOD(($B12-今月バイオリズム!$B$4),C$2))/C$2) -> 0.6310879443 | D12: =SIN(2*PI()*(MOD(($B12-今月バイオリズム!$B$4),D$2))/D$2) -> 0.9009688679 | E12: =SIN(2*PI()*(MOD(($B12-今月バイオリズム!$B$4),E$2))/E$2) -> 0.9898214419 | F12: ↓ | G12: 高調期（活動期） | H12: 下降中 | I12: ↓ | J12: 高調期（活動期） | K12: 下降中 | L12: ↓ | M12: 高調期（活動期） | N12: 下降中 | O12: 2.521878254 | P12: ↓ | Q12: 高調期（活動期） | R12: 下降中 | U12: =SIN(2*PI()*(MOD(($T12-今月バイオリズム!$B$4),U$2))/U$2) ->  | V12: =SIN(2*PI()*(MOD(($T12-今月バイオリズム!$B$4),V$2))/V$2) ->  | W12: =SIN(2*PI()*(MOD(($T12-今月バイオリズム!$B$4),W$2))/W$2) ->  | AB12: =IF(OR(AND(V11<=0,V12>=0),AND(V11>=0,V12<=0)),"要注意",IF(V12>0,IF(AA12="▽","高調期ピーク","高調期（活動期）"),IF(AA12="▲","低調期ピーク","低調期（充電期）"))) -> 
A13: 1900-01-10 | B13: 1900-01-10 | C13: =SIN(2*PI()*(MOD(($B13-今月バイオリズム!$B$4),C$2))/C$2) -> 0.3984010898 | D13: =SIN(2*PI()*(MOD(($B13-今月バイオリズム!$B$4),D$2))/D$2) -> 0.7818314825 | E13: =SIN(2*PI()*(MOD(($B13-今月バイオリズム!$B$4),E$2))/E$2) -> 0.9450008187 | F13: ↓ | G13: 高調期（活動期） | H13: 下降中 | I13: ↓ | J13: 高調期（活動期） | K13: 下降中 | L13: ↓ | M13: 高調期（活動期） | N13: 下降中 | O13: 2.125233391 | P13: ↓ | Q13: 高調期（活動期） | R13: 下降中 | U13: =SIN(2*PI()*(MOD(($T13-今月バイオリズム!$B$4),U$2))/U$2) ->  | V13: =SIN(2*PI()*(MOD(($T13-今月バイオリズム!$B$4),V$2))/V$2) ->  | W13: =SIN(2*PI()*(MOD(($T13-今月バイオリズム!$B$4),W$2))/W$2) -> 
A14: 1900-01-11 | B14: 1900-01-11 | C14: =SIN(2*PI()*(MOD(($B14-今月バイオリズム!$B$4),C$2))/C$2) -> 0.1361666491 | D14: =SIN(2*PI()*(MOD(($B14-今月バイオリズム!$B$4),D$2))/D$2) -> 0.6234898019 | E14: =SIN(2*PI()*(MOD(($B14-今月バイオリズム!$B$4),E$2))/E$2) -> 0.8660254038 | F14: ↓ | G14: 高調期（活動期） | H14: 下降中 | I14: ↓ | J14: 高調期（活動期） | K14: 下降中 | L14: ↓ | M14: 高調期（活動期） | N14: 下降中 | O14: 1.625681855 | P14: ↓ | Q14: 高調期（活動期） | R14: 下降中 | U14: =SIN(2*PI()*(MOD(($T14-今月バイオリズム!$B$4),U$2))/U$2) ->  | V14: =SIN(2*PI()*(MOD(($T14-今月バイオリズム!$B$4),V$2))/V$2) ->  | W14: =SIN(2*PI()*(MOD(($T14-今月バイオリズム!$B$4),W$2))/W$2) -> 
A15: 1900-01-12 | B15: 1900-01-12 | C15: =SIN(2*PI()*(MOD(($B15-今月バイオリズム!$B$4),C$2))/C$2) -> -0.1361666491 | D15: =SIN(2*PI()*(MOD(($B15-今月バイオリズム!$B$4),D$2))/D$2) -> 0.4338837391 | E15: =SIN(2*PI()*(MOD(($B15-今月バイオリズム!$B$4),E$2))/E$2) -> 0.7557495744 | F15: ↓ | G15: 要注意 | I15: ↓ | J15: 高調期（活動期） | K15: 下降中 | L15: ↓ | M15: 高調期（活動期） | N15: 下降中 | O15: 1.053466664 | P15: ↓ | Q15: 高調期（活動期） | R15: 下降中 | U15: =SIN(2*PI()*(MOD(($T15-今月バイオリズム!$B$4),U$2))/U$2) ->  | V15: =SIN(2*PI()*(MOD(($T15-今月バイオリズム!$B$4),V$2))/V$2) ->  | W15: =SIN(2*PI()*(MOD(($T15-今月バイオリズム!$B$4),W$2))/W$2) -> 
A16: 1900-01-13 | B16: 1900-01-13 | C16: =SIN(2*PI()*(MOD(($B16-今月バイオリズム!$B$4),C$2))/C$2) -> -0.3984010898 | D16: =SIN(2*PI()*(MOD(($B16-今月バイオリズム!$B$4),D$2))/D$2) -> 0.222520934 | E16: =SIN(2*PI()*(MOD(($B16-今月バイオリズム!$B$4),E$2))/E$2) -> 0.6181589862 | F16: ↓ | G16: 低調期（充電期） | H16: 下降中 | I16: ↓ | J16: 高調期（活動期） | K16: 下降中 | L16: ↓ | M16: 高調期（活動期） | N16: 下降中 | O16: 0.4422788303 | P16: ↓ | Q16: 高調期（活動期） | R16: 下降中 | U16: =SIN(2*PI()*(MOD(($T16-今月バイオリズム!$B$4),U$2))/U$2) ->  | V16: =SIN(2*PI()*(MOD(($T16-今月バイオリズム!$B$4),V$2))/V$2) ->  | W16: =SIN(2*PI()*(MOD(($T16-今月バイオリズム!$B$4),W$2))/W$2) -> 
A17: 1900-01-14 | B17: 1900-01-14 | C17: =SIN(2*PI()*(MOD(($B17-今月バイオリズム!$B$4),C$2))/C$2) -> -0.6310879443 | D17: =SIN(2*PI()*(MOD(($B17-今月バイオリズム!$B$4),D$2))/D$2) -> 1.225148455e-16 | E17: =SIN(2*PI()*(MOD(($B17-今月バイオリズム!$B$4),E$2))/E$2) -> 0.4582265217 | F17: ↓ | G17: 低調期（充電期） | H17: 下降中 | I17: ↓ | J17: 高調期（活動期） | K17: 下降中 | L17: ↓ | M17: 高調期（活動期） | N17: 下降中 | O17: -0.1728614226 | P17: ↓ | Q17: 要注意 | U17: =SIN(2*PI()*(MOD(($T17-今月バイオリズム!$B$4),U$2))/U$2) ->  | V17: =SIN(2*PI()*(MOD(($T17-今月バイオリズム!$B$4),V$2))/V$2) ->  | W17: =SIN(2*PI()*(MOD(($T17-今月バイオリズム!$B$4),W$2))/W$2) -> 
A18: 1900-01-15 | B18: 1900-01-15 | C18: =SIN(2*PI()*(MOD(($B18-今月バイオリズム!$B$4),C$2))/C$2) -> -0.816969893 | D18: =SIN(2*PI()*(MOD(($B18-今月バイオリズム!$B$4),D$2))/D$2) -> -0.222520934 | E18: =SIN(2*PI()*(MOD(($B18-今月バイオリズム!$B$4),E$2))/E$2) -> 0.2817325568 | F18: ↓ | G18: 低調期（充電期） | H18: 下降中 | I18: ↓ | J18: 要注意 | L18: ↓ | M18: 高調期（活動期） | N18: 下降中 | O18: -0.7577582701 | P18: ↓ | Q18: 低調期（充電期） | R18: 下降中 | U18: =SIN(2*PI()*(MOD(($T18-今月バイオリズム!$B$4),U$2))/U$2) ->  | V18: =SIN(2*PI()*(MOD(($T18-今月バイオリズム!$B$4),V$2))/V$2) ->  | W18: =SIN(2*PI()*(MOD(($T18-今月バイオリズム!$B$4),W$2))/W$2) -> 
A19: 1900-01-16 | B19: 1900-01-16 | C19: =SIN(2*PI()*(MOD(($B19-今月バイオリズム!$B$4),C$2))/C$2) -> -0.9422609221 | D19: =SIN(2*PI()*(MOD(($B19-今月バイオリズム!$B$4),D$2))/D$2) -> -0.4338837391 | E19: =SIN(2*PI()*(MOD(($B19-今月バイオリズム!$B$4),E$2))/E$2) -> 0.0950560433 | F19: ↓ | G19: 低調期（充電期） | H19: 下降中 | I19: ↓ | J19: 低調期（充電期） | K19: 下降中 | L19: ↓ | M19: 高調期（活動期） | N19: 下降中 | O19: -1.281088618 | P19: ↓ | Q19: 低調期（充電期） | R19: 下降中 | U19: =SIN(2*PI()*(MOD(($T19-今月バイオリズム!$B$4),U$2))/U$2) ->  | V19: =SIN(2*PI()*(MOD(($T19-今月バイオリズム!$B$4),V$2))/V$2) ->  | W19: =SIN(2*PI()*(MOD(($T19-今月バイオリズム!$B$4),W$2))/W$2) -> 
A20: 1900-01-17 | B20: 1900-01-17 | C20: =SIN(2*PI()*(MOD(($B20-今月バイオリズム!$B$4),C$2))/C$2) -> -0.9976687692 | D20: =SIN(2*PI()*(MOD(($B20-今月バイオリズム!$B$4),D$2))/D$2) -> -0.6234898019 | E20: =SIN(2*PI()*(MOD(($B20-今月バイオリズム!$B$4),E$2))/E$2) -> -0.0950560433 | F20: ▲ | G20: 低調期ピーク | H20: 下降中 | I20: ↓ | J20: 低調期（充電期） | K20: 下降中 | L20: ↓ | M20: 要注意 | O20: -1.716214614 | P20: ↓ | Q20: 低調期（充電期） | R20: 下降中 | U20: =SIN(2*PI()*(MOD(($T20-今月バイオリズム!$B$4),U$2))/U$2) ->  | V20: =SIN(2*PI()*(MOD(($T20-今月バイオリズム!$B$4),V$2))/V$2) ->  | W20: =SIN(2*PI()*(MOD(($T20-今月バイオリズム!$B$4),W$2))/W$2) -> 
A21: 1900-01-18 | B21: 1900-01-18 | C21: =SIN(2*PI()*(MOD(($B21-今月バイオリズム!$B$4),C$2))/C$2) -> -0.9790840877 | D21: =SIN(2*PI()*(MOD(($B21-今月バイオリズム!$B$4),D$2))/D$2) -> -0.7818314825 | E21: =SIN(2*PI()*(MOD(($B21-今月バイオリズム!$B$4),E$2))/E$2) -> -0.2817325568 | F21: ↑ | G21: 低調期（充電期） | H21: 上昇中 | I21: ↓ | J21: 低調期（充電期） | K21: 下降中 | L21: ↓ | M21: 低調期（充電期） | N21: 下降中 | O21: -2.042648127 | P21: ↓ | Q21: 低調期（充電期） | R21: 下降中 | U21: =SIN(2*PI()*(MOD(($T21-今月バイオリズム!$B$4),U$2))/U$2) ->  | V21: =SIN(2*PI()*(MOD(($T21-今月バイオリズム!$B$4),V$2))/V$2) ->  | W21: =SIN(2*PI()*(MOD(($T21-今月バイオリズム!$B$4),W$2))/W$2) -> 
A22: 1900-01-19 | B22: 1900-01-19 | C22: =SIN(2*PI()*(MOD(($B22-今月バイオリズム!$B$4),C$2))/C$2) -> -0.8878852184 | D22: =SIN(2*PI()*(MOD(($B22-今月バイオリズム!$B$4),D$2))/D$2) -> -0.9009688679 | E22: =SIN(2*PI()*(MOD(($B22-今月バイオリズム!$B$4),E$2))/E$2) -> -0.4582265217 | F22: ↑ | G22: 低調期（充電期） | H22: 上昇中 | I22: ↓ | J22: 低調期（充電期） | K22: 下降中 | L22: ↓ | M22: 低調期（充電期） | N22: 下降中 | O22: -2.247080608 | P22: ↓ | Q22: 低調期（充電期） | R22: 下降中 | U22: =SIN(2*PI()*(MOD(($T22-今月バイオリズム!$B$4),U$2))/U$2) ->  | V22: =SIN(2*PI()*(MOD(($T22-今月バイオリズム!$B$4),V$2))/V$2) ->  | W22: =SIN(2*PI()*(MOD(($T22-今月バイオリズム!$B$4),W$2))/W$2) -> 
A23: 1900-01-20 | B23: 1900-01-20 | C23: =SIN(2*PI()*(MOD(($B23-今月バイオリズム!$B$4),C$2))/C$2) -> -0.7308359643 | D23: =SIN(2*PI()*(MOD(($B23-今月バイオリズム!$B$4),D$2))/D$2) -> -0.9749279122 | E23: =SIN(2*PI()*(MOD(($B23-今月バイオリズム!$B$4),E$2))/E$2) -> -0.6181589862 | F23: ↑ | G23: 低調期（充電期） | H23: 上昇中 | I23: ↓ | J23: 低調期（充電期） | K23: 下降中 | L23: ↓ | M23: 低調期（充電期） | N23: 下降中 | O23: -2.323922863 | P23: ▲ | Q23: 低調期ピーク | R23: 下降中 | U23: =SIN(2*PI()*(MOD(($T23-今月バイオリズム!$B$4),U$2))/U$2) ->  | V23: =SIN(2*PI()*(MOD(($T23-今月バイオリズム!$B$4),V$2))/V$2) ->  | W23: =SIN(2*PI()*(MOD(($T23-今月バイオリズム!$B$4),W$2))/W$2) -> 
A24: 1900-01-21 | B24: 1900-01-21 | C24: =SIN(2*PI()*(MOD(($B24-今月バイオリズム!$B$4),C$2))/C$2) -> -0.51958395 | D24: =SIN(2*PI()*(MOD(($B24-今月バイオリズム!$B$4),D$2))/D$2) -> -1 | E24: =SIN(2*PI()*(MOD(($B24-今月バイオリズム!$B$4),E$2))/E$2) -> -0.7557495744 | F24: ↑ | G24: 低調期（充電期） | H24: 上昇中 | I24: ▲ | J24: 低調期ピーク | K24: 下降中 | L24: ↓ | M24: 低調期（充電期） | N24: 下降中 | O24: -2.275333524 | P24: ↑ | Q24: 低調期（充電期） | R24: 上昇中 | U24: =SIN(2*PI()*(MOD(($T24-今月バイオリズム!$B$4),U$2))/U$2) ->  | V24: =SIN(2*PI()*(MOD(($T24-今月バイオリズム!$B$4),V$2))/V$2) ->  | W24: =SIN(2*PI()*(MOD(($T24-今月バイオリズム!$B$4),W$2))/W$2) -> 
A25: 1900-01-22 | B25: 1900-01-22 | C25: =SIN(2*PI()*(MOD(($B25-今月バイオリズム!$B$4),C$2))/C$2) -> -0.2697967712 | D25: =SIN(2*PI()*(MOD(($B25-今月バイオリズム!$B$4),D$2))/D$2) -> -0.9749279122 | E25: =SIN(2*PI()*(MOD(($B25-今月バイオリズム!$B$4),E$2))/E$2) -> -0.8660254038 | F25: ↑ | G25: 低調期（充電期） | H25: 上昇中 | I25: ↑ | J25: 低調期（充電期） | K25: 上昇中 | L25: ↓ | M25: 低調期（充電期） | N25: 下降中 | O25: -2.110750087 | P25: ↑ | Q25: 低調期（充電期） | R25: 上昇中 | U25: =SIN(2*PI()*(MOD(($T25-今月バイオリズム!$B$4),U$2))/U$2) ->  | V25: =SIN(2*PI()*(MOD(($T25-今月バイオリズム!$B$4),V$2))/V$2) ->  | W25: =SIN(2*PI()*(MOD(($T25-今月バイオリズム!$B$4),W$2))/W$2) -> 
A26: 1900-01-23 | B26: 1900-01-23 | C26: =SIN(2*PI()*(MOD(($B26-今月バイオリズム!$B$4),C$2))/C$2) -> 0 | D26: =SIN(2*PI()*(MOD(($B26-今月バイオリズム!$B$4),D$2))/D$2) -> -0.9009688679 | E26: =SIN(2*PI()*(MOD(($B26-今月バイオリズム!$B$4),E$2))/E$2) -> -0.9450008187 | F26: ↑ | G26: 要注意 | I26: ↑ | J26: 低調期（充電期） | K26: 上昇中 | L26: ↓ | M26: 低調期（充電期） | N26: 下降中 | O26: -1.845969687 | P26: ↑ | Q26: 低調期（充電期） | R26: 上昇中 | U26: =SIN(2*PI()*(MOD(($T26-今月バイオリズム!$B$4),U$2))/U$2) ->  | V26: =SIN(2*PI()*(MOD(($T26-今月バイオリズム!$B$4),V$2))/V$2) ->  | W26: =SIN(2*PI()*(MOD(($T26-今月バイオリズム!$B$4),W$2))/W$2) -> 
A27: 1900-01-24 | B27: 1900-01-24 | C27: =SIN(2*PI()*(MOD(($B27-今月バイオリズム!$B$4),C$2))/C$2) -> 0.2697967712 | D27: =SIN(2*PI()*(MOD(($B27-今月バイオリズム!$B$4),D$2))/D$2) -> -0.7818314825 | E27: =SIN(2*PI()*(MOD(($B27-今月バイオリズム!$B$4),E$2))/E$2) -> -0.9898214419 | F27: ↑ | G27: 要注意 | I27: ↑ | J27: 低調期（充電期） | K27: 上昇中 | L27: ↓ | M27: 低調期（充電期） | N27: 下降中 | O27: -1.501856153 | P27: ↑ | Q27: 低調期（充電期） | R27: 上昇中 | U27: =SIN(2*PI()*(MOD(($T27-今月バイオリズム!$B$4),U$2))/U$2) ->  | V27: =SIN(2*PI()*(MOD(($T27-今月バイオリズム!$B$4),V$2))/V$2) ->  | W27: =SIN(2*PI()*(MOD(($T27-今月バイオリズム!$B$4),W$2))/W$2) -> 
A28: 1900-01-25 | B28: 1900-01-25 | C28: =SIN(2*PI()*(MOD(($B28-今月バイオリズム!$B$4),C$2))/C$2) -> 0.51958395 | D28: =SIN(2*PI()*(MOD(($B28-今月バイオリズム!$B$4),D$2))/D$2) -> -0.6234898019 | E28: =SIN(2*PI()*(MOD(($B28-今月バイオリズム!$B$4),E$2))/E$2) -> -0.9988673392 | F28: ↑ | G28: 高調期（活動期） | H28: 上昇中 | I28: ↑ | J28: 低調期（充電期） | K28: 上昇中 | L28: ▲ | M28: 低調期ピーク | N28: 下降中 | O28: -1.102773191 | P28: ↑ | Q28: 低調期（充電期） | R28: 上昇中 | U28: =SIN(2*PI()*(MOD(($T28-今月バイオリズム!$B$4),U$2))/U$2) ->  | V28: =SIN(2*PI()*(MOD(($T28-今月バイオリズム!$B$4),V$2))/V$2) ->  | W28: =SIN(2*PI()*(MOD(($T28-今月バイオリズム!$B$4),W$2))/W$2) -> 
A29: 1900-01-26 | B29: 1900-01-26 | C29: =SIN(2*PI()*(MOD(($B29-今月バイオリズム!$B$4),C$2))/C$2) -> 0.7308359643 | D29: =SIN(2*PI()*(MOD(($B29-今月バイオリズム!$B$4),D$2))/D$2) -> -0.4338837391 | E29: =SIN(2*PI()*(MOD(($B29-今月バイオリズム!$B$4),E$2))/E$2) -> -0.9718115683 | F29: ↑ | G29: 高調期（活動期） | H29: 上昇中 | I29: ↑ | J29: 低調期（充電期） | K29: 上昇中 | L29: ↑ | M29: 低調期（充電期） | N29: 上昇中 | O29: -0.6748593432 | P29: ↑ | Q29: 低調期（充電期） | R29: 上昇中 | U29: =SIN(2*PI()*(MOD(($T29-今月バイオリズム!$B$4),U$2))/U$2) ->  | V29: =SIN(2*PI()*(MOD(($T29-今月バイオリズム!$B$4),V$2))/V$2) ->  | W29: =SIN(2*PI()*(MOD(($T29-今月バイオリズム!$B$4),W$2))/W$2) -> 
A30: 1900-01-27 | B30: 1900-01-27 | C30: =SIN(2*PI()*(MOD(($B30-今月バイオリズム!$B$4),C$2))/C$2) -> 0.8878852184 | D30: =SIN(2*PI()*(MOD(($B30-今月バイオリズム!$B$4),D$2))/D$2) -> -0.222520934 | E30: =SIN(2*PI()*(MOD(($B30-今月バイオリズム!$B$4),E$2))/E$2) -> -0.9096319954 | F30: ↑ | G30: 高調期（活動期） | H30: 上昇中 | I30: ↑ | J30: 低調期（充電期） | K30: 上昇中 | L30: ↑ | M30: 低調期（充電期） | N30: 上昇中 | O30: -0.2442677109 | P30: ↑ | Q30: 低調期（充電期） | R30: 上昇中 | U30: =SIN(2*PI()*(MOD(($T30-今月バイオリズム!$B$4),U$2))/U$2) ->  | V30: =SIN(2*PI()*(MOD(($T30-今月バイオリズム!$B$4),V$2))/V$2) ->  | W30: =SIN(2*PI()*(MOD(($T30-今月バイオリズム!$B$4),W$2))/W$2) -> 
A31: 1900-01-28 | B31: 1900-01-28 | C31: =SIN(2*PI()*(MOD(($B31-今月バイオリズム!$B$4),C$2))/C$2) -> 0.9790840877 | D31: =SIN(2*PI()*(MOD(($B31-今月バイオリズム!$B$4),D$2))/D$2) -> 0 | E31: =SIN(2*PI()*(MOD(($B31-今月バイオリズム!$B$4),E$2))/E$2) -> -0.8145759521 | F31: ↑ | G31: 高調期（活動期） | H31: 上昇中 | I31: ↑ | J31: 要注意 | L31: ↑ | M31: 低調期（充電期） | N31: 上昇中 | O31: 0.1645081356 | P31: ↑ | Q31: 要注意 | U31: =SIN(2*PI()*(MOD(($T31-今月バイオリズム!$B$4),U$2))/U$2) ->  | V31: =SIN(2*PI()*(MOD(($T31-今月バイオリズム!$B$4),V$2))/V$2) ->  | W31: =SIN(2*PI()*(MOD(($T31-今月バイオリズム!$B$4),W$2))/W$2) -> 
A32: 1900-01-29 | B32: 1900-01-29 | C32: =SIN(2*PI()*(MOD(($B32-今月バイオリズム!$B$4),C$2))/C$2) -> 0.9976687692 | D32: =SIN(2*PI()*(MOD(($B32-今月バイオリズム!$B$4),D$2))/D$2) -> 0.222520934 | E32: =SIN(2*PI()*(MOD(($B32-今月バイオリズム!$B$4),E$2))/E$2) -> -0.6900790115 | F32: ▽ | G32: 高調期ピーク | H32: 下降中 | I32: ↑ | J32: 要注意 | L32: ↑ | M32: 低調期（充電期） | N32: 上昇中 | O32: 0.5301106917 | P32: ↑ | Q32: 高調期（活動期） | R32: 上昇中 | U32: =SIN(2*PI()*(MOD(($T32-今月バイオリズム!$B$4),U$2))/U$2) ->  | V32: =SIN(2*PI()*(MOD(($T32-今月バイオリズム!$B$4),V$2))/V$2) ->  | W32: =SIN(2*PI()*(MOD(($T32-今月バイオリズム!$B$4),W$2))/W$2) -> 
A33: 1900-01-30 | B33: 1900-01-30 | C33: =SIN(2*PI()*(MOD(($B33-今月バイオリズム!$B$4),C$2))/C$2) -> 0.9422609221 | D33: =SIN(2*PI()*(MOD(($B33-今月バイオリズム!$B$4),D$2))/D$2) -> 0.4338837391 | E33: =SIN(2*PI()*(MOD(($B33-今月バイオリズム!$B$4),E$2))/E$2) -> -0.5406408175 | F33: ↓ | G33: 高調期（活動期） | H33: 下降中 | I33: ↑ | J33: 高調期（活動期） | K33: 上昇中 | L33: ↑ | M33: 低調期（充電期） | N33: 上昇中 | O33: 0.8355038438 | P33: ↑ | Q33: 高調期（活動期） | R33: 上昇中 | U33: =SIN(2*PI()*(MOD(($T33-今月バイオリズム!$B$4),U$2))/U$2) ->  | V33: =SIN(2*PI()*(MOD(($T33-今月バイオリズム!$B$4),V$2))/V$2) ->  | W33: =SIN(2*PI()*(MOD(($T33-今月バイオリズム!$B$4),W$2))/W$2) -> 
A34: 1900-01-31 | B34: 1900-01-31 | C34: =SIN(2*PI()*(MOD(($B34-今月バイオリズム!$B$4),C$2))/C$2) -> 0.816969893 | D34: =SIN(2*PI()*(MOD(($B34-今月バイオリズム!$B$4),D$2))/D$2) -> 0.6234898019 | E34: =SIN(2*PI()*(MOD(($B34-今月バイオリズム!$B$4),E$2))/E$2) -> -0.3716624557 | F34: ↓ | G34: 高調期（活動期） | H34: 下降中 | I34: ↑ | J34: 高調期（活動期） | K34: 上昇中 | L34: ↑ | M34: 低調期（充電期） | N34: 上昇中 | O34: 1.068797239 | P34: ↑ | Q34: 高調期（活動期） | R34: 上昇中 | U34: =SIN(2*PI()*(MOD(($T34-今月バイオリズム!$B$4),U$2))/U$2) ->  | V34: =SIN(2*PI()*(MOD(($T34-今月バイオリズム!$B$4),V$2))/V$2) ->  | W34: =SIN(2*PI()*(MOD(($T34-今月バイオリズム!$B$4),W$2))/W$2) -> 
A35: 1900-02-01 | B35: 1900-02-01 | C35: =SIN(2*PI()*(MOD(($B35-今月バイオリズム!$B$4),C$2))/C$2) -> 0.6310879443 | D35: =SIN(2*PI()*(MOD(($B35-今月バイオリズム!$B$4),D$2))/D$2) -> 0.7818314825 | E35: =SIN(2*PI()*(MOD(($B35-今月バイオリズム!$B$4),E$2))/E$2) -> -0.1892512444 | F35: ↓ | G35: 高調期（活動期） | H35: 下降中 | I35: ↑ | J35: 高調期（活動期） | K35: 上昇中 | L35: ↑ | M35: 低調期（充電期） | N35: 上昇中 | O35: 1.223668182 | P35: ↑ | Q35: 高調期（活動期） | R35: 上昇中 | S35: =T35 ->  | U35: =SIN(2*PI()*(MOD(($T35-今月バイオリズム!$B$4),U$2))/U$2) ->  | V35: =SIN(2*PI()*(MOD(($T35-今月バイオリズム!$B$4),V$2))/V$2) ->  | W35: =SIN(2*PI()*(MOD(($T35-今月バイオリズム!$B$4),W$2))/W$2) ->  | Y35: =IF(OR(AND(U34<=0,U35>=0),AND(U34>=0,U35<=0)),"要注意",IF(U35>0,IF(X35="▽","高調期ピーク","高調期（活動期）"),IF(X35="▲","低調期ピーク","低調期（充電期）"))) ->  | AB35: =IF(OR(AND(V34<=0,V35>=0),AND(V34>=0,V35<=0)),"要注意",IF(V35>0,IF(AA35="▽","高調期ピーク","高調期（活動期）"),IF(AA35="▲","低調期ピーク","低調期（充電期）"))) ->  | AE35: =IF(OR(AND(W34<=0,W35>=0),AND(W34>=0,W35<=0)),"要注意",IF(W35>0,IF(AD35="▽","高調期ピーク","高調期（活動期）"),IF(AD35="▲","低調期ピーク","低調期（充電期）"))) ->  | AG35: =T35 -> 
A36: 1900-02-02 | B36: 1900-02-02 | C36: =SIN(2*PI()*(MOD(($B36-今月バイオリズム!$B$4),C$2))/C$2) -> 0.3984010898 | D36: =SIN(2*PI()*(MOD(($B36-今月バイオリズム!$B$4),D$2))/D$2) -> 0.9009688679 | E36: =SIN(2*PI()*(MOD(($B36-今月バイオリズム!$B$4),E$2))/E$2) -> 0 | F36: ↓ | G36: 高調期（活動期） | H36: 下降中 | I36: ↑ | J36: 高調期（活動期） | K36: 上昇中 | L36: ↑ | M36: 要注意 | O36: 1.299369958 | P36: ↑ | Q36: 高調期（活動期） | R36: 上昇中 | U36: =SIN(2*PI()*(MOD(($T36-今月バイオリズム!$B$4),U$2))/U$2) ->  | V36: =SIN(2*PI()*(MOD(($T36-今月バイオリズム!$B$4),V$2))/V$2) ->  | W36: =SIN(2*PI()*(MOD(($T36-今月バイオリズム!$B$4),W$2))/W$2) -> 
A37: 1900-02-03 | B37: 1900-02-03 | C37: =SIN(2*PI()*(MOD(($B37-今月バイオリズム!$B$4),C$2))/C$2) -> 0.1361666491 | D37: =SIN(2*PI()*(MOD(($B37-今月バイオリズム!$B$4),D$2))/D$2) -> 0.9749279122 | E37: =SIN(2*PI()*(MOD(($B37-今月バイオリズム!$B$4),E$2))/E$2) -> 0.1892512444 | F37: ↓ | G37: 高調期（活動期） | H37: 下降中 | I37: ↑ | J37: 高調期（活動期） | K37: 上昇中 | L37: ↑ | M37: 要注意 | O37: 1.300345806 | P37: ▽ | Q37: 高調期ピーク | R37: 下降中 | U37: =SIN(2*PI()*(MOD(($T37-今月バイオリズム!$B$4),U$2))/U$2) ->  | V37: =SIN(2*PI()*(MOD(($T37-今月バイオリズム!$B$4),V$2))/V$2) ->  | W37: =SIN(2*PI()*(MOD(($T37-今月バイオリズム!$B$4),W$2))/W$2) -> 
A38: 1900-02-04 | B38: 1900-02-04 | C38: =SIN(2*PI()*(MOD(($B38-今月バイオリズム!$B$4),C$2))/C$2) -> -0.1361666491 | D38: =SIN(2*PI()*(MOD(($B38-今月バイオリズム!$B$4),D$2))/D$2) -> 1 | E38: =SIN(2*PI()*(MOD(($B38-今月バイオリズム!$B$4),E$2))/E$2) -> 0.3716624557 | F38: ↓ | G38: 要注意 | I38: ▽ | J38: 高調期ピーク | K38: 下降中 | L38: ↑ | M38: 高調期（活動期） | N38: 上昇中 | O38: 1.235495807 | P38: ↓ | Q38: 高調期（活動期） | R38: 下降中 | U38: =SIN(2*PI()*(MOD(($T38-今月バイオリズム!$B$4),U$2))/U$2) ->  | V38: =SIN(2*PI()*(MOD(($T38-今月バイオリズム!$B$4),V$2))/V$2) ->  | W38: =SIN(2*PI()*(MOD(($T38-今月バイオリズム!$B$4),W$2))/W$2) -> 
A39: 1900-02-05 | B39: 1900-02-05 | C39: =SIN(2*PI()*(MOD(($B39-今月バイオリズム!$B$4),C$2))/C$2) -> -0.3984010898 | D39: =SIN(2*PI()*(MOD(($B39-今月バイオリズム!$B$4),D$2))/D$2) -> 0.9749279122 | E39: =SIN(2*PI()*(MOD(($B39-今月バイオリズム!$B$4),E$2))/E$2) -> 0.5406408175 | F39: ↓ | G39: 低調期（充電期） | H39: 下降中 | I39: ↓ | J39: 高調期（活動期） | K39: 下降中 | L39: ↑ | M39: 高調期（活動期） | N39: 上昇中 | O39: 1.11716764 | P39: ↓ | Q39: 高調期（活動期） | R39: 下降中 | U39: =SIN(2*PI()*(MOD(($T39-今月バイオリズム!$B$4),U$2))/U$2) ->  | V39: =SIN(2*PI()*(MOD(($T39-今月バイオリズム!$B$4),V$2))/V$2) ->  | W39: =SIN(2*PI()*(MOD(($T39-今月バイオリズム!$B$4),W$2))/W$2) -> 
A40: 1900-02-06 | B40: 1900-02-06 | C40: =SIN(2*PI()*(MOD(($B40-今月バイオリズム!$B$4),C$2))/C$2) -> -0.6310879443 | D40: =SIN(2*PI()*(MOD(($B40-今月バイオリズム!$B$4),D$2))/D$2) -> 0.9009688679 | E40: =SIN(2*PI()*(MOD(($B40-今月バイオリズム!$B$4),E$2))/E$2) -> 0.6900790115 | F40: ↓ | G40: 低調期（充電期） | H40: 下降中 | I40: ↓ | J40: 高調期（活動期） | K40: 下降中 | L40: ↑ | M40: 高調期（活動期） | N40: 上昇中 | O40: 0.9599599351 | P40: ↓ | Q40: 高調期（活動期） | R40: 下降中 | U40: =SIN(2*PI()*(MOD(($T40-今月バイオリズム!$B$4),U$2))/U$2) ->  | V40: =SIN(2*PI()*(MOD(($T40-今月バイオリズム!$B$4),V$2))/V$2) ->  | W40: =SIN(2*PI()*(MOD(($T40-今月バイオリズム!$B$4),W$2))/W$2) -> 
A41: 1900-02-07 | B41: 1900-02-07 | C41: =SIN(2*PI()*(MOD(($B41-今月バイオリズム!$B$4),C$2))/C$2) -> -0.816969893 | D41: =SIN(2*PI()*(MOD(($B41-今月バイオリズム!$B$4),D$2))/D$2) -> 0.7818314825 | E41: =SIN(2*PI()*(MOD(($B41-今月バイオリズム!$B$4),E$2))/E$2) -> 0.8145759521 | F41: ↓ | G41: 低調期（充電期） | H41: 下降中 | I41: ↓ | J41: 高調期（活動期） | K41: 下降中 | L41: ↑ | M41: 高調期（活動期） | N41: 上昇中 | O41: 0.7794375415 | P41: ↓ | Q41: 高調期（活動期） | R41: 下降中 | U41: =SIN(2*PI()*(MOD(($T41-今月バイオリズム!$B$4),U$2))/U$2) ->  | V41: =SIN(2*PI()*(MOD(($T41-今月バイオリズム!$B$4),V$2))/V$2) ->  | W41: =SIN(2*PI()*(MOD(($T41-今月バイオリズム!$B$4),W$2))/W$2) -> 
A42: 1900-02-08 | B42: 1900-02-08 | C42: =SIN(2*PI()*(MOD(($B42-今月バイオリズム!$B$4),C$2))/C$2) -> -0.9422609221 | D42: =SIN(2*PI()*(MOD(($B42-今月バイオリズム!$B$4),D$2))/D$2) -> 0.6234898019 | E42: =SIN(2*PI()*(MOD(($B42-今月バイオリズム!$B$4),E$2))/E$2) -> 0.9096319954 | F42: ↓ | G42: 低調期（充電期） | H42: 下降中 | I42: ↓ | J42: 高調期（活動期） | K42: 下降中 | L42: ↑ | M42: 高調期（活動期） | N42: 上昇中 | O42: 0.5908608751 | P42: ↓ | Q42: 高調期（活動期） | R42: 下降中 | U42: =SIN(2*PI()*(MOD(($T42-今月バイオリズム!$B$4),U$2))/U$2) ->  | V42: =SIN(2*PI()*(MOD(($T42-今月バイオリズム!$B$4),V$2))/V$2) ->  | W42: =SIN(2*PI()*(MOD(($T42-今月バイオリズム!$B$4),W$2))/W$2) -> 
A43: 1900-02-09 | B43: 1900-02-09 | C43: =SIN(2*PI()*(MOD(($B43-今月バイオリズム!$B$4),C$2))/C$2) -> -0.9976687692 | D43: =SIN(2*PI()*(MOD(($B43-今月バイオリズム!$B$4),D$2))/D$2) -> 0.4338837391 | E43: =SIN(2*PI()*(MOD(($B43-今月バイオリズム!$B$4),E$2))/E$2) -> 0.9718115683 | F43: ▲ | G43: 低調期ピーク | H43: 下降中 | I43: ↓ | J43: 高調期（活動期） | K43: 下降中 | L43: ↑ | M43: 高調期（活動期） | N43: 上昇中 | O43: 0.4080265383 | P43: ↓ | Q43: 高調期（活動期） | R43: 下降中 | U43: =SIN(2*PI()*(MOD(($T43-今月バイオリズム!$B$4),U$2))/U$2) ->  | V43: =SIN(2*PI()*(MOD(($T43-今月バイオリズム!$B$4),V$2))/V$2) ->  | W43: =SIN(2*PI()*(MOD(($T43-今月バイオリズム!$B$4),W$2))/W$2) -> 
A44: 1900-02-10 | B44: 1900-02-10 | C44: =SIN(2*PI()*(MOD(($B44-今月バイオリズム!$B$4),C$2))/C$2) -> -0.9790840877 | D44: =SIN(2*PI()*(MOD(($B44-今月バイオリズム!$B$4),D$2))/D$2) -> 0.222520934 | E44: =SIN(2*PI()*(MOD(($B44-今月バイオリズム!$B$4),E$2))/E$2) -> 0.9988673392 | F44: ↑ | G44: 低調期（充電期） | H44: 上昇中 | I44: ↓ | J44: 高調期（活動期） | K44: 下降中 | L44: ▽ | M44: 高調期ピーク | N44: 下降中 | O44: 0.2423041855 | P44: ↓ | Q44: 高調期（活動期） | R44: 下降中 | U44: =SIN(2*PI()*(MOD(($T44-今月バイオリズム!$B$4),U$2))/U$2) ->  | V44: =SIN(2*PI()*(MOD(($T44-今月バイオリズム!$B$4),V$2))/V$2) ->  | W44: =SIN(2*PI()*(MOD(($T44-今月バイオリズム!$B$4),W$2))/W$2) -> 
A45: 1900-02-11 | B45: 1900-02-11 | C45: =SIN(2*PI()*(MOD(($B45-今月バイオリズム!$B$4),C$2))/C$2) -> -0.8878852184 | D45: =SIN(2*PI()*(MOD(($B45-今月バイオリズム!$B$4),D$2))/D$2) -> 1.225148455e-16 | E45: =SIN(2*PI()*(MOD(($B45-今月バイオリズム!$B$4),E$2))/E$2) -> 0.9898214419 | F45: ↑ | G45: 低調期（充電期） | H45: 上昇中 | I45: ↓ | J45: 高調期（活動期） | K45: 下降中 | L45: ↓ | M45: 高調期（活動期） | N45: 下降中 | O45: 0.1019362235 | P45: ↓ | Q45: 高調期（活動期） | R45: 下降中 | U45: =SIN(2*PI()*(MOD(($T45-今月バイオリズム!$B$4),U$2))/U$2) ->  | V45: =SIN(2*PI()*(MOD(($T45-今月バイオリズム!$B$4),V$2))/V$2) ->  | W45: =SIN(2*PI()*(MOD(($T45-今月バイオリズム!$B$4),W$2))/W$2) -> 
A46: 1900-02-12 | B46: 1900-02-12 | C46: =SIN(2*PI()*(MOD(($B46-今月バイオリズム!$B$4),C$2))/C$2) -> -0.7308359643 | D46: =SIN(2*PI()*(MOD(($B46-今月バイオリズム!$B$4),D$2))/D$2) -> -0.222520934 | E46: =SIN(2*PI()*(MOD(($B46-今月バイオリズム!$B$4),E$2))/E$2) -> 0.9450008187 | F46: ↑ | G46: 低調期（充電期） | H46: 上昇中 | I46: ↓ | J46: 要注意 | L46: ↓ | M46: 高調期（活動期） | N46: 下降中 | O46: -0.00835607952 | P46: ↓ | Q46: 要注意 | U46: =SIN(2*PI()*(MOD(($T46-今月バイオリズム!$B$4),U$2))/U$2) ->  | V46: =SIN(2*PI()*(MOD(($T46-今月バイオリズム!$B$4),V$2))/V$2) ->  | W46: =SIN(2*PI()*(MOD(($T46-今月バイオリズム!$B$4),W$2))/W$2) -> 
A47: 1900-02-13 | B47: 1900-02-13 | C47: =SIN(2*PI()*(MOD(($B47-今月バイオリズム!$B$4),C$2))/C$2) -> -0.51958395 | D47: =SIN(2*PI()*(MOD(($B47-今月バイオリズム!$B$4),D$2))/D$2) -> -0.4338837391 | E47: =SIN(2*PI()*(MOD(($B47-今月バイオリズム!$B$4),E$2))/E$2) -> 0.8660254038 | F47: ↑ | G47: 低調期（充電期） | H47: 上昇中 | I47: ↓ | J47: 低調期（充電期） | K47: 下降中 | L47: ↓ | M47: 高調期（活動期） | N47: 下降中 | O47: -0.08744228537 | P47: ↓ | Q47: 低調期（充電期） | R47: 下降中 | U47: =SIN(2*PI()*(MOD(($T47-今月バイオリズム!$B$4),U$2))/U$2) ->  | V47: =SIN(2*PI()*(MOD(($T47-今月バイオリズム!$B$4),V$2))/V$2) ->  | W47: =SIN(2*PI()*(MOD(($T47-今月バイオリズム!$B$4),W$2))/W$2) -> 
A48: 1900-02-14 | B48: 1900-02-14 | C48: =SIN(2*PI()*(MOD(($B48-今月バイオリズム!$B$4),C$2))/C$2) -> -0.2697967712 | D48: =SIN(2*PI()*(MOD(($B48-今月バイオリズム!$B$4),D$2))/D$2) -> -0.6234898019 | E48: =SIN(2*PI()*(MOD(($B48-今月バイオリズム!$B$4),E$2))/E$2) -> 0.7557495744 | F48: ↑ | G48: 低調期（充電期） | H48: 上昇中 | I48: ↓ | J48: 低調期（充電期） | K48: 下降中 | L48: ↓ | M48: 高調期（活動期） | N48: 下降中 | O48: -0.1375369987 | P48: ↓ | Q48: 低調期（充電期） | R48: 下降中 | U48: =SIN(2*PI()*(MOD(($T48-今月バイオリズム!$B$4),U$2))/U$2) ->  | V48: =SIN(2*PI()*(MOD(($T48-今月バイオリズム!$B$4),V$2))/V$2) ->  | W48: =SIN(2*PI()*(MOD(($T48-今月バイオリズム!$B$4),W$2))/W$2) -> 
A49: 1900-02-15 | B49: 1900-02-15 | C49: =SIN(2*PI()*(MOD(($B49-今月バイオリズム!$B$4),C$2))/C$2) -> 0 | D49: =SIN(2*PI()*(MOD(($B49-今月バイオリズム!$B$4),D$2))/D$2) -> -0.7818314825 | E49: =SIN(2*PI()*(MOD(($B49-今月バイオリズム!$B$4),E$2))/E$2) -> 0.6181589862 | F49: ↑ | G49: 要注意 | I49: ↓ | J49: 低調期（充電期） | K49: 下降中 | L49: ↓ | M49: 高調期（活動期） | N49: 下降中 | O49: -0.1636724962 | P49: ↓ | Q49: 低調期（充電期） | R49: 下降中 | U49: =SIN(2*PI()*(MOD(($T49-今月バイオリズム!$B$4),U$2))/U$2) ->  | V49: =SIN(2*PI()*(MOD(($T49-今月バイオリズム!$B$4),V$2))/V$2) ->  | W49: =SIN(2*PI()*(MOD(($T49-今月バイオリズム!$B$4),W$2))/W$2) -> 
A50: 1900-02-16 | B50: 1900-02-16 | C50: =SIN(2*PI()*(MOD(($B50-今月バイオリズム!$B$4),C$2))/C$2) -> 0.2697967712 | D50: =SIN(2*PI()*(MOD(($B50-今月バイオリズム!$B$4),D$2))/D$2) -> -0.9009688679 | E50: =SIN(2*PI()*(MOD(($B50-今月バイオリズム!$B$4),E$2))/E$2) -> 0.4582265217 | F50: ↑ | G50: 要注意 | I50: ↓ | J50: 低調期（充電期） | K50: 下降中 | L50: ↓ | M50: 高調期（活動期） | N50: 下降中 | O50: -0.172945575 | P50: ↓ | Q50: 低調期（充電期） | R50: 下降中 | U50: =SIN(2*PI()*(MOD(($T50-今月バイオリズム!$B$4),U$2))/U$2) ->  | V50: =SIN(2*PI()*(MOD(($T50-今月バイオリズム!$B$4),V$2))/V$2) ->  | W50: =SIN(2*PI()*(MOD(($T50-今月バイオリズム!$B$4),W$2))/W$2) -> 
A51: 1900-02-17 | B51: 1900-02-17 | C51: =SIN(2*PI()*(MOD(($B51-今月バイオリズム!$B$4),C$2))/C$2) -> 0.51958395 | D51: =SIN(2*PI()*(MOD(($B51-今月バイオリズム!$B$4),D$2))/D$2) -> -0.9749279122 | E51: =SIN(2*PI()*(MOD(($B51-今月バイオリズム!$B$4),E$2))/E$2) -> 0.2817325568 | F51: ↑ | G51: 高調期（活動期） | H51: 上昇中 | I51: ↓ | J51: 低調期（充電期） | K51: 下降中 | L51: ↓ | M51: 高調期（活動期） | N51: 下降中 | O51: -0.1736114053 | P51: ↓ | Q51: 低調期（充電期） | R51: 下降中 | U51: =SIN(2*PI()*(MOD(($T51-今月バイオリズム!$B$4),U$2))/U$2) ->  | V51: =SIN(2*PI()*(MOD(($T51-今月バイオリズム!$B$4),V$2))/V$2) ->  | W51: =SIN(2*PI()*(MOD(($T51-今月バイオリズム!$B$4),W$2))/W$2) -> 
A52: 1900-02-18 | B52: 1900-02-18 | C52: =SIN(2*PI()*(MOD(($B52-今月バイオリズム!$B$4),C$2))/C$2) -> 0.7308359643 | D52: =SIN(2*PI()*(MOD(($B52-今月バイオリズム!$B$4),D$2))/D$2) -> -1 | E52: =SIN(2*PI()*(MOD(($B52-今月バイオリズム!$B$4),E$2))/E$2) -> 0.0950560433 | F52: ↑ | G52: 高調期（活動期） | H52: 上昇中 | I52: ▲ | J52: 低調期ピーク | K52: 下降中 | L52: ↓ | M52: 高調期（活動期） | N52: 下降中 | O52: -0.1741079924 | P52: ↓ | Q52: 低調期（充電期） | R52: 下降中 | U52: =SIN(2*PI()*(MOD(($T52-今月バイオリズム!$B$4),U$2))/U$2) ->  | V52: =SIN(2*PI()*(MOD(($T52-今月バイオリズム!$B$4),V$2))/V$2) ->  | W52: =SIN(2*PI()*(MOD(($T52-今月バイオリズム!$B$4),W$2))/W$2) -> 
A53: 1900-02-19 | B53: 1900-02-19 | C53: =SIN(2*PI()*(MOD(($B53-今月バイオリズム!$B$4),C$2))/C$2) -> 0.8878852184 | D53: =SIN(2*PI()*(MOD(($B53-今月バイオリズム!$B$4),D$2))/D$2) -> -0.9749279122 | E53: =SIN(2*PI()*(MOD(($B53-今月バイオリズム!$B$4),E$2))/E$2) -> -0.0950560433 | F53: ↑ | G53: 高調期（活動期） | H53: 上昇中 | I53: ↑ | J53: 低調期（充電期） | K53: 上昇中 | L53: ↓ | M53: 要注意 | O53: -0.1820987371 | P53: ↓ | Q53: 低調期（充電期） | R53: 下降中 | U53: =SIN(2*PI()*(MOD(($T53-今月バイオリズム!$B$4),U$2))/U$2) ->  | V53: =SIN(2*PI()*(MOD(($T53-今月バイオリズム!$B$4),V$2))/V$2) ->  | W53: =SIN(2*PI()*(MOD(($T53-今月バイオリズム!$B$4),W$2))/W$2) -> 
A54: 1900-02-20 | B54: 1900-02-20 | C54: =SIN(2*PI()*(MOD(($B54-今月バイオリズム!$B$4),C$2))/C$2) -> 0.9790840877 | D54: =SIN(2*PI()*(MOD(($B54-今月バイオリズム!$B$4),D$2))/D$2) -> -0.9009688679 | E54: =SIN(2*PI()*(MOD(($B54-今月バイオリズム!$B$4),E$2))/E$2) -> -0.2817325568 | F54: ↑ | G54: 高調期（活動期） | H54: 上昇中 | I54: ↑ | J54: 低調期（充電期） | K54: 上昇中 | L54: ↓ | M54: 低調期（充電期） | N54: 下降中 | O54: -0.2036173371 | P54: ↓ | Q54: 低調期（充電期） | R54: 下降中 | U54: =SIN(2*PI()*(MOD(($T54-今月バイオリズム!$B$4),U$2))/U$2) ->  | V54: =SIN(2*PI()*(MOD(($T54-今月バイオリズム!$B$4),V$2))/V$2) ->  | W54: =SIN(2*PI()*(MOD(($T54-今月バイオリズム!$B$4),W$2))/W$2) -> 
A55: 1900-02-21 | B55: 1900-02-21 | C55: =SIN(2*PI()*(MOD(($B55-今月バイオリズム!$B$4),C$2))/C$2) -> 0.9976687692 | D55: =SIN(2*PI()*(MOD(($B55-今月バイオリズム!$B$4),D$2))/D$2) -> -0.7818314825 | E55: =SIN(2*PI()*(MOD(($B55-今月バイオリズム!$B$4),E$2))/E$2) -> -0.4582265217 | F55: ▽ | G55: 高調期ピーク | H55: 下降中 | I55: ↑ | J55: 低調期（充電期） | K55: 上昇中 | L55: ↓ | M55: 低調期（充電期） | N55: 下降中 | O55: -0.242389235 | P55: ↓ | Q55: 低調期（充電期） | R55: 下降中 | U55: =SIN(2*PI()*(MOD(($T55-今月バイオリズム!$B$4),U$2))/U$2) ->  | V55: =SIN(2*PI()*(MOD(($T55-今月バイオリズム!$B$4),V$2))/V$2) ->  | W55: =SIN(2*PI()*(MOD(($T55-今月バイオリズム!$B$4),W$2))/W$2) -> 
A56: 1900-02-22 | B56: 1900-02-22 | C56: =SIN(2*PI()*(MOD(($B56-今月バイオリズム!$B$4),C$2))/C$2) -> 0.9422609221 | D56: =SIN(2*PI()*(MOD(($B56-今月バイオリズム!$B$4),D$2))/D$2) -> -0.6234898019 | E56: =SIN(2*PI()*(MOD(($B56-今月バイオリズム!$B$4),E$2))/E$2) -> -0.6181589862 | F56: ↓ | G56: 高調期（活動期） | H56: 下降中 | I56: ↑ | J56: 低調期（充電期） | K56: 上昇中 | L56: ↓ | M56: 低調期（充電期） | N56: 下降中 | O56: -0.299387866 | P56: ↓ | Q56: 低調期（充電期） | R56: 下降中 | U56: =SIN(2*PI()*(MOD(($T56-今月バイオリズム!$B$4),U$2))/U$2) ->  | V56: =SIN(2*PI()*(MOD(($T56-今月バイオリズム!$B$4),V$2))/V$2) ->  | W56: =SIN(2*PI()*(MOD(($T56-今月バイオリズム!$B$4),W$2))/W$2) -> 
A57: 1900-02-23 | B57: 1900-02-23 | C57: =SIN(2*PI()*(MOD(($B57-今月バイオリズム!$B$4),C$2))/C$2) -> 0.816969893 | D57: =SIN(2*PI()*(MOD(($B57-今月バイオリズム!$B$4),D$2))/D$2) -> -0.4338837391 | E57: =SIN(2*PI()*(MOD(($B57-今月バイオリズム!$B$4),E$2))/E$2) -> -0.7557495744 | F57: ↓ | G57: 高調期（活動期） | H57: 下降中 | I57: ↑ | J57: 低調期（充電期） | K57: 上昇中 | L57: ↓ | M57: 低調期（充電期） | N57: 下降中 | O57: -0.3726634205 | P57: ↓ | Q57: 低調期（充電期） | R57: 下降中 | U57: =SIN(2*PI()*(MOD(($T57-今月バイオリズム!$B$4),U$2))/U$2) ->  | V57: =SIN(2*PI()*(MOD(($T57-今月バイオリズム!$B$4),V$2))/V$2) ->  | W57: =SIN(2*PI()*(MOD(($T57-今月バイオリズム!$B$4),W$2))/W$2) -> 
A58: 1900-02-24 | B58: 1900-02-24 | C58: =SIN(2*PI()*(MOD(($B58-今月バイオリズム!$B$4),C$2))/C$2) -> 0.6310879443 | D58: =SIN(2*PI()*(MOD(($B58-今月バイオリズム!$B$4),D$2))/D$2) -> -0.222520934 | E58: =SIN(2*PI()*(MOD(($B58-今月バイオリズム!$B$4),E$2))/E$2) -> -0.8660254038 | F58: ↓ | G58: 高調期（活動期） | H58: 下降中 | I58: ↑ | J58: 低調期（充電期） | K58: 上昇中 | L58: ↓ | M58: 低調期（充電期） | N58: 下降中 | O58: -0.4574583934 | P58: ↓ | Q58: 低調期（充電期） | R58: 下降中 | U58: =SIN(2*PI()*(MOD(($T58-今月バイオリズム!$B$4),U$2))/U$2) ->  | V58: =SIN(2*PI()*(MOD(($T58-今月バイオリズム!$B$4),V$2))/V$2) ->  | W58: =SIN(2*PI()*(MOD(($T58-今月バイオリズム!$B$4),W$2))/W$2) -> 
A59: 1900-02-25 | B59: 1900-02-25 | C59: =SIN(2*PI()*(MOD(($B59-今月バイオリズム!$B$4),C$2))/C$2) -> 0.3984010898 | D59: =SIN(2*PI()*(MOD(($B59-今月バイオリズム!$B$4),D$2))/D$2) -> 0 | E59: =SIN(2*PI()*(MOD(($B59-今月バイオリズム!$B$4),E$2))/E$2) -> -0.9450008187 | F59: ↓ | G59: 高調期（活動期） | H59: 下降中 | I59: ↑ | J59: 要注意 | L59: ↓ | M59: 低調期（充電期） | N59: 下降中 | O59: -0.5465997289 | P59: ↓ | Q59: 低調期（充電期） | R59: 下降中 | U59: =SIN(2*PI()*(MOD(($T59-今月バイオリズム!$B$4),U$2))/U$2) ->  | V59: =SIN(2*PI()*(MOD(($T59-今月バイオリズム!$B$4),V$2))/V$2) ->  | W59: =SIN(2*PI()*(MOD(($T59-今月バイオリズム!$B$4),W$2))/W$2) -> 
A60: 1900-02-26 | B60: 1900-02-26 | C60: =SIN(2*PI()*(MOD(($B60-今月バイオリズム!$B$4),C$2))/C$2) -> 0.1361666491 | D60: =SIN(2*PI()*(MOD(($B60-今月バイオリズム!$B$4),D$2))/D$2) -> 0.222520934 | E60: =SIN(2*PI()*(MOD(($B60-今月バイオリズム!$B$4),E$2))/E$2) -> -0.9898214419 | F60: ↓ | G60: 高調期（活動期） | H60: 下降中 | I60: ↑ | J60: 要注意 | L60: ↓ | M60: 低調期（充電期） | N60: 下降中 | O60: -0.6311338588 | P60: ↓ | Q60: 低調期（充電期） | R60: 下降中 | U60: =SIN(2*PI()*(MOD(($T60-今月バイオリズム!$B$4),U$2))/U$2) ->  | V60: =SIN(2*PI()*(MOD(($T60-今月バイオリズム!$B$4),V$2))/V$2) ->  | W60: =SIN(2*PI()*(MOD(($T60-今月バイオリズム!$B$4),W$2))/W$2) -> 
A61: 1900-02-27 | B61: 1900-02-27 | C61: =SIN(2*PI()*(MOD(($B61-今月バイオリズム!$B$4),C$2))/C$2) -> -0.1361666491 | D61: =SIN(2*PI()*(MOD(($B61-今月バイオリズム!$B$4),D$2))/D$2) -> 0.4338837391 | E61: =SIN(2*PI()*(MOD(($B61-今月バイオリズム!$B$4),E$2))/E$2) -> -0.9988673392 | F61: ↓ | G61: 要注意 | I61: ↑ | J61: 高調期（活動期） | K61: 上昇中 | L61: ▲ | M61: 低調期ピーク | N61: 下降中 | O61: -0.7011502492 | P61: ↓ | Q61: 低調期（充電期） | R61: 下降中 | U61: =SIN(2*PI()*(MOD(($T61-今月バイオリズム!$B$4),U$2))/U$2) ->  | V61: =SIN(2*PI()*(MOD(($T61-今月バイオリズム!$B$4),V$2))/V$2) ->  | W61: =SIN(2*PI()*(MOD(($T61-今月バイオリズム!$B$4),W$2))/W$2) -> 
A62: 1900-02-28 | B62: 1900-02-28 | C62: =SIN(2*PI()*(MOD(($B62-今月バイオリズム!$B$4),C$2))/C$2) -> -0.3984010898 | D62: =SIN(2*PI()*(MOD(($B62-今月バイオリズム!$B$4),D$2))/D$2) -> 0.6234898019 | E62: =SIN(2*PI()*(MOD(($B62-今月バイオリズム!$B$4),E$2))/E$2) -> -0.9718115683 | F62: ↓ | G62: 低調期（充電期） | H62: 下降中 | I62: ↑ | J62: 高調期（活動期） | K62: 上昇中 | L62: ↑ | M62: 低調期（充電期） | N62: 上昇中 | O62: -0.7467228563 | P62: ↓ | Q62: 低調期（充電期） | R62: 下降中 | U62: =SIN(2*PI()*(MOD(($T62-今月バイオリズム!$B$4),U$2))/U$2) ->  | V62: =SIN(2*PI()*(MOD(($T62-今月バイオリズム!$B$4),V$2))/V$2) ->  | W62: =SIN(2*PI()*(MOD(($T62-今月バイオリズム!$B$4),W$2))/W$2) -> 
A63: 60 | B63: 60 | C63: =SIN(2*PI()*(MOD(($B63-今月バイオリズム!$B$4),C$2))/C$2) -> -0.6310879443 | D63: =SIN(2*PI()*(MOD(($B63-今月バイオリズム!$B$4),D$2))/D$2) -> 0.7818314825 | E63: =SIN(2*PI()*(MOD(($B63-今月バイオリズム!$B$4),E$2))/E$2) -> -0.9096319954 | F63: ↓ | G63: 低調期（充電期） | H63: 下降中 | I63: ↑ | J63: 高調期（活動期） | K63: 上昇中 | L63: ↑ | M63: 低調期（充電期） | N63: 上昇中 | O63: -0.7588884572 | P63: ▲ | Q63: 低調期ピーク | R63: 下降中 | U63: =SIN(2*PI()*(MOD(($T63-今月バイオリズム!$B$4),U$2))/U$2) ->  | V63: =SIN(2*PI()*(MOD(($T63-今月バイオリズム!$B$4),V$2))/V$2) ->  | W63: =SIN(2*PI()*(MOD(($T63-今月バイオリズム!$B$4),W$2))/W$2) -> 
A64: 1900-03-01 | B64: 1900-03-01 | C64: =SIN(2*PI()*(MOD(($B64-今月バイオリズム!$B$4),C$2))/C$2) -> -0.816969893 | D64: =SIN(2*PI()*(MOD(($B64-今月バイオリズム!$B$4),D$2))/D$2) -> 0.9009688679 | E64: =SIN(2*PI()*(MOD(($B64-今月バイオリズム!$B$4),E$2))/E$2) -> -0.8145759521 | F64: ↓ | G64: 低調期（充電期） | H64: 下降中 | I64: ↑ | J64: 高調期（活動期） | K64: 上昇中 | L64: ↑ | M64: 低調期（充電期） | N64: 上昇中 | O64: -0.7305769772 | P64: ↑ | Q64: 低調期（充電期） | R64: 上昇中 | U64: =SIN(2*PI()*(MOD(($T64-今月バイオリズム!$B$4),U$2))/U$2) ->  | V64: =SIN(2*PI()*(MOD(($T64-今月バイオリズム!$B$4),V$2))/V$2) ->  | W64: =SIN(2*PI()*(MOD(($T64-今月バイオリズム!$B$4),W$2))/W$2) -> 
A65: 1900-03-02 | B65: 1900-03-02 | C65: =SIN(2*PI()*(MOD(($B65-今月バイオリズム!$B$4),C$2))/C$2) -> -0.9422609221 | D65: =SIN(2*PI()*(MOD(($B65-今月バイオリズム!$B$4),D$2))/D$2) -> 0.9749279122 | E65: =SIN(2*PI()*(MOD(($B65-今月バイオリズム!$B$4),E$2))/E$2) -> -0.6900790115 | F65: ↓ | G65: 低調期（充電期） | H65: 下降中 | I65: ↑ | J65: 高調期（活動期） | K65: 上昇中 | L65: ↑ | M65: 低調期（充電期） | N65: 上昇中 | O65: -0.6574120214 | P65: ↑ | Q65: 低調期（充電期） | R65: 上昇中 | U65: =SIN(2*PI()*(MOD(($T65-今月バイオリズム!$B$4),U$2))/U$2) ->  | V65: =SIN(2*PI()*(MOD(($T65-今月バイオリズム!$B$4),V$2))/V$2) ->  | W65: =SIN(2*PI()*(MOD(($T65-今月バイオリズム!$B$4),W$2))/W$2) -> 
A66: 1900-03-03 | B66: 1900-03-03 | C66: =SIN(2*PI()*(MOD(($B66-今月バイオリズム!$B$4),C$2))/C$2) -> -0.9976687692 | D66: =SIN(2*PI()*(MOD(($B66-今月バイオリズム!$B$4),D$2))/D$2) -> 1 | E66: =SIN(2*PI()*(MOD(($B66-今月バイオリズム!$B$4),E$2))/E$2) -> -0.5406408175 | F66: ▲ | G66: 低調期ピーク | H66: 下降中 | I66: ▽ | J66: 高調期ピーク | K66: 下降中 | L66: ↑ | M66: 低調期（充電期） | N66: 上昇中 | O66: -0.5383095866 | P66: ↑ | Q66: 低調期（充電期） | R66: 上昇中 | U66: =SIN(2*PI()*(MOD(($T66-今月バイオリズム!$B$4),U$2))/U$2) ->  | V66: =SIN(2*PI()*(MOD(($T66-今月バイオリズム!$B$4),V$2))/V$2) ->  | W66: =SIN(2*PI()*(MOD(($T66-今月バイオリズム!$B$4),W$2))/W$2) -> 
A67: 1900-03-04 | B67: 1900-03-04 | C67: =SIN(2*PI()*(MOD(($B67-今月バイオリズム!$B$4),C$2))/C$2) -> -0.9790840877 | D67: =SIN(2*PI()*(MOD(($B67-今月バイオリズム!$B$4),D$2))/D$2) -> 0.9749279122 | E67: =SIN(2*PI()*(MOD(($B67-今月バイオリズム!$B$4),E$2))/E$2) -> -0.3716624557 | F67: ↑ | G67: 低調期（充電期） | H67: 上昇中 | I67: ↓ | J67: 高調期（活動期） | K67: 下降中 | L67: ↑ | M67: 低調期（充電期） | N67: 上昇中 | O67: -0.3758186312 | P67: ↑ | Q67: 低調期（充電期） | R67: 上昇中 | U67: =SIN(2*PI()*(MOD(($T67-今月バイオリズム!$B$4),U$2))/U$2) ->  | V67: =SIN(2*PI()*(MOD(($T67-今月バイオリズム!$B$4),V$2))/V$2) ->  | W67: =SIN(2*PI()*(MOD(($T67-今月バイオリズム!$B$4),W$2))/W$2) -> 
A68: 1900-03-05 | B68: 1900-03-05 | C68: =SIN(2*PI()*(MOD(($B68-今月バイオリズム!$B$4),C$2))/C$2) -> -0.8878852184 | D68: =SIN(2*PI()*(MOD(($B68-今月バイオリズム!$B$4),D$2))/D$2) -> 0.9009688679 | E68: =SIN(2*PI()*(MOD(($B68-今月バイオリズム!$B$4),E$2))/E$2) -> -0.1892512444 | F68: ↑ | G68: 低調期（充電期） | H68: 上昇中 | I68: ↓ | J68: 高調期（活動期） | K68: 下降中 | L68: ↑ | M68: 低調期（充電期） | N68: 上昇中 | O68: -0.1761675949 | P68: ↑ | Q68: 低調期（充電期） | R68: 上昇中 | U68: =SIN(2*PI()*(MOD(($T68-今月バイオリズム!$B$4),U$2))/U$2) ->  | V68: =SIN(2*PI()*(MOD(($T68-今月バイオリズム!$B$4),V$2))/V$2) ->  | W68: =SIN(2*PI()*(MOD(($T68-今月バイオリズム!$B$4),W$2))/W$2) -> 
A69: =B69 -> 1900-03-06 | B69: 1900-03-06 | C69: =SIN(2*PI()*(MOD(($B69-今月バイオリズム!$B$4),C$2))/C$2) -> -0.7308359643 | D69: =SIN(2*PI()*(MOD(($B69-今月バイオリズム!$B$4),D$2))/D$2) -> 0.7818314825 | E69: =SIN(2*PI()*(MOD(($B69-今月バイオリズム!$B$4),E$2))/E$2) -> 0 | F69: ↑ | G69: 低調期（充電期） | H69: 上昇中 | I69: =IF(D69>0,IF(D68<D69,IF(D70<D69,"▽","↑"),"↓"),IF(D68>D69,IF(D70>D69,"▲","↓"),"↑")) -> ↓ | J69: =IF(OR(AND(D68<=0,D69>=0),AND(D68>=0,D69<=0)),"要注意",IF(D69>0,IF(I69="▽","高調期ピーク","高調期（活動期）"),IF(I69="▲","低調期ピーク","低調期（充電期）"))) -> 高調期（活動期） | K69: 下降中 | L69: =IF(E69>0,IF(E68<E69,IF(E70<E69,"▽","↑"),"↓"),IF(E68>E69,IF(E70>E69,"▲","↓"),"↑")) -> ↑ | M69: =IF(OR(AND(E68<=0,E69>=0),AND(E68>=0,E69<=0)),"要注意",IF(E69>0,IF(L69="▽","高調期ピーク","高調期（活動期）"),IF(L69="▲","低調期ピーク","低調期（充電期）"))) -> 要注意 | O69: =SUM(C69:E69) -> 0.05099551819 | P69: =IF(O69>0,IF(O68<O69,IF(O70<O69,"▽","↑"),"↓"),IF(O68>O69,IF(O70>O69,"▲","↓"),"↑")) -> ↑ | Q69: 要注意 | U69: =SIN(2*PI()*(MOD(($T69-今月バイオリズム!$B$4),U$2))/U$2) ->  | V69: =SIN(2*PI()*(MOD(($T69-今月バイオリズム!$B$4),V$2))/V$2) ->  | W69: =SIN(2*PI()*(MOD(($T69-今月バイオリズム!$B$4),W$2))/W$2) -> 
A70: 1900-03-07 | B70: =B69+1 -> 1900-03-07 | C70: =SIN(2*PI()*(MOD(($B70-今月バイオリズム!$B$4),C$2))/C$2) -> -0.51958395 | D70: =SIN(2*PI()*(MOD(($B70-今月バイオリズム!$B$4),D$2))/D$2) -> 0.6234898019 | E70: =SIN(2*PI()*(MOD(($B70-今月バイオリズム!$B$4),E$2))/E$2) -> 0.1892512444 | F70: ↑ | G70: =IF(OR(AND(C69<=0,C70>=0),AND(C69>=0,C70<=0)),"要注意",IF(C70>0,IF(F70="▽","高調期ピーク","高調期（活動期）"),IF(F70="▲","低調期ピーク","低調期（充電期）"))) -> 低調期（充電期） | H70: 上昇中 | I70: ↓ | J70: 高調期（活動期） | K70: =IF(J70="要注意","",IF(I70="↑","上昇中","下降中")) -> 下降中 | L70: ↑ | M70: 要注意 | N70: =IF(M70="要注意","",IF(L70="↑","上昇中","下降中")) ->  | O70: 0.2931570962 | P70: ↑ | Q70: 高調期（活動期） | R70: =IF(Q70="要注意","",IF(P70="↑","上昇中","下降中")) -> 上昇中 | T70: =T69+1 ->  | U70: =SIN(2*PI()*(MOD(($T70-今月バイオリズム!$B$4),U$2))/U$2) ->  | V70: =SIN(2*PI()*(MOD(($T70-今月バイオリズム!$B$4),V$2))/V$2) ->  | W70: =SIN(2*PI()*(MOD(($T70-今月バイオリズム!$B$4),W$2))/W$2) -> 
A71: 1900-03-08 | B71: 1900-03-08 | C71: =SIN(2*PI()*(MOD(($B71-今月バイオリズム!$B$4),C$2))/C$2) -> -0.2697967712 | D71: =SIN(2*PI()*(MOD(($B71-今月バイオリズム!$B$4),D$2))/D$2) -> 0.4338837391 | E71: =SIN(2*PI()*(MOD(($B71-今月バイオリズム!$B$4),E$2))/E$2) -> 0.3716624557 | F71: ↑ | G71: 低調期（充電期） | H71: 上昇中 | I71: ↓ | J71: 高調期（活動期） | K71: 下降中 | L71: ↑ | M71: 高調期（活動期） | N71: 上昇中 | O71: 0.5357494236 | P71: ↑ | Q71: =IF(OR(AND(O70<=0,O71>=0),AND(O70>=0,O71<=0)),"要注意",IF(O71>0,IF(P71="▽","高調期ピーク","高調期（活動期）"),IF(P71="▲","低調期ピーク","低調期（充電期）"))) -> 高調期（活動期） | R71: 上昇中 | U71: =SIN(2*PI()*(MOD(($T71-今月バイオリズム!$B$4),U$2))/U$2) ->  | V71: =SIN(2*PI()*(MOD(($T71-今月バイオリズム!$B$4),V$2))/V$2) ->  | W71: =SIN(2*PI()*(MOD(($T71-今月バイオリズム!$B$4),W$2))/W$2) -> 
A72: 1900-03-09 | B72: 1900-03-09 | C72: =SIN(2*PI()*(MOD(($B72-今月バイオリズム!$B$4),C$2))/C$2) -> 0 | D72: =SIN(2*PI()*(MOD(($B72-今月バイオリズム!$B$4),D$2))/D$2) -> 0.222520934 | E72: =SIN(2*PI()*(MOD(($B72-今月バイオリズム!$B$4),E$2))/E$2) -> 0.5406408175 | F72: ↑ | G72: 要注意 | I72: ↓ | J72: 高調期（活動期） | K72: 下降中 | L72: ↑ | M72: 高調期（活動期） | N72: 上昇中 | O72: 0.7631617514 | P72: ↑ | Q72: 高調期（活動期） | R72: 上昇中 | U72: =SIN(2*PI()*(MOD(($T72-今月バイオリズム!$B$4),U$2))/U$2) ->  | V72: =SIN(2*PI()*(MOD(($T72-今月バイオリズム!$B$4),V$2))/V$2) ->  | W72: =SIN(2*PI()*(MOD(($T72-今月バイオリズム!$B$4),W$2))/W$2) -> 
A73: 1900-03-10 | B73: 1900-03-10 | C73: =SIN(2*PI()*(MOD(($B73-今月バイオリズム!$B$4),C$2))/C$2) -> 0.2697967712 | D73: =SIN(2*PI()*(MOD(($B73-今月バイオリズム!$B$4),D$2))/D$2) -> 1.225148455e-16 | E73: =SIN(2*PI()*(MOD(($B73-今月バイオリズム!$B$4),E$2))/E$2) -> 0.6900790115 | F73: ↑ | G73: 要注意 | I73: ↓ | J73: 高調期（活動期） | K73: 下降中 | L73: ↑ | M73: 高調期（活動期） | N73: 上昇中 | O73: 0.9598757826 | P73: ↑ | Q73: 高調期（活動期） | R73: 上昇中 | U73: =SIN(2*PI()*(MOD(($T73-今月バイオリズム!$B$4),U$2))/U$2) ->  | V73: =SIN(2*PI()*(MOD(($T73-今月バイオリズム!$B$4),V$2))/V$2) ->  | W73: =SIN(2*PI()*(MOD(($T73-今月バイオリズム!$B$4),W$2))/W$2) -> 
A74: 1900-03-11 | B74: 1900-03-11 | C74: =SIN(2*PI()*(MOD(($B74-今月バイオリズム!$B$4),C$2))/C$2) -> 0.51958395 | D74: =SIN(2*PI()*(MOD(($B74-今月バイオリズム!$B$4),D$2))/D$2) -> -0.222520934 | E74: =SIN(2*PI()*(MOD(($B74-今月バイオリズム!$B$4),E$2))/E$2) -> 0.8145759521 | F74: ↑ | G74: 高調期（活動期） | H74: 上昇中 | I74: ↓ | J74: 要注意 | L74: ↑ | M74: 高調期（活動期） | N74: 上昇中 | O74: 1.111638968 | P74: ↑ | Q74: 高調期（活動期） | R74: 上昇中 | U74: =SIN(2*PI()*(MOD(($T74-今月バイオリズム!$B$4),U$2))/U$2) ->  | V74: =SIN(2*PI()*(MOD(($T74-今月バイオリズム!$B$4),V$2))/V$2) ->  | W74: =SIN(2*PI()*(MOD(($T74-今月バイオリズム!$B$4),W$2))/W$2) -> 
A75: 1900-03-12 | B75: 1900-03-12 | C75: =SIN(2*PI()*(MOD(($B75-今月バイオリズム!$B$4),C$2))/C$2) -> 0.7308359643 | D75: =SIN(2*PI()*(MOD(($B75-今月バイオリズム!$B$4),D$2))/D$2) -> -0.4338837391 | E75: =SIN(2*PI()*(MOD(($B75-今月バイオリズム!$B$4),E$2))/E$2) -> 0.9096319954 | F75: =IF(C75>0,IF(C74<C75,IF(C76<C75,"▽","↑"),"↓"),IF(C74>C75,IF(C76>C75,"▲","↓"),"↑")) -> ↑ | G75: 高調期（活動期） | H75: =IF(G75="要注意","",IF(F75="↑","上昇中","下降中")) -> 上昇中 | I75: ↓ | J75: 低調期（充電期） | K75: 下降中 | L75: ↑ | M75: 高調期（活動期） | N75: 上昇中 | O75: 1.206584221 | P75: ↑ | Q75: 高調期（活動期） | R75: 上昇中 | U75: =SIN(2*PI()*(MOD(($T75-今月バイオリズム!$B$4),U$2))/U$2) ->  | V75: =SIN(2*PI()*(MOD(($T75-今月バイオリズム!$B$4),V$2))/V$2) ->  | W75: =SIN(2*PI()*(MOD(($T75-今月バイオリズム!$B$4),W$2))/W$2) -> 
A76: 1900-03-13 | B76: 1900-03-13 | C76: =SIN(2*PI()*(MOD(($B76-今月バイオリズム!$B$4),C$2))/C$2) -> 0.8878852184 | D76: =SIN(2*PI()*(MOD(($B76-今月バイオリズム!$B$4),D$2))/D$2) -> -0.6234898019 | E76: =SIN(2*PI()*(MOD(($B76-今月バイオリズム!$B$4),E$2))/E$2) -> 0.9718115683 | F76: ↑ | G76: 高調期（活動期） | H76: 上昇中 | I76: ↓ | J76: 低調期（充電期） | K76: 下降中 | L76: ↑ | M76: 高調期（活動期） | N76: 上昇中 | O76: 1.236206985 | P76: ▽ | Q76: 高調期ピーク | R76: 下降中 | U76: =SIN(2*PI()*(MOD(($T76-今月バイオリズム!$B$4),U$2))/U$2) ->  | V76: =SIN(2*PI()*(MOD(($T76-今月バイオリズム!$B$4),V$2))/V$2) ->  | W76: =SIN(2*PI()*(MOD(($T76-今月バイオリズム!$B$4),W$2))/W$2) -> 
A77: 1900-03-14 | B77: 1900-03-14 | C77: =SIN(2*PI()*(MOD(($B77-今月バイオリズム!$B$4),C$2))/C$2) -> 0.9790840877 | D77: =SIN(2*PI()*(MOD(($B77-今月バイオリズム!$B$4),D$2))/D$2) -> -0.7818314825 | E77: =SIN(2*PI()*(MOD(($B77-今月バイオリズム!$B$4),E$2))/E$2) -> 0.9988673392 | F77: ↑ | G77: 高調期（活動期） | H77: 上昇中 | I77: ↓ | J77: 低調期（充電期） | K77: 下降中 | L77: ▽ | M77: 高調期ピーク | N77: 下降中 | O77: 1.196119944 | P77: ↓ | Q77: 高調期（活動期） | R77: 下降中 | U77: =SIN(2*PI()*(MOD(($T77-今月バイオリズム!$B$4),U$2))/U$2) ->  | V77: =SIN(2*PI()*(MOD(($T77-今月バイオリズム!$B$4),V$2))/V$2) ->  | W77: =SIN(2*PI()*(MOD(($T77-今月バイオリズム!$B$4),W$2))/W$2) -> 
A78: 1900-03-15 | B78: 1900-03-15 | C78: =SIN(2*PI()*(MOD(($B78-今月バイオリズム!$B$4),C$2))/C$2) -> 0.9976687692 | D78: =SIN(2*PI()*(MOD(($B78-今月バイオリズム!$B$4),D$2))/D$2) -> -0.9009688679 | E78: =SIN(2*PI()*(MOD(($B78-今月バイオリズム!$B$4),E$2))/E$2) -> 0.9898214419 | F78: ▽ | G78: 高調期ピーク | H78: 下降中 | I78: ↓ | J78: 低調期（充電期） | K78: 下降中 | L78: ↓ | M78: 高調期（活動期） | N78: 下降中 | O78: 1.086521343 | P78: ↓ | Q78: 高調期（活動期） | R78: 下降中 | U78: =SIN(2*PI()*(MOD(($T78-今月バイオリズム!$B$4),U$2))/U$2) ->  | V78: =SIN(2*PI()*(MOD(($T78-今月バイオリズム!$B$4),V$2))/V$2) ->  | W78: =SIN(2*PI()*(MOD(($T78-今月バイオリズム!$B$4),W$2))/W$2) -> 
A79: 1900-03-16 | B79: 1900-03-16 | C79: =SIN(2*PI()*(MOD(($B79-今月バイオリズム!$B$4),C$2))/C$2) -> 0.9422609221 | D79: =SIN(2*PI()*(MOD(($B79-今月バイオリズム!$B$4),D$2))/D$2) -> -0.9749279122 | E79: =SIN(2*PI()*(MOD(($B79-今月バイオリズム!$B$4),E$2))/E$2) -> 0.9450008187 | F79: ↓ | G79: 高調期（活動期） | H79: 下降中 | I79: ↓ | J79: 低調期（充電期） | K79: 下降中 | L79: ↓ | M79: 高調期（活動期） | N79: 下降中 | O79: 0.9123338287 | P79: ↓ | Q79: 高調期（活動期） | R79: 下降中 | U79: =SIN(2*PI()*(MOD(($T79-今月バイオリズム!$B$4),U$2))/U$2) ->  | V79: =SIN(2*PI()*(MOD(($T79-今月バイオリズム!$B$4),V$2))/V$2) ->  | W79: =SIN(2*PI()*(MOD(($T79-今月バイオリズム!$B$4),W$2))/W$2) -> 
A80: 1900-03-17 | B80: 1900-03-17 | C80: =SIN(2*PI()*(MOD(($B80-今月バイオリズム!$B$4),C$2))/C$2) -> 0.816969893 | D80: =SIN(2*PI()*(MOD(($B80-今月バイオリズム!$B$4),D$2))/D$2) -> -1 | E80: =SIN(2*PI()*(MOD(($B80-今月バイオリズム!$B$4),E$2))/E$2) -> 0.8660254038 | F80: ↓ | G80: 高調期（活動期） | H80: 下降中 | I80: ▲ | J80: 低調期ピーク | K80: 下降中 | L80: ↓ | M80: 高調期（活動期） | N80: 下降中 | O80: 0.6829952968 | P80: ↓ | Q80: 高調期（活動期） | R80: 下降中 | U80: =SIN(2*PI()*(MOD(($T80-今月バイオリズム!$B$4),U$2))/U$2) ->  | V80: =SIN(2*PI()*(MOD(($T80-今月バイオリズム!$B$4),V$2))/V$2) ->  | W80: =SIN(2*PI()*(MOD(($T80-今月バイオリズム!$B$4),W$2))/W$2) -> 
A81: 1900-03-18 | B81: 1900-03-18 | C81: =SIN(2*PI()*(MOD(($B81-今月バイオリズム!$B$4),C$2))/C$2) -> 0.6310879443 | D81: =SIN(2*PI()*(MOD(($B81-今月バイオリズム!$B$4),D$2))/D$2) -> -0.9749279122 | E81: =SIN(2*PI()*(MOD(($B81-今月バイオリズム!$B$4),E$2))/E$2) -> 0.7557495744 | F81: ↓ | G81: 高調期（活動期） | H81: 下降中 | I81: ↑ | J81: 低調期（充電期） | K81: 上昇中 | L81: ↓ | M81: 高調期（活動期） | N81: 下降中 | O81: 0.4119096065 | P81: ↓ | Q81: 高調期（活動期） | R81: 下降中 | U81: =SIN(2*PI()*(MOD(($T81-今月バイオリズム!$B$4),U$2))/U$2) ->  | V81: =SIN(2*PI()*(MOD(($T81-今月バイオリズム!$B$4),V$2))/V$2) ->  | W81: =SIN(2*PI()*(MOD(($T81-今月バイオリズム!$B$4),W$2))/W$2) -> 
A82: 1900-03-19 | B82: 1900-03-19 | C82: =SIN(2*PI()*(MOD(($B82-今月バイオリズム!$B$4),C$2))/C$2) -> 0.3984010898 | D82: =SIN(2*PI()*(MOD(($B82-今月バイオリズム!$B$4),D$2))/D$2) -> -0.9009688679 | E82: =SIN(2*PI()*(MOD(($B82-今月バイオリズム!$B$4),E$2))/E$2) -> 0.6181589862 | F82: ↓ | G82: 高調期（活動期） | H82: 下降中 | I82: ↑ | J82: 低調期（充電期） | K82: 上昇中 | L82: ↓ | M82: 高調期（活動期） | N82: 下降中 | O82: 0.1155912082 | P82: ↓ | Q82: 高調期（活動期） | R82: 下降中 | U82: =SIN(2*PI()*(MOD(($T82-今月バイオリズム!$B$4),U$2))/U$2) ->  | V82: =SIN(2*PI()*(MOD(($T82-今月バイオリズム!$B$4),V$2))/V$2) ->  | W82: =SIN(2*PI()*(MOD(($T82-今月バイオリズム!$B$4),W$2))/W$2) -> 
A83: 1900-03-20 | B83: 1900-03-20 | C83: =SIN(2*PI()*(MOD(($B83-今月バイオリズム!$B$4),C$2))/C$2) -> 0.1361666491 | D83: =SIN(2*PI()*(MOD(($B83-今月バイオリズム!$B$4),D$2))/D$2) -> -0.7818314825 | E83: =SIN(2*PI()*(MOD(($B83-今月バイオリズム!$B$4),E$2))/E$2) -> 0.4582265217 | F83: ↓ | G83: 高調期（活動期） | H83: 下降中 | I83: ↑ | J83: 低調期（充電期） | K83: 上昇中 | L83: ↓ | M83: 高調期（活動期） | N83: 下降中 | O83: -0.1874383116 | P83: ↓ | Q83: 要注意 | U83: =SIN(2*PI()*(MOD(($T83-今月バイオリズム!$B$4),U$2))/U$2) ->  | V83: =SIN(2*PI()*(MOD(($T83-今月バイオリズム!$B$4),V$2))/V$2) ->  | W83: =SIN(2*PI()*(MOD(($T83-今月バイオリズム!$B$4),W$2))/W$2) -> 
A84: 1900-03-21 | B84: 1900-03-21 | C84: =SIN(2*PI()*(MOD(($B84-今月バイオリズム!$B$4),C$2))/C$2) -> -0.1361666491 | D84: =SIN(2*PI()*(MOD(($B84-今月バイオリズム!$B$4),D$2))/D$2) -> -0.6234898019 | E84: =SIN(2*PI()*(MOD(($B84-今月バイオリズム!$B$4),E$2))/E$2) -> 0.2817325568 | F84: ↓ | G84: 要注意 | I84: ↑ | J84: 低調期（充電期） | K84: 上昇中 | L84: ↓ | M84: 高調期（活動期） | N84: 下降中 | O84: -0.4779238941 | P84: ↓ | Q84: 低調期（充電期） | R84: 下降中 | U84: =SIN(2*PI()*(MOD(($T84-今月バイオリズム!$B$4),U$2))/U$2) ->  | V84: =SIN(2*PI()*(MOD(($T84-今月バイオリズム!$B$4),V$2))/V$2) ->  | W84: =SIN(2*PI()*(MOD(($T84-今月バイオリズム!$B$4),W$2))/W$2) -> 
A85: 1900-03-22 | B85: 1900-03-22 | C85: =SIN(2*PI()*(MOD(($B85-今月バイオリズム!$B$4),C$2))/C$2) -> -0.3984010898 | D85: =SIN(2*PI()*(MOD(($B85-今月バイオリズム!$B$4),D$2))/D$2) -> -0.4338837391 | E85: =SIN(2*PI()*(MOD(($B85-今月バイオリズム!$B$4),E$2))/E$2) -> 0.0950560433 | F85: ↓ | G85: 低調期（充電期） | H85: 下降中 | I85: ↑ | J85: 低調期（充電期） | K85: 上昇中 | L85: ↓ | M85: 高調期（活動期） | N85: 下降中 | O85: -0.7372287857 | P85: ↓ | Q85: 低調期（充電期） | R85: 下降中 | U85: =SIN(2*PI()*(MOD(($T85-今月バイオリズム!$B$4),U$2))/U$2) ->  | V85: =SIN(2*PI()*(MOD(($T85-今月バイオリズム!$B$4),V$2))/V$2) ->  | W85: =SIN(2*PI()*(MOD(($T85-今月バイオリズム!$B$4),W$2))/W$2) -> 
A86: 1900-03-23 | B86: 1900-03-23 | C86: =SIN(2*PI()*(MOD(($B86-今月バイオリズム!$B$4),C$2))/C$2) -> -0.6310879443 | D86: =SIN(2*PI()*(MOD(($B86-今月バイオリズム!$B$4),D$2))/D$2) -> -0.222520934 | E86: =SIN(2*PI()*(MOD(($B86-今月バイオリズム!$B$4),E$2))/E$2) -> -0.0950560433 | F86: ↓ | G86: 低調期（充電期） | H86: 下降中 | I86: ↑ | J86: 低調期（充電期） | K86: 上昇中 | L86: ↓ | M86: 要注意 | O86: -0.9486649216 | P86: ↓ | Q86: 低調期（充電期） | R86: 下降中 | U86: =SIN(2*PI()*(MOD(($T86-今月バイオリズム!$B$4),U$2))/U$2) ->  | V86: =SIN(2*PI()*(MOD(($T86-今月バイオリズム!$B$4),V$2))/V$2) ->  | W86: =SIN(2*PI()*(MOD(($T86-今月バイオリズム!$B$4),W$2))/W$2) -> 
A87: 1900-03-24 | B87: 1900-03-24 | C87: =SIN(2*PI()*(MOD(($B87-今月バイオリズム!$B$4),C$2))/C$2) -> -0.816969893 | D87: =SIN(2*PI()*(MOD(($B87-今月バイオリズム!$B$4),D$2))/D$2) -> 0 | E87: =SIN(2*PI()*(MOD(($B87-今月バイオリズム!$B$4),E$2))/E$2) -> -0.2817325568 | F87: ↓ | G87: 低調期（充電期） | H87: 下降中 | I87: ↑ | J87: 要注意 | L87: ↓ | M87: 低調期（充電期） | N87: 下降中 | O87: -1.09870245 | P87: ↓ | Q87: 低調期（充電期） | R87: 下降中 | U87: =SIN(2*PI()*(MOD(($T87-今月バイオリズム!$B$4),U$2))/U$2) ->  | V87: =SIN(2*PI()*(MOD(($T87-今月バイオリズム!$B$4),V$2))/V$2) ->  | W87: =SIN(2*PI()*(MOD(($T87-今月バイオリズム!$B$4),W$2))/W$2) -> 
A88: 1900-03-25 | B88: 1900-03-25 | C88: =SIN(2*PI()*(MOD(($B88-今月バイオリズム!$B$4),C$2))/C$2) -> -0.9422609221 | D88: =SIN(2*PI()*(MOD(($B88-今月バイオリズム!$B$4),D$2))/D$2) -> 0.222520934 | E88: =SIN(2*PI()*(MOD(($B88-今月バイオリズム!$B$4),E$2))/E$2) -> -0.4582265217 | F88: ↓ | G88: 低調期（充電期） | H88: 下降中 | I88: ↑ | J88: 要注意 | L88: ↓ | M88: 低調期（充電期） | N88: 下降中 | O88: -1.17796651 | P88: ↓ | Q88: 低調期（充電期） | R88: 下降中 | U88: =SIN(2*PI()*(MOD(($T88-今月バイオリズム!$B$4),U$2))/U$2) ->  | V88: =SIN(2*PI()*(MOD(($T88-今月バイオリズム!$B$4),V$2))/V$2) ->  | W88: =SIN(2*PI()*(MOD(($T88-今月バイオリズム!$B$4),W$2))/W$2) -> 
A89: 1900-03-26 | B89: 1900-03-26 | C89: =SIN(2*PI()*(MOD(($B89-今月バイオリズム!$B$4),C$2))/C$2) -> -0.9976687692 | D89: =SIN(2*PI()*(MOD(($B89-今月バイオリズム!$B$4),D$2))/D$2) -> 0.4338837391 | E89: =SIN(2*PI()*(MOD(($B89-今月バイオリズム!$B$4),E$2))/E$2) -> -0.6181589862 | F89: ▲ | G89: 低調期ピーク | H89: 下降中 | I89: ↑ | J89: 高調期（活動期） | K89: 上昇中 | L89: ↓ | M89: 低調期（充電期） | N89: 下降中 | O89: -1.181944016 | P89: ▲ | Q89: 低調期ピーク | R89: 下降中 | U89: =SIN(2*PI()*(MOD(($T89-今月バイオリズム!$B$4),U$2))/U$2) ->  | V89: =SIN(2*PI()*(MOD(($T89-今月バイオリズム!$B$4),V$2))/V$2) ->  | W89: =SIN(2*PI()*(MOD(($T89-今月バイオリズム!$B$4),W$2))/W$2) -> 
A90: 1900-03-27 | B90: 1900-03-27 | C90: =SIN(2*PI()*(MOD(($B90-今月バイオリズム!$B$4),C$2))/C$2) -> -0.9790840877 | D90: =SIN(2*PI()*(MOD(($B90-今月バイオリズム!$B$4),D$2))/D$2) -> 0.6234898019 | E90: =SIN(2*PI()*(MOD(($B90-今月バイオリズム!$B$4),E$2))/E$2) -> -0.7557495744 | F90: ↑ | G90: 低調期（充電期） | H90: 上昇中 | I90: ↑ | J90: 高調期（活動期） | K90: 上昇中 | L90: ↓ | M90: 低調期（充電期） | N90: 下降中 | O90: -1.11134386 | P90: ↑ | Q90: 低調期（充電期） | R90: 上昇中 | U90: =SIN(2*PI()*(MOD(($T90-今月バイオリズム!$B$4),U$2))/U$2) ->  | V90: =SIN(2*PI()*(MOD(($T90-今月バイオリズム!$B$4),V$2))/V$2) ->  | W90: =SIN(2*PI()*(MOD(($T90-今月バイオリズム!$B$4),W$2))/W$2) -> 
A91: 1900-03-28 | B91: 1900-03-28 | C91: =SIN(2*PI()*(MOD(($B91-今月バイオリズム!$B$4),C$2))/C$2) -> -0.8878852184 | D91: =SIN(2*PI()*(MOD(($B91-今月バイオリズム!$B$4),D$2))/D$2) -> 0.7818314825 | E91: =SIN(2*PI()*(MOD(($B91-今月バイオリズム!$B$4),E$2))/E$2) -> -0.8660254038 | F91: ↑ | G91: 低調期（充電期） | H91: 上昇中 | I91: ↑ | J91: 高調期（活動期） | K91: 上昇中 | L91: ↓ | M91: 低調期（充電期） | N91: 下降中 | O91: -0.9720791397 | P91: ↑ | Q91: 低調期（充電期） | R91: 上昇中 | U91: =SIN(2*PI()*(MOD(($T91-今月バイオリズム!$B$4),U$2))/U$2) ->  | V91: =SIN(2*PI()*(MOD(($T91-今月バイオリズム!$B$4),V$2))/V$2) ->  | W91: =SIN(2*PI()*(MOD(($T91-今月バイオリズム!$B$4),W$2))/W$2) -> 
A92: 1900-03-29 | B92: 1900-03-29 | C92: =SIN(2*PI()*(MOD(($B92-今月バイオリズム!$B$4),C$2))/C$2) -> -0.7308359643 | D92: =SIN(2*PI()*(MOD(($B92-今月バイオリズム!$B$4),D$2))/D$2) -> 0.9009688679 | E92: =SIN(2*PI()*(MOD(($B92-今月バイオリズム!$B$4),E$2))/E$2) -> -0.9450008187 | F92: ↑ | G92: 低調期（充電期） | H92: 上昇中 | I92: ↑ | J92: 高調期（活動期） | K92: 上昇中 | L92: ↓ | M92: 低調期（充電期） | N92: 下降中 | O92: -0.7748679151 | P92: ↑ | Q92: 低調期（充電期） | R92: 上昇中 | U92: =SIN(2*PI()*(MOD(($T92-今月バイオリズム!$B$4),U$2))/U$2) ->  | V92: =SIN(2*PI()*(MOD(($T92-今月バイオリズム!$B$4),V$2))/V$2) ->  | W92: =SIN(2*PI()*(MOD(($T92-今月バイオリズム!$B$4),W$2))/W$2) -> 
A93: 1900-03-30 | B93: 1900-03-30 | C93: =SIN(2*PI()*(MOD(($B93-今月バイオリズム!$B$4),C$2))/C$2) -> -0.51958395 | D93: =SIN(2*PI()*(MOD(($B93-今月バイオリズム!$B$4),D$2))/D$2) -> 0.9749279122 | E93: =SIN(2*PI()*(MOD(($B93-今月バイオリズム!$B$4),E$2))/E$2) -> -0.9898214419 | F93: ↑ | G93: 低調期（充電期） | H93: 上昇中 | I93: ↑ | J93: 高調期（活動期） | K93: 上昇中 | L93: ↓ | M93: 低調期（充電期） | N93: 下降中 | O93: -0.5344774797 | P93: ↑ | Q93: 低調期（充電期） | R93: 上昇中 | U93: =SIN(2*PI()*(MOD(($T93-今月バイオリズム!$B$4),U$2))/U$2) ->  | V93: =SIN(2*PI()*(MOD(($T93-今月バイオリズム!$B$4),V$2))/V$2) ->  | W93: =SIN(2*PI()*(MOD(($T93-今月バイオリズム!$B$4),W$2))/W$2) -> 
A94: 1900-03-31 | B94: 1900-03-31 | C94: =SIN(2*PI()*(MOD(($B94-今月バイオリズム!$B$4),C$2))/C$2) -> -0.2697967712 | D94: =SIN(2*PI()*(MOD(($B94-今月バイオリズム!$B$4),D$2))/D$2) -> 1 | E94: =SIN(2*PI()*(MOD(($B94-今月バイオリズム!$B$4),E$2))/E$2) -> -0.9988673392 | F94: ↑ | G94: 低調期（充電期） | H94: 上昇中 | I94: ▽ | J94: 高調期ピーク | K94: 下降中 | L94: ▲ | M94: 低調期ピーク | N94: 下降中 | O94: -0.2686641103 | P94: ↑ | Q94: 低調期（充電期） | R94: 上昇中 | U94: =SIN(2*PI()*(MOD(($T94-今月バイオリズム!$B$4),U$2))/U$2) ->  | V94: =SIN(2*PI()*(MOD(($T94-今月バイオリズム!$B$4),V$2))/V$2) ->  | W94: =SIN(2*PI()*(MOD(($T94-今月バイオリズム!$B$4),W$2))/W$2) -> 
A95: 1900-04-01 | B95: 1900-04-01 | C95: =SIN(2*PI()*(MOD(($B95-今月バイオリズム!$B$4),C$2))/C$2) -> 0 | D95: =SIN(2*PI()*(MOD(($B95-今月バイオリズム!$B$4),D$2))/D$2) -> 0.9749279122 | E95: =SIN(2*PI()*(MOD(($B95-今月バイオリズム!$B$4),E$2))/E$2) -> -0.9718115683 | F95: ↑ | G95: 要注意 | I95: ↓ | J95: 高調期（活動期） | K95: 下降中 | L95: ↑ | M95: 低調期（充電期） | N95: 上昇中 | O95: 0.003116343858 | P95: ↑ | Q95: 要注意 | U95: =SIN(2*PI()*(MOD(($T95-今月バイオリズム!$B$4),U$2))/U$2) ->  | V95: =SIN(2*PI()*(MOD(($T95-今月バイオリズム!$B$4),V$2))/V$2) ->  | W95: =SIN(2*PI()*(MOD(($T95-今月バイオリズム!$B$4),W$2))/W$2) -> 
A96: 1900-04-02 | B96: 1900-04-02 | C96: =SIN(2*PI()*(MOD(($B96-今月バイオリズム!$B$4),C$2))/C$2) -> 0.2697967712 | D96: =SIN(2*PI()*(MOD(($B96-今月バイオリズム!$B$4),D$2))/D$2) -> 0.9009688679 | E96: =SIN(2*PI()*(MOD(($B96-今月バイオリズム!$B$4),E$2))/E$2) -> -0.9096319954 | F96: ↑ | G96: 要注意 | I96: ↓ | J96: 高調期（活動期） | K96: 下降中 | L96: ↑ | M96: 低調期（充電期） | N96: 上昇中 | O96: 0.2611336437 | P96: ↑ | Q96: 高調期（活動期） | R96: 上昇中 | U96: =SIN(2*PI()*(MOD(($T96-今月バイオリズム!$B$4),U$2))/U$2) ->  | V96: =SIN(2*PI()*(MOD(($T96-今月バイオリズム!$B$4),V$2))/V$2) ->  | W96: =SIN(2*PI()*(MOD(($T96-今月バイオリズム!$B$4),W$2))/W$2) -> 
A97: 1900-04-03 | B97: 1900-04-03 | C97: =SIN(2*PI()*(MOD(($B97-今月バイオリズム!$B$4),C$2))/C$2) -> 0.51958395 | D97: =SIN(2*PI()*(MOD(($B97-今月バイオリズム!$B$4),D$2))/D$2) -> 0.7818314825 | E97: =SIN(2*PI()*(MOD(($B97-今月バイオリズム!$B$4),E$2))/E$2) -> -0.8145759521 | F97: ↑ | G97: 高調期（活動期） | H97: 上昇中 | I97: ↓ | J97: 高調期（活動期） | K97: 下降中 | L97: ↑ | M97: 低調期（充電期） | N97: 上昇中 | O97: 0.4868394805 | P97: ↑ | Q97: 高調期（活動期） | R97: 上昇中 | U97: =SIN(2*PI()*(MOD(($T97-今月バイオリズム!$B$4),U$2))/U$2) ->  | V97: =SIN(2*PI()*(MOD(($T97-今月バイオリズム!$B$4),V$2))/V$2) ->  | W97: =SIN(2*PI()*(MOD(($T97-今月バイオリズム!$B$4),W$2))/W$2) -> 
A98: 1900-04-04 | B98: 1900-04-04 | C98: =SIN(2*PI()*(MOD(($B98-今月バイオリズム!$B$4),C$2))/C$2) -> 0.7308359643 | D98: =SIN(2*PI()*(MOD(($B98-今月バイオリズム!$B$4),D$2))/D$2) -> 0.6234898019 | E98: =SIN(2*PI()*(MOD(($B98-今月バイオリズム!$B$4),E$2))/E$2) -> -0.6900790115 | F98: ↑ | G98: 高調期（活動期） | H98: 上昇中 | I98: ↓ | J98: 高調期（活動期） | K98: 下降中 | L98: ↑ | M98: 低調期（充電期） | N98: 上昇中 | O98: 0.6642467547 | P98: ↑ | Q98: 高調期（活動期） | R98: 上昇中 | U98: =SIN(2*PI()*(MOD(($T98-今月バイオリズム!$B$4),U$2))/U$2) ->  | V98: =SIN(2*PI()*(MOD(($T98-今月バイオリズム!$B$4),V$2))/V$2) ->  | W98: =SIN(2*PI()*(MOD(($T98-今月バイオリズム!$B$4),W$2))/W$2) -> 
A99: 1900-04-05 | B99: 1900-04-05 | C99: =SIN(2*PI()*(MOD(($B99-今月バイオリズム!$B$4),C$2))/C$2) -> 0.8878852184 | D99: =SIN(2*PI()*(MOD(($B99-今月バイオリズム!$B$4),D$2))/D$2) -> 0.4338837391 | E99: =SIN(2*PI()*(MOD(($B99-今月バイオリズム!$B$4),E$2))/E$2) -> -0.5406408175 | F99: ↑ | G99: 高調期（活動期） | H99: 上昇中 | I99: ↓ | J99: 高調期（活動期） | K99: 下降中 | L99: ↑ | M99: 低調期（充電期） | N99: 上昇中 | O99: 0.7811281401 | P99: ↑ | Q99: 高調期（活動期） | R99: 上昇中 | S99: =T99 ->  | U99: =SIN(2*PI()*(MOD(($T99-今月バイオリズム!$B$4),U$2))/U$2) ->  | V99: =SIN(2*PI()*(MOD(($T99-今月バイオリズム!$B$4),V$2))/V$2) ->  | W99: =SIN(2*PI()*(MOD(($T99-今月バイオリズム!$B$4),W$2))/W$2) ->  | Y99: =IF(OR(AND(U98<=0,U99>=0),AND(U98>=0,U99<=0)),"要注意",IF(U99>0,IF(X99="▽","高調期ピーク","高調期（活動期）"),IF(X99="▲","低調期ピーク","低調期（充電期）"))) ->  | AB99: =IF(OR(AND(V98<=0,V99>=0),AND(V98>=0,V99<=0)),"要注意",IF(V99>0,IF(AA99="▽","高調期ピーク","高調期（活動期）"),IF(AA99="▲","低調期ピーク","低調期（充電期）"))) ->  | AE99: =IF(OR(AND(W98<=0,W99>=0),AND(W98>=0,W99<=0)),"要注意",IF(W99>0,IF(AD99="▽","高調期ピーク","高調期（活動期）"),IF(AD99="▲","低調期ピーク","低調期（充電期）"))) ->  | AG99: =T99 -> 
A100: 1900-04-06 | B100: 1900-04-06 | C100: =SIN(2*PI()*(MOD(($B100-今月バイオリズム!$B$4),C$2))/C$2) -> 0.9790840877 | D100: =SIN(2*PI()*(MOD(($B100-今月バイオリズム!$B$4),D$2))/D$2) -> 0.222520934 | E100: =SIN(2*PI()*(MOD(($B100-今月バイオリズム!$B$4),E$2))/E$2) -> -0.3716624557 | F100: ↑ | G100: 高調期（活動期） | H100: 上昇中 | I100: ↓ | J100: 高調期（活動期） | K100: 下降中 | L100: ↑ | M100: 低調期（充電期） | N100: 上昇中 | O100: 0.829942566 | P100: ▽ | Q100: 高調期ピーク | R100: 下降中 | U100: =SIN(2*PI()*(MOD(($T100-今月バイオリズム!$B$4),U$2))/U$2) ->  | V100: =SIN(2*PI()*(MOD(($T100-今月バイオリズム!$B$4),V$2))/V$2) ->  | W100: =SIN(2*PI()*(MOD(($T100-今月バイオリズム!$B$4),W$2))/W$2) -> 
A101: 1900-04-07 | B101: 1900-04-07 | C101: =SIN(2*PI()*(MOD(($B101-今月バイオリズム!$B$4),C$2))/C$2) -> 0.9976687692 | D101: =SIN(2*PI()*(MOD(($B101-今月バイオリズム!$B$4),D$2))/D$2) -> 1.225148455e-16 | E101: =SIN(2*PI()*(MOD(($B101-今月バイオリズム!$B$4),E$2))/E$2) -> -0.1892512444 | F101: ▽ | G101: 高調期ピーク | H101: 下降中 | I101: ↓ | J101: 高調期（活動期） | K101: 下降中 | L101: ↑ | M101: 低調期（充電期） | N101: 上昇中 | O101: 0.8084175248 | P101: ↓ | Q101: 高調期（活動期） | R101: 下降中 | U101: =SIN(2*PI()*(MOD(($T101-今月バイオリズム!$B$4),U$2))/U$2) ->  | V101: =SIN(2*PI()*(MOD(($T101-今月バイオリズム!$B$4),V$2))/V$2) ->  | W101: =SIN(2*PI()*(MOD(($T101-今月バイオリズム!$B$4),W$2))/W$2) -> 
A102: 1900-04-08 | B102: 1900-04-08 | C102: =SIN(2*PI()*(MOD(($B102-今月バイオリズム!$B$4),C$2))/C$2) -> 0.9422609221 | D102: =SIN(2*PI()*(MOD(($B102-今月バイオリズム!$B$4),D$2))/D$2) -> -0.222520934 | E102: =SIN(2*PI()*(MOD(($B102-今月バイオリズム!$B$4),E$2))/E$2) -> 0 | F102: ↓ | G102: 高調期（活動期） | H102: 下降中 | I102: ↓ | J102: 要注意 | L102: ↑ | M102: 要注意 | O102: 0.7197399882 | P102: ↓ | Q102: 高調期（活動期） | R102: 下降中 | U102: =SIN(2*PI()*(MOD(($T102-今月バイオリズム!$B$4),U$2))/U$2) ->  | V102: =SIN(2*PI()*(MOD(($T102-今月バイオリズム!$B$4),V$2))/V$2) ->  | W102: =SIN(2*PI()*(MOD(($T102-今月バイオリズム!$B$4),W$2))/W$2) -> 
A103: 1900-04-09 | B103: 1900-04-09 | C103: =SIN(2*PI()*(MOD(($B103-今月バイオリズム!$B$4),C$2))/C$2) -> 0.816969893 | D103: =SIN(2*PI()*(MOD(($B103-今月バイオリズム!$B$4),D$2))/D$2) -> -0.4338837391 | E103: =SIN(2*PI()*(MOD(($B103-今月バイオリズム!$B$4),E$2))/E$2) -> 0.1892512444 | F103: ↓ | G103: 高調期（活動期） | H103: 下降中 | I103: ↓ | J103: 低調期（充電期） | K103: 下降中 | L103: ↑ | M103: 要注意 | O103: 0.5723373983 | P103: ↓ | Q103: 高調期（活動期） | R103: 下降中 | U103: =SIN(2*PI()*(MOD(($T103-今月バイオリズム!$B$4),U$2))/U$2) ->  | V103: =SIN(2*PI()*(MOD(($T103-今月バイオリズム!$B$4),V$2))/V$2) ->  | W103: =SIN(2*PI()*(MOD(($T103-今月バイオリズム!$B$4),W$2))/W$2) -> 
A104: 1900-04-10 | B104: 1900-04-10 | C104: =SIN(2*PI()*(MOD(($B104-今月バイオリズム!$B$4),C$2))/C$2) -> 0.6310879443 | D104: =SIN(2*PI()*(MOD(($B104-今月バイオリズム!$B$4),D$2))/D$2) -> -0.6234898019 | E104: =SIN(2*PI()*(MOD(($B104-今月バイオリズム!$B$4),E$2))/E$2) -> 0.3716624557 | F104: ↓ | G104: 高調期（活動期） | H104: 下降中 | I104: ↓ | J104: 低調期（充電期） | K104: 下降中 | L104: ↑ | M104: 高調期（活動期） | N104: 上昇中 | O104: 0.3792605981 | P104: ↓ | Q104: 高調期（活動期） | R104: 下降中 | U104: =SIN(2*PI()*(MOD(($T104-今月バイオリズム!$B$4),U$2))/U$2) ->  | V104: =SIN(2*PI()*(MOD(($T104-今月バイオリズム!$B$4),V$2))/V$2) ->  | W104: =SIN(2*PI()*(MOD(($T104-今月バイオリズム!$B$4),W$2))/W$2) -> 
A105: 1900-04-11 | B105: 1900-04-11 | C105: =SIN(2*PI()*(MOD(($B105-今月バイオリズム!$B$4),C$2))/C$2) -> 0.3984010898 | D105: =SIN(2*PI()*(MOD(($B105-今月バイオリズム!$B$4),D$2))/D$2) -> -0.7818314825 | E105: =SIN(2*PI()*(MOD(($B105-今月バイオリズム!$B$4),E$2))/E$2) -> 0.5406408175 | F105: ↓ | G105: 高調期（活動期） | H105: 下降中 | I105: ↓ | J105: 低調期（充電期） | K105: 下降中 | L105: ↑ | M105: 高調期（活動期） | N105: 上昇中 | O105: 0.1572104248 | P105: ↓ | Q105: 高調期（活動期） | R105: 下降中 | U105: =SIN(2*PI()*(MOD(($T105-今月バイオリズム!$B$4),U$2))/U$2) ->  | V105: =SIN(2*PI()*(MOD(($T105-今月バイオリズム!$B$4),V$2))/V$2) ->  | W105: =SIN(2*PI()*(MOD(($T105-今月バイオリズム!$B$4),W$2))/W$2) -> 
A106: 1900-04-12 | B106: 1900-04-12 | C106: =SIN(2*PI()*(MOD(($B106-今月バイオリズム!$B$4),C$2))/C$2) -> 0.1361666491 | D106: =SIN(2*PI()*(MOD(($B106-今月バイオリズム!$B$4),D$2))/D$2) -> -0.9009688679 | E106: =SIN(2*PI()*(MOD(($B106-今月バイオリズム!$B$4),E$2))/E$2) -> 0.6900790115 | F106: ↓ | G106: 高調期（活動期） | H106: 下降中 | I106: ↓ | J106: 低調期（充電期） | K106: 下降中 | L106: ↑ | M106: 高調期（活動期） | N106: 上昇中 | O106: -0.07472320732 | P106: ↓ | Q106: 要注意 | U106: =SIN(2*PI()*(MOD(($T106-今月バイオリズム!$B$4),U$2))/U$2) ->  | V106: =SIN(2*PI()*(MOD(($T106-今月バイオリズム!$B$4),V$2))/V$2) ->  | W106: =SIN(2*PI()*(MOD(($T106-今月バイオリズム!$B$4),W$2))/W$2) -> 
A107: 1900-04-13 | B107: 1900-04-13 | C107: =SIN(2*PI()*(MOD(($B107-今月バイオリズム!$B$4),C$2))/C$2) -> -0.1361666491 | D107: =SIN(2*PI()*(MOD(($B107-今月バイオリズム!$B$4),D$2))/D$2) -> -0.9749279122 | E107: =SIN(2*PI()*(MOD(($B107-今月バイオリズム!$B$4),E$2))/E$2) -> 0.8145759521 | F107: ↓ | G107: 要注意 | I107: ↓ | J107: 低調期（充電期） | K107: 下降中 | L107: ↑ | M107: 高調期（活動期） | N107: 上昇中 | O107: -0.2965186092 | P107: ↓ | Q107: 低調期（充電期） | R107: 下降中 | U107: =SIN(2*PI()*(MOD(($T107-今月バイオリズム!$B$4),U$2))/U$2) ->  | V107: =SIN(2*PI()*(MOD(($T107-今月バイオリズム!$B$4),V$2))/V$2) ->  | W107: =SIN(2*PI()*(MOD(($T107-今月バイオリズム!$B$4),W$2))/W$2) -> 
A108: 1900-04-14 | B108: 1900-04-14 | C108: =SIN(2*PI()*(MOD(($B108-今月バイオリズム!$B$4),C$2))/C$2) -> -0.3984010898 | D108: =SIN(2*PI()*(MOD(($B108-今月バイオリズム!$B$4),D$2))/D$2) -> -1 | E108: =SIN(2*PI()*(MOD(($B108-今月バイオリズム!$B$4),E$2))/E$2) -> 0.9096319954 | F108: ↓ | G108: 低調期（充電期） | H108: 下降中 | I108: ▲ | J108: 低調期ピーク | K108: 下降中 | L108: ↑ | M108: 高調期（活動期） | N108: 上昇中 | O108: -0.4887690945 | P108: ↓ | Q108: 低調期（充電期） | R108: 下降中 | U108: =SIN(2*PI()*(MOD(($T108-今月バイオリズム!$B$4),U$2))/U$2) ->  | V108: =SIN(2*PI()*(MOD(($T108-今月バイオリズム!$B$4),V$2))/V$2) ->  | W108: =SIN(2*PI()*(MOD(($T108-今月バイオリズム!$B$4),W$2))/W$2) -> 
A109: 1900-04-15 | B109: 1900-04-15 | C109: =SIN(2*PI()*(MOD(($B109-今月バイオリズム!$B$4),C$2))/C$2) -> -0.6310879443 | D109: =SIN(2*PI()*(MOD(($B109-今月バイオリズム!$B$4),D$2))/D$2) -> -0.9749279122 | E109: =SIN(2*PI()*(MOD(($B109-今月バイオリズム!$B$4),E$2))/E$2) -> 0.9718115683 | F109: ↓ | G109: 低調期（充電期） | H109: 下降中 | I109: ↑ | J109: 低調期（充電期） | K109: 上昇中 | L109: ↑ | M109: 高調期（活動期） | N109: 上昇中 | O109: -0.6342042882 | P109: ↓ | Q109: 低調期（充電期） | R109: 下降中 | U109: =SIN(2*PI()*(MOD(($T109-今月バイオリズム!$B$4),U$2))/U$2) ->  | V109: =SIN(2*PI()*(MOD(($T109-今月バイオリズム!$B$4),V$2))/V$2) ->  | W109: =SIN(2*PI()*(MOD(($T109-今月バイオリズム!$B$4),W$2))/W$2) -> 
A110: 1900-04-16 | B110: 1900-04-16 | C110: =SIN(2*PI()*(MOD(($B110-今月バイオリズム!$B$4),C$2))/C$2) -> -0.816969893 | D110: =SIN(2*PI()*(MOD(($B110-今月バイオリズム!$B$4),D$2))/D$2) -> -0.9009688679 | E110: =SIN(2*PI()*(MOD(($B110-今月バイオリズム!$B$4),E$2))/E$2) -> 0.9988673392 | F110: ↓ | G110: 低調期（充電期） | H110: 下降中 | I110: ↑ | J110: 低調期（充電期） | K110: 上昇中 | L110: ▽ | M110: 高調期ピーク | N110: 下降中 | O110: -0.7190714217 | P110: ↓ | Q110: 低調期（充電期） | R110: 下降中 | U110: =SIN(2*PI()*(MOD(($T110-今月バイオリズム!$B$4),U$2))/U$2) ->  | V110: =SIN(2*PI()*(MOD(($T110-今月バイオリズム!$B$4),V$2))/V$2) ->  | W110: =SIN(2*PI()*(MOD(($T110-今月バイオリズム!$B$4),W$2))/W$2) -> 
A111: 1900-04-17 | B111: 1900-04-17 | C111: =SIN(2*PI()*(MOD(($B111-今月バイオリズム!$B$4),C$2))/C$2) -> -0.9422609221 | D111: =SIN(2*PI()*(MOD(($B111-今月バイオリズム!$B$4),D$2))/D$2) -> -0.7818314825 | E111: =SIN(2*PI()*(MOD(($B111-今月バイオリズム!$B$4),E$2))/E$2) -> 0.9898214419 | F111: ↓ | G111: 低調期（充電期） | H111: 下降中 | I111: ↑ | J111: 低調期（充電期） | K111: 上昇中 | L111: ↓ | M111: 高調期（活動期） | N111: 下降中 | O111: -0.7342709627 | P111: ▲ | Q111: 低調期ピーク | R111: 下降中 | U111: =SIN(2*PI()*(MOD(($T111-今月バイオリズム!$B$4),U$2))/U$2) ->  | V111: =SIN(2*PI()*(MOD(($T111-今月バイオリズム!$B$4),V$2))/V$2) ->  | W111: =SIN(2*PI()*(MOD(($T111-今月バイオリズム!$B$4),W$2))/W$2) -> 
A112: 1900-04-18 | B112: 1900-04-18 | C112: =SIN(2*PI()*(MOD(($B112-今月バイオリズム!$B$4),C$2))/C$2) -> -0.9976687692 | D112: =SIN(2*PI()*(MOD(($B112-今月バイオリズム!$B$4),D$2))/D$2) -> -0.6234898019 | E112: =SIN(2*PI()*(MOD(($B112-今月バイオリズム!$B$4),E$2))/E$2) -> 0.9450008187 | F112: ▲ | G112: 低調期ピーク | H112: 下降中 | I112: ↑ | J112: 低調期（充電期） | K112: 上昇中 | L112: ↓ | M112: 高調期（活動期） | N112: 下降中 | O112: -0.6761577523 | P112: ↑ | Q112: 低調期（充電期） | R112: 上昇中 | U112: =SIN(2*PI()*(MOD(($T112-今月バイオリズム!$B$4),U$2))/U$2) ->  | V112: =SIN(2*PI()*(MOD(($T112-今月バイオリズム!$B$4),V$2))/V$2) ->  | W112: =SIN(2*PI()*(MOD(($T112-今月バイオリズム!$B$4),W$2))/W$2) -> 
A113: 1900-04-19 | B113: 1900-04-19 | C113: =SIN(2*PI()*(MOD(($B113-今月バイオリズム!$B$4),C$2))/C$2) -> -0.9790840877 | D113: =SIN(2*PI()*(MOD(($B113-今月バイオリズム!$B$4),D$2))/D$2) -> -0.4338837391 | E113: =SIN(2*PI()*(MOD(($B113-今月バイオリズム!$B$4),E$2))/E$2) -> 0.8660254038 | F113: ↑ | G113: 低調期（充電期） | H113: 上昇中 | I113: ↑ | J113: 低調期（充電期） | K113: 上昇中 | L113: ↓ | M113: 高調期（活動期） | N113: 下降中 | O113: -0.546942423 | P113: ↑ | Q113: 低調期（充電期） | R113: 上昇中 | U113: =SIN(2*PI()*(MOD(($T113-今月バイオリズム!$B$4),U$2))/U$2) ->  | V113: =SIN(2*PI()*(MOD(($T113-今月バイオリズム!$B$4),V$2))/V$2) ->  | W113: =SIN(2*PI()*(MOD(($T113-今月バイオリズム!$B$4),W$2))/W$2) -> 
A114: 1900-04-20 | B114: 1900-04-20 | C114: =SIN(2*PI()*(MOD(($B114-今月バイオリズム!$B$4),C$2))/C$2) -> -0.8878852184 | D114: =SIN(2*PI()*(MOD(($B114-今月バイオリズム!$B$4),D$2))/D$2) -> -0.222520934 | E114: =SIN(2*PI()*(MOD(($B114-今月バイオリズム!$B$4),E$2))/E$2) -> 0.7557495744 | F114: ↑ | G114: 低調期（充電期） | H114: 上昇中 | I114: ↑ | J114: 低調期（充電期） | K114: 上昇中 | L114: ↓ | M114: 高調期（活動期） | N114: 下降中 | O114: -0.354656578 | P114: ↑ | Q114: 低調期（充電期） | R114: 上昇中 | U114: =SIN(2*PI()*(MOD(($T114-今月バイオリズム!$B$4),U$2))/U$2) ->  | V114: =SIN(2*PI()*(MOD(($T114-今月バイオリズム!$B$4),V$2))/V$2) ->  | W114: =SIN(2*PI()*(MOD(($T114-今月バイオリズム!$B$4),W$2))/W$2) -> 
A115: 1900-04-21 | B115: 1900-04-21 | C115: =SIN(2*PI()*(MOD(($B115-今月バイオリズム!$B$4),C$2))/C$2) -> -0.7308359643 | D115: =SIN(2*PI()*(MOD(($B115-今月バイオリズム!$B$4),D$2))/D$2) -> 0 | E115: =SIN(2*PI()*(MOD(($B115-今月バイオリズム!$B$4),E$2))/E$2) -> 0.6181589862 | F115: ↑ | G115: 低調期（充電期） | H115: 上昇中 | I115: ↑ | J115: 要注意 | L115: ↓ | M115: 高調期（活動期） | N115: 下降中 | O115: -0.1126769781 | P115: ↑ | Q115: 低調期（充電期） | R115: 上昇中 | U115: =SIN(2*PI()*(MOD(($T115-今月バイオリズム!$B$4),U$2))/U$2) ->  | V115: =SIN(2*PI()*(MOD(($T115-今月バイオリズム!$B$4),V$2))/V$2) ->  | W115: =SIN(2*PI()*(MOD(($T115-今月バイオリズム!$B$4),W$2))/W$2) -> 
A116: 1900-04-22 | B116: 1900-04-22 | C116: =SIN(2*PI()*(MOD(($B116-今月バイオリズム!$B$4),C$2))/C$2) -> -0.51958395 | D116: =SIN(2*PI()*(MOD(($B116-今月バイオリズム!$B$4),D$2))/D$2) -> 0.222520934 | E116: =SIN(2*PI()*(MOD(($B116-今月バイオリズム!$B$4),E$2))/E$2) -> 0.4582265217 | F116: ↑ | G116: 低調期（充電期） | H116: 上昇中 | I116: ↑ | J116: 要注意 | L116: ↓ | M116: 高調期（活動期） | N116: 下降中 | O116: 0.1611635056 | P116: ↑ | Q116: 要注意 | U116: =SIN(2*PI()*(MOD(($T116-今月バイオリズム!$B$4),U$2))/U$2) ->  | V116: =SIN(2*PI()*(MOD(($T116-今月バイオリズム!$B$4),V$2))/V$2) ->  | W116: =SIN(2*PI()*(MOD(($T116-今月バイオリズム!$B$4),W$2))/W$2) -> 
A117: 1900-04-23 | B117: 1900-04-23 | C117: =SIN(2*PI()*(MOD(($B117-今月バイオリズム!$B$4),C$2))/C$2) -> -0.2697967712 | D117: =SIN(2*PI()*(MOD(($B117-今月バイオリズム!$B$4),D$2))/D$2) -> 0.4338837391 | E117: =SIN(2*PI()*(MOD(($B117-今月バイオリズム!$B$4),E$2))/E$2) -> 0.2817325568 | F117: ↑ | G117: 低調期（充電期） | H117: 上昇中 | I117: ↑ | J117: 高調期（活動期） | K117: 上昇中 | L117: ↓ | M117: 高調期（活動期） | N117: 下降中 | O117: 0.4458195248 | P117: ↑ | Q117: 高調期（活動期） | R117: 上昇中 | U117: =SIN(2*PI()*(MOD(($T117-今月バイオリズム!$B$4),U$2))/U$2) ->  | V117: =SIN(2*PI()*(MOD(($T117-今月バイオリズム!$B$4),V$2))/V$2) ->  | W117: =SIN(2*PI()*(MOD(($T117-今月バイオリズム!$B$4),W$2))/W$2) -> 
A118: 1900-04-24 | B118: 1900-04-24 | C118: =SIN(2*PI()*(MOD(($B118-今月バイオリズム!$B$4),C$2))/C$2) -> 0 | D118: =SIN(2*PI()*(MOD(($B118-今月バイオリズム!$B$4),D$2))/D$2) -> 0.6234898019 | E118: =SIN(2*PI()*(MOD(($B118-今月バイオリズム!$B$4),E$2))/E$2) -> 0.0950560433 | F118: ↑ | G118: 要注意 | I118: ↑ | J118: 高調期（活動期） | K118: 上昇中 | L118: ↓ | M118: 高調期（活動期） | N118: 下降中 | O118: 0.7185458452 | P118: ↑ | Q118: 高調期（活動期） | R118: 上昇中 | U118: =SIN(2*PI()*(MOD(($T118-今月バイオリズム!$B$4),U$2))/U$2) ->  | V118: =SIN(2*PI()*(MOD(($T118-今月バイオリズム!$B$4),V$2))/V$2) ->  | W118: =SIN(2*PI()*(MOD(($T118-今月バイオリズム!$B$4),W$2))/W$2) -> 
A119: 1900-04-25 | B119: 1900-04-25 | C119: =SIN(2*PI()*(MOD(($B119-今月バイオリズム!$B$4),C$2))/C$2) -> 0.2697967712 | D119: =SIN(2*PI()*(MOD(($B119-今月バイオリズム!$B$4),D$2))/D$2) -> 0.7818314825 | E119: =SIN(2*PI()*(MOD(($B119-今月バイオリズム!$B$4),E$2))/E$2) -> -0.0950560433 | F119: ↑ | G119: 要注意 | I119: ↑ | J119: 高調期（活動期） | K119: 上昇中 | L119: ↓ | M119: 要注意 | O119: 0.9565722103 | P119: ↑ | Q119: 高調期（活動期） | R119: 上昇中 | U119: =SIN(2*PI()*(MOD(($T119-今月バイオリズム!$B$4),U$2))/U$2) ->  | V119: =SIN(2*PI()*(MOD(($T119-今月バイオリズム!$B$4),V$2))/V$2) ->  | W119: =SIN(2*PI()*(MOD(($T119-今月バイオリズム!$B$4),W$2))/W$2) -> 
A120: 1900-04-26 | B120: 1900-04-26 | C120: =SIN(2*PI()*(MOD(($B120-今月バイオリズム!$B$4),C$2))/C$2) -> 0.51958395 | D120: =SIN(2*PI()*(MOD(($B120-今月バイオリズム!$B$4),D$2))/D$2) -> 0.9009688679 | E120: =SIN(2*PI()*(MOD(($B120-今月バイオリズム!$B$4),E$2))/E$2) -> -0.2817325568 | F120: ↑ | G120: 高調期（活動期） | H120: 上昇中 | I120: ↑ | J120: 高調期（活動期） | K120: 上昇中 | L120: ↓ | M120: 低調期（充電期） | N120: 下降中 | O120: 1.138820261 | P120: ↑ | Q120: 高調期（活動期） | R120: 上昇中 | U120: =SIN(2*PI()*(MOD(($T120-今月バイオリズム!$B$4),U$2))/U$2) ->  | V120: =SIN(2*PI()*(MOD(($T120-今月バイオリズム!$B$4),V$2))/V$2) ->  | W120: =SIN(2*PI()*(MOD(($T120-今月バイオリズム!$B$4),W$2))/W$2) -> 
A121: 1900-04-27 | B121: 1900-04-27 | C121: =SIN(2*PI()*(MOD(($B121-今月バイオリズム!$B$4),C$2))/C$2) -> 0.7308359643 | D121: =SIN(2*PI()*(MOD(($B121-今月バイオリズム!$B$4),D$2))/D$2) -> 0.9749279122 | E121: =SIN(2*PI()*(MOD(($B121-今月バイオリズム!$B$4),E$2))/E$2) -> -0.4582265217 | F121: ↑ | G121: 高調期（活動期） | H121: 上昇中 | I121: ↑ | J121: 高調期（活動期） | K121: 上昇中 | L121: ↓ | M121: 低調期（充電期） | N121: 下降中 | O121: 1.247537355 | P121: ↑ | Q121: 高調期（活動期） | R121: 上昇中 | U121: =SIN(2*PI()*(MOD(($T121-今月バイオリズム!$B$4),U$2))/U$2) ->  | V121: =SIN(2*PI()*(MOD(($T121-今月バイオリズム!$B$4),V$2))/V$2) ->  | W121: =SIN(2*PI()*(MOD(($T121-今月バイオリズム!$B$4),W$2))/W$2) -> 
A122: 1900-04-28 | B122: 1900-04-28 | C122: =SIN(2*PI()*(MOD(($B122-今月バイオリズム!$B$4),C$2))/C$2) -> 0.8878852184 | D122: =SIN(2*PI()*(MOD(($B122-今月バイオリズム!$B$4),D$2))/D$2) -> 1 | E122: =SIN(2*PI()*(MOD(($B122-今月バイオリズム!$B$4),E$2))/E$2) -> -0.6181589862 | F122: ↑ | G122: 高調期（活動期） | H122: 上昇中 | I122: ▽ | J122: 高調期ピーク | K122: 下降中 | L122: ↓ | M122: 低調期（充電期） | N122: 下降中 | O122: 1.269726232 | P122: ▽ | Q122: 高調期ピーク | R122: 下降中 | U122: =SIN(2*PI()*(MOD(($T122-今月バイオリズム!$B$4),U$2))/U$2) ->  | V122: =SIN(2*PI()*(MOD(($T122-今月バイオリズム!$B$4),V$2))/V$2) ->  | W122: =SIN(2*PI()*(MOD(($T122-今月バイオリズム!$B$4),W$2))/W$2) -> 
A123: 1900-04-29 | B123: 1900-04-29 | C123: =SIN(2*PI()*(MOD(($B123-今月バイオリズム!$B$4),C$2))/C$2) -> 0.9790840877 | D123: =SIN(2*PI()*(MOD(($B123-今月バイオリズム!$B$4),D$2))/D$2) -> 0.9749279122 | E123: =SIN(2*PI()*(MOD(($B123-今月バイオリズム!$B$4),E$2))/E$2) -> -0.7557495744 | F123: ↑ | G123: 高調期（活動期） | H123: 上昇中 | I123: ↓ | J123: 高調期（活動期） | K123: 下降中 | L123: ↓ | M123: 低調期（充電期） | N123: 下降中 | O123: 1.198262426 | P123: ↓ | Q123: 高調期（活動期） | R123: 下降中 | U123: =SIN(2*PI()*(MOD(($T123-今月バイオリズム!$B$4),U$2))/U$2) ->  | V123: =SIN(2*PI()*(MOD(($T123-今月バイオリズム!$B$4),V$2))/V$2) ->  | W123: =SIN(2*PI()*(MOD(($T123-今月バイオリズム!$B$4),W$2))/W$2) -> 
A124: 1900-04-30 | B124: 1900-04-30 | C124: =SIN(2*PI()*(MOD(($B124-今月バイオリズム!$B$4),C$2))/C$2) -> 0.9976687692 | D124: =SIN(2*PI()*(MOD(($B124-今月バイオリズム!$B$4),D$2))/D$2) -> 0.9009688679 | E124: =SIN(2*PI()*(MOD(($B124-今月バイオリズム!$B$4),E$2))/E$2) -> -0.8660254038 | F124: ▽ | G124: 高調期ピーク | H124: 下降中 | I124: ↓ | J124: 高調期（活動期） | K124: 下降中 | L124: ↓ | M124: 低調期（充電期） | N124: 下降中 | O124: 1.032612233 | P124: ↓ | Q124: 高調期（活動期） | R124: 下降中 | U124: =SIN(2*PI()*(MOD(($T124-今月バイオリズム!$B$4),U$2))/U$2) ->  | V124: =SIN(2*PI()*(MOD(($T124-今月バイオリズム!$B$4),V$2))/V$2) ->  | W124: =SIN(2*PI()*(MOD(($T124-今月バイオリズム!$B$4),W$2))/W$2) -> 
A125: 1900-05-01 | B125: 1900-05-01 | C125: =SIN(2*PI()*(MOD(($B125-今月バイオリズム!$B$4),C$2))/C$2) -> 0.9422609221 | D125: =SIN(2*PI()*(MOD(($B125-今月バイオリズム!$B$4),D$2))/D$2) -> 0.7818314825 | E125: =SIN(2*PI()*(MOD(($B125-今月バイオリズム!$B$4),E$2))/E$2) -> -0.9450008187 | F125: ↓ | G125: 高調期（活動期） | H125: 下降中 | I125: ↓ | J125: 高調期（活動期） | K125: 下降中 | L125: ↓ | M125: 低調期（充電期） | N125: 下降中 | O125: 0.7790915859 | P125: ↓ | Q125: 高調期（活動期） | R125: 下降中 | U125: =SIN(2*PI()*(MOD(($T125-今月バイオリズム!$B$4),U$2))/U$2) ->  | V125: =SIN(2*PI()*(MOD(($T125-今月バイオリズム!$B$4),V$2))/V$2) ->  | W125: =SIN(2*PI()*(MOD(($T125-今月バイオリズム!$B$4),W$2))/W$2) -> 
A126: 1900-05-02 | B126: 1900-05-02 | C126: =SIN(2*PI()*(MOD(($B126-今月バイオリズム!$B$4),C$2))/C$2) -> 0.816969893 | D126: =SIN(2*PI()*(MOD(($B126-今月バイオリズム!$B$4),D$2))/D$2) -> 0.6234898019 | E126: =SIN(2*PI()*(MOD(($B126-今月バイオリズム!$B$4),E$2))/E$2) -> -0.9898214419 | F126: ↓ | G126: 高調期（活動期） | H126: 下降中 | I126: ↓ | J126: 高調期（活動期） | K126: 下降中 | L126: ↓ | M126: 低調期（充電期） | N126: 下降中 | O126: 0.450638253 | P126: ↓ | Q126: 高調期（活動期） | R126: 下降中 | U126: =SIN(2*PI()*(MOD(($T126-今月バイオリズム!$B$4),U$2))/U$2) ->  | V126: =SIN(2*PI()*(MOD(($T126-今月バイオリズム!$B$4),V$2))/V$2) ->  | W126: =SIN(2*PI()*(MOD(($T126-今月バイオリズム!$B$4),W$2))/W$2) -> 
A127: 1900-05-03 | B127: 1900-05-03 | C127: =SIN(2*PI()*(MOD(($B127-今月バイオリズム!$B$4),C$2))/C$2) -> 0.6310879443 | D127: =SIN(2*PI()*(MOD(($B127-今月バイオリズム!$B$4),D$2))/D$2) -> 0.4338837391 | E127: =SIN(2*PI()*(MOD(($B127-今月バイオリズム!$B$4),E$2))/E$2) -> -0.9988673392 | F127: ↓ | G127: 高調期（活動期） | H127: 下降中 | I127: ↓ | J127: 高調期（活動期） | K127: 下降中 | L127: ▲ | M127: 低調期ピーク | N127: 下降中 | O127: 0.06610434426 | P127: ↓ | Q127: 高調期（活動期） | R127: 下降中
A128: 1900-05-04 | B128: 1900-05-04 | C128: =SIN(2*PI()*(MOD(($B128-今月バイオリズム!$B$4),C$2))/C$2) -> 0.3984010898 | D128: =SIN(2*PI()*(MOD(($B128-今月バイオリズム!$B$4),D$2))/D$2) -> 0.222520934 | E128: =SIN(2*PI()*(MOD(($B128-今月バイオリズム!$B$4),E$2))/E$2) -> -0.9718115683 | F128: ↓ | G128: 高調期（活動期） | H128: 下降中 | I128: ↓ | J128: 高調期（活動期） | K128: 下降中 | L128: ↑ | M128: 低調期（充電期） | N128: 上昇中 | O128: -0.3508895445 | P128: ↓ | Q128: 要注意
A129: 1900-05-05 | B129: 1900-05-05 | C129: =SIN(2*PI()*(MOD(($B129-今月バイオリズム!$B$4),C$2))/C$2) -> 0.1361666491 | D129: =SIN(2*PI()*(MOD(($B129-今月バイオリズム!$B$4),D$2))/D$2) -> 1.225148455e-16 | E129: =SIN(2*PI()*(MOD(($B129-今月バイオリズム!$B$4),E$2))/E$2) -> -0.9096319954 | F129: ↓ | G129: 高調期（活動期） | H129: 下降中 | I129: ↓ | J129: 高調期（活動期） | K129: 下降中 | L129: ↑ | M129: 低調期（充電期） | N129: 上昇中 | O129: -0.7734653463 | P129: ↓ | Q129: 低調期（充電期） | R129: 下降中
A130: 1900-05-06 | B130: 1900-05-06 | C130: =SIN(2*PI()*(MOD(($B130-今月バイオリズム!$B$4),C$2))/C$2) -> -0.1361666491 | D130: =SIN(2*PI()*(MOD(($B130-今月バイオリズム!$B$4),D$2))/D$2) -> -0.222520934 | E130: =SIN(2*PI()*(MOD(($B130-今月バイオリズム!$B$4),E$2))/E$2) -> -0.8145759521 | F130: ↓ | G130: 要注意 | I130: ↓ | J130: 要注意 | L130: ↑ | M130: 低調期（充電期） | N130: 上昇中 | O130: -1.173263535 | P130: ↓ | Q130: 低調期（充電期） | R130: 下降中
A131: 1900-05-07 | B131: 1900-05-07 | C131: =SIN(2*PI()*(MOD(($B131-今月バイオリズム!$B$4),C$2))/C$2) -> -0.3984010898 | D131: =SIN(2*PI()*(MOD(($B131-今月バイオリズム!$B$4),D$2))/D$2) -> -0.4338837391 | E131: =SIN(2*PI()*(MOD(($B131-今月バイオリズム!$B$4),E$2))/E$2) -> -0.6900790115 | F131: ↓ | G131: 低調期（充電期） | H131: 下降中 | I131: ↓ | J131: 低調期（充電期） | K131: 下降中 | L131: ↑ | M131: 低調期（充電期） | N131: 上昇中 | O131: -1.52236384 | P131: ↓ | Q131: 低調期（充電期） | R131: 下降中
A132: 1900-05-08 | B132: 1900-05-08 | C132: =SIN(2*PI()*(MOD(($B132-今月バイオリズム!$B$4),C$2))/C$2) -> -0.6310879443 | D132: =SIN(2*PI()*(MOD(($B132-今月バイオリズム!$B$4),D$2))/D$2) -> -0.6234898019 | E132: =SIN(2*PI()*(MOD(($B132-今月バイオリズム!$B$4),E$2))/E$2) -> -0.5406408175 | F132: ↓ | G132: 低調期（充電期） | H132: 下降中 | I132: ↓ | J132: 低調期（充電期） | K132: 下降中 | L132: ↑ | M132: 低調期（充電期） | N132: 上昇中 | O132: -1.795218564 | P132: ↓ | Q132: 低調期（充電期） | R132: 下降中
A133: =B133 -> 1900-05-09 | B133: 1900-05-09 | C133: =SIN(2*PI()*(MOD(($B133-今月バイオリズム!$B$4),C$2))/C$2) -> -0.816969893 | D133: =SIN(2*PI()*(MOD(($B133-今月バイオリズム!$B$4),D$2))/D$2) -> -0.7818314825 | E133: =SIN(2*PI()*(MOD(($B133-今月バイオリズム!$B$4),E$2))/E$2) -> -0.3716624557 | F133: ↓ | G133: 低調期（充電期） | H133: 下降中 | I133: =IF(D133>0,IF(D132<D133,IF(D134<D133,"▽","↑"),"↓"),IF(D132>D133,IF(D134>D133,"▲","↓"),"↑")) -> ↓ | J133: =IF(OR(AND(D132<=0,D133>=0),AND(D132>=0,D133<=0)),"要注意",IF(D133>0,IF(I133="▽","高調期ピーク","高調期（活動期）"),IF(I133="▲","低調期ピーク","低調期（充電期）"))) -> 低調期（充電期） | K133: 下降中 | L133: =IF(E133>0,IF(E132<E133,IF(E134<E133,"▽","↑"),"↓"),IF(E132>E133,IF(E134>E133,"▲","↓"),"↑")) -> ↑ | M133: =IF(OR(AND(E132<=0,E133>=0),AND(E132>=0,E133<=0)),"要注意",IF(E133>0,IF(L133="▽","高調期ピーク","高調期（活動期）"),IF(L133="▲","低調期ピーク","低調期（充電期）"))) -> 低調期（充電期） | N133: 上昇中 | O133: =SUM(C133:E133) -> -1.970463831 | P133: =IF(O133>0,IF(O132<O133,IF(O134<O133,"▽","↑"),"↓"),IF(O132>O133,IF(O134>O133,"▲","↓"),"↑")) -> ↓ | Q133: 低調期（充電期） | R133: 下降中
A134: 1900-05-10 | B134: =B133+1 -> 1900-05-10 | C134: =SIN(2*PI()*(MOD(($B134-今月バイオリズム!$B$4),C$2))/C$2) -> -0.9422609221 | D134: =SIN(2*PI()*(MOD(($B134-今月バイオリズム!$B$4),D$2))/D$2) -> -0.9009688679 | E134: =SIN(2*PI()*(MOD(($B134-今月バイオリズム!$B$4),E$2))/E$2) -> -0.1892512444 | F134: ↓ | G134: =IF(OR(AND(C133<=0,C134>=0),AND(C133>=0,C134<=0)),"要注意",IF(C134>0,IF(F134="▽","高調期ピーク","高調期（活動期）"),IF(F134="▲","低調期ピーク","低調期（充電期）"))) -> 低調期（充電期） | H134: 下降中 | I134: ↓ | J134: 低調期（充電期） | K134: =IF(J134="要注意","",IF(I134="↑","上昇中","下降中")) -> 下降中 | L134: ↑ | M134: 低調期（充電期） | N134: =IF(M134="要注意","",IF(L134="↑","上昇中","下降中")) -> 上昇中 | O134: -2.032481034 | P134: ▲ | Q134: 低調期ピーク | R134: =IF(Q134="要注意","",IF(P134="↑","上昇中","下降中")) -> 下降中
A135: 1900-05-11 | B135: 1900-05-11 | C135: =SIN(2*PI()*(MOD(($B135-今月バイオリズム!$B$4),C$2))/C$2) -> -0.9976687692 | D135: =SIN(2*PI()*(MOD(($B135-今月バイオリズム!$B$4),D$2))/D$2) -> -0.9749279122 | E135: =SIN(2*PI()*(MOD(($B135-今月バイオリズム!$B$4),E$2))/E$2) -> 0 | F135: ▲ | G135: 低調期ピーク | H135: 下降中 | I135: ↓ | J135: 低調期（充電期） | K135: 下降中 | L135: ↑ | M135: 要注意 | O135: -1.972596681 | P135: ↑ | Q135: =IF(OR(AND(O134<=0,O135>=0),AND(O134>=0,O135<=0)),"要注意",IF(O135>0,IF(P135="▽","高調期ピーク","高調期（活動期）"),IF(P135="▲","低調期ピーク","低調期（充電期）"))) -> 低調期（充電期） | R135: 上昇中
A136: 1900-05-12 | B136: 1900-05-12 | C136: =SIN(2*PI()*(MOD(($B136-今月バイオリズム!$B$4),C$2))/C$2) -> -0.9790840877 | D136: =SIN(2*PI()*(MOD(($B136-今月バイオリズム!$B$4),D$2))/D$2) -> -1 | E136: =SIN(2*PI()*(MOD(($B136-今月バイオリズム!$B$4),E$2))/E$2) -> 0.1892512444 | F136: ↑ | G136: 低調期（充電期） | H136: 上昇中 | I136: ▲ | J136: 低調期ピーク | K136: 下降中 | L136: ↑ | M136: 要注意 | O136: -1.789832843 | P136: ↑ | Q136: 低調期（充電期） | R136: 上昇中
A137: 1900-05-13 | B137: 1900-05-13 | C137: =SIN(2*PI()*(MOD(($B137-今月バイオリズム!$B$4),C$2))/C$2) -> -0.8878852184 | D137: =SIN(2*PI()*(MOD(($B137-今月バイオリズム!$B$4),D$2))/D$2) -> -0.9749279122 | E137: =SIN(2*PI()*(MOD(($B137-今月バイオリズム!$B$4),E$2))/E$2) -> 0.3716624557 | F137: ↑ | G137: 低調期（充電期） | H137: 上昇中 | I137: ↑ | J137: 低調期（充電期） | K137: 上昇中 | L137: ↑ | M137: 高調期（活動期） | N137: 上昇中 | O137: -1.491150675 | P137: ↑ | Q137: 低調期（充電期） | R137: 上昇中
A138: 1900-05-14 | B138: 1900-05-14 | C138: =SIN(2*PI()*(MOD(($B138-今月バイオリズム!$B$4),C$2))/C$2) -> -0.7308359643 | D138: =SIN(2*PI()*(MOD(($B138-今月バイオリズム!$B$4),D$2))/D$2) -> -0.9009688679 | E138: =SIN(2*PI()*(MOD(($B138-今月バイオリズム!$B$4),E$2))/E$2) -> 0.5406408175 | F138: ↑ | G138: 低調期（充電期） | H138: 上昇中 | I138: ↑ | J138: 低調期（充電期） | K138: 上昇中 | L138: ↑ | M138: 高調期（活動期） | N138: 上昇中 | O138: -1.091164015 | P138: ↑ | Q138: 低調期（充電期） | R138: 上昇中
A139: 1900-05-15 | B139: 1900-05-15 | C139: =SIN(2*PI()*(MOD(($B139-今月バイオリズム!$B$4),C$2))/C$2) -> -0.51958395 | D139: =SIN(2*PI()*(MOD(($B139-今月バイオリズム!$B$4),D$2))/D$2) -> -0.7818314825 | E139: =SIN(2*PI()*(MOD(($B139-今月バイオリズム!$B$4),E$2))/E$2) -> 0.6900790115 | F139: =IF(C139>0,IF(C138<C139,IF(C140<C139,"▽","↑"),"↓"),IF(C138>C139,IF(C140>C139,"▲","↓"),"↑")) -> ↑ | G139: 低調期（充電期） | H139: =IF(G139="要注意","",IF(F139="↑","上昇中","下降中")) -> 上昇中 | I139: ↑ | J139: 低調期（充電期） | K139: 上昇中 | L139: ↑ | M139: 高調期（活動期） | N139: 上昇中 | O139: -0.611336421 | P139: ↑ | Q139: 低調期（充電期） | R139: 上昇中
A140: 1900-05-16 | B140: 1900-05-16 | C140: =SIN(2*PI()*(MOD(($B140-今月バイオリズム!$B$4),C$2))/C$2) -> -0.2697967712 | D140: =SIN(2*PI()*(MOD(($B140-今月バイオリズム!$B$4),D$2))/D$2) -> -0.6234898019 | E140: =SIN(2*PI()*(MOD(($B140-今月バイオリズム!$B$4),E$2))/E$2) -> 0.8145759521 | F140: ↑ | G140: 低調期（充電期） | H140: 上昇中 | I140: ↑ | J140: 低調期（充電期） | K140: 上昇中 | L140: ↑ | M140: 高調期（活動期） | N140: 上昇中 | O140: -0.07871062097 | P140: ↑ | Q140: 低調期（充電期） | R140: 上昇中
A141: 1900-05-17 | B141: 1900-05-17 | C141: =SIN(2*PI()*(MOD(($B141-今月バイオリズム!$B$4),C$2))/C$2) -> 0 | D141: =SIN(2*PI()*(MOD(($B141-今月バイオリズム!$B$4),D$2))/D$2) -> -0.4338837391 | E141: =SIN(2*PI()*(MOD(($B141-今月バイオリズム!$B$4),E$2))/E$2) -> 0.9096319954 | F141: ↑ | G141: 要注意 | I141: ↑ | J141: 低調期（充電期） | K141: 上昇中 | L141: ↑ | M141: 高調期（活動期） | N141: 上昇中 | O141: 0.4757482562 | P141: ↑ | Q141: 要注意
A142: 1900-05-18 | B142: 1900-05-18 | C142: =SIN(2*PI()*(MOD(($B142-今月バイオリズム!$B$4),C$2))/C$2) -> 0.2697967712 | D142: =SIN(2*PI()*(MOD(($B142-今月バイオリズム!$B$4),D$2))/D$2) -> -0.222520934 | E142: =SIN(2*PI()*(MOD(($B142-今月バイオリズム!$B$4),E$2))/E$2) -> 0.9718115683 | F142: ↑ | G142: 要注意 | I142: ↑ | J142: 低調期（充電期） | K142: 上昇中 | L142: ↑ | M142: 高調期（活動期） | N142: 上昇中 | O142: 1.019087406 | P142: ↑ | Q142: 高調期（活動期） | R142: 上昇中
A143: 1900-05-19 | B143: 1900-05-19 | C143: =SIN(2*PI()*(MOD(($B143-今月バイオリズム!$B$4),C$2))/C$2) -> 0.51958395 | D143: =SIN(2*PI()*(MOD(($B143-今月バイオリズム!$B$4),D$2))/D$2) -> 0 | E143: =SIN(2*PI()*(MOD(($B143-今月バイオリズム!$B$4),E$2))/E$2) -> 0.9988673392 | F143: ↑ | G143: 高調期（活動期） | H143: 上昇中 | I143: ↑ | J143: 要注意 | L143: ▽ | M143: 高調期ピーク | N143: 下降中 | O143: 1.518451289 | P143: ↑ | Q143: 高調期（活動期） | R143: 上昇中
A144: 1900-05-20 | B144: 1900-05-20 | C144: =SIN(2*PI()*(MOD(($B144-今月バイオリズム!$B$4),C$2))/C$2) -> 0.7308359643 | D144: =SIN(2*PI()*(MOD(($B144-今月バイオリズム!$B$4),D$2))/D$2) -> 0.222520934 | E144: =SIN(2*PI()*(MOD(($B144-今月バイオリズム!$B$4),E$2))/E$2) -> 0.9898214419 | F144: ↑ | G144: 高調期（活動期） | H144: 上昇中 | I144: ↑ | J144: 要注意 | L144: ↓ | M144: 高調期（活動期） | N144: 下降中 | O144: 1.94317834 | P144: ↑ | Q144: 高調期（活動期） | R144: 上昇中
A145: 1900-05-21 | B145: 1900-05-21 | C145: =SIN(2*PI()*(MOD(($B145-今月バイオリズム!$B$4),C$2))/C$2) -> 0.8878852184 | D145: =SIN(2*PI()*(MOD(($B145-今月バイオリズム!$B$4),D$2))/D$2) -> 0.4338837391 | E145: =SIN(2*PI()*(MOD(($B145-今月バイオリズム!$B$4),E$2))/E$2) -> 0.9450008187 | F145: ↑ | G145: 高調期（活動期） | H145: 上昇中 | I145: ↑ | J145: 高調期（活動期） | K145: 上昇中 | L145: ↓ | M145: 高調期（活動期） | N145: 下降中 | O145: 2.266769776 | P145: ↑ | Q145: 高調期（活動期） | R145: 上昇中
A146: 1900-05-22 | B146: 1900-05-22 | C146: =SIN(2*PI()*(MOD(($B146-今月バイオリズム!$B$4),C$2))/C$2) -> 0.9790840877 | D146: =SIN(2*PI()*(MOD(($B146-今月バイオリズム!$B$4),D$2))/D$2) -> 0.6234898019 | E146: =SIN(2*PI()*(MOD(($B146-今月バイオリズム!$B$4),E$2))/E$2) -> 0.8660254038 | F146: ↑ | G146: 高調期（活動期） | H146: 上昇中 | I146: ↑ | J146: 高調期（活動期） | K146: 上昇中 | L146: ↓ | M146: 高調期（活動期） | N146: 下降中 | O146: 2.468599293 | P146: ↑ | Q146: 高調期（活動期） | R146: 上昇中
A147: 1900-05-23 | B147: 1900-05-23 | C147: =SIN(2*PI()*(MOD(($B147-今月バイオリズム!$B$4),C$2))/C$2) -> 0.9976687692 | D147: =SIN(2*PI()*(MOD(($B147-今月バイオリズム!$B$4),D$2))/D$2) -> 0.7818314825 | E147: =SIN(2*PI()*(MOD(($B147-今月バイオリズム!$B$4),E$2))/E$2) -> 0.7557495744 | F147: ▽ | G147: 高調期ピーク | H147: 下降中 | I147: ↑ | J147: 高調期（活動期） | K147: 上昇中 | L147: ↓ | M147: 高調期（活動期） | N147: 下降中 | O147: 2.535249826 | P147: ▽ | Q147: 高調期ピーク | R147: 下降中
A148: 1900-05-24 | B148: 1900-05-24 | C148: =SIN(2*PI()*(MOD(($B148-今月バイオリズム!$B$4),C$2))/C$2) -> 0.9422609221 | D148: =SIN(2*PI()*(MOD(($B148-今月バイオリズム!$B$4),D$2))/D$2) -> 0.9009688679 | E148: =SIN(2*PI()*(MOD(($B148-今月バイオリズム!$B$4),E$2))/E$2) -> 0.6181589862 | F148: ↓ | G148: 高調期（活動期） | H148: 下降中 | I148: ↑ | J148: 高調期（活動期） | K148: 上昇中 | L148: ↓ | M148: 高調期（活動期） | N148: 下降中 | O148: 2.461388776 | P148: ↓ | Q148: 高調期（活動期） | R148: 下降中
A149: 1900-05-25 | B149: 1900-05-25 | C149: =SIN(2*PI()*(MOD(($B149-今月バイオリズム!$B$4),C$2))/C$2) -> 0.816969893 | D149: =SIN(2*PI()*(MOD(($B149-今月バイオリズム!$B$4),D$2))/D$2) -> 0.9749279122 | E149: =SIN(2*PI()*(MOD(($B149-今月バイオリズム!$B$4),E$2))/E$2) -> 0.4582265217 | F149: ↓ | G149: 高調期（活動期） | H149: 下降中 | I149: ↑ | J149: 高調期（活動期） | K149: 上昇中 | L149: ↓ | M149: 高調期（活動期） | N149: 下降中 | O149: 2.250124327 | P149: ↓ | Q149: 高調期（活動期） | R149: 下降中
A150: 1900-05-26 | B150: 1900-05-26 | C150: =SIN(2*PI()*(MOD(($B150-今月バイオリズム!$B$4),C$2))/C$2) -> 0.6310879443 | D150: =SIN(2*PI()*(MOD(($B150-今月バイオリズム!$B$4),D$2))/D$2) -> 1 | E150: =SIN(2*PI()*(MOD(($B150-今月バイオリズム!$B$4),E$2))/E$2) -> 0.2817325568 | F150: ↓ | G150: 高調期（活動期） | H150: 下降中 | I150: ▽ | J150: 高調期ピーク | K150: 下降中 | L150: ↓ | M150: 高調期（活動期） | N150: 下降中 | O150: 1.912820501 | P150: ↓ | Q150: 高調期（活動期） | R150: 下降中
A151: 1900-05-27 | B151: 1900-05-27 | C151: =SIN(2*PI()*(MOD(($B151-今月バイオリズム!$B$4),C$2))/C$2) -> 0.3984010898 | D151: =SIN(2*PI()*(MOD(($B151-今月バイオリズム!$B$4),D$2))/D$2) -> 0.9749279122 | E151: =SIN(2*PI()*(MOD(($B151-今月バイオリズム!$B$4),E$2))/E$2) -> 0.0950560433 | F151: ↓ | G151: 高調期（活動期） | H151: 下降中 | I151: ↓ | J151: 高調期（活動期） | K151: 下降中 | L151: ↓ | M151: 高調期（活動期） | N151: 下降中 | O151: 1.468385045 | P151: ↓ | Q151: 高調期（活動期） | R151: 下降中
A152: 1900-05-28 | B152: 1900-05-28 | C152: =SIN(2*PI()*(MOD(($B152-今月バイオリズム!$B$4),C$2))/C$2) -> 0.1361666491 | D152: =SIN(2*PI()*(MOD(($B152-今月バイオリズム!$B$4),D$2))/D$2) -> 0.9009688679 | E152: =SIN(2*PI()*(MOD(($B152-今月バイオリズム!$B$4),E$2))/E$2) -> -0.0950560433 | F152: ↓ | G152: 高調期（活動期） | H152: 下降中 | I152: ↓ | J152: 高調期（活動期） | K152: 下降中 | L152: ↓ | M152: 要注意 | O152: 0.9420794737 | P152: ↓ | Q152: 高調期（活動期） | R152: 下降中
A153: 1900-05-29 | B153: 1900-05-29 | C153: =SIN(2*PI()*(MOD(($B153-今月バイオリズム!$B$4),C$2))/C$2) -> -0.1361666491 | D153: =SIN(2*PI()*(MOD(($B153-今月バイオリズム!$B$4),D$2))/D$2) -> 0.7818314825 | E153: =SIN(2*PI()*(MOD(($B153-今月バイオリズム!$B$4),E$2))/E$2) -> -0.2817325568 | F153: ↓ | G153: 要注意 | I153: ↓ | J153: 高調期（活動期） | K153: 下降中 | L153: ↓ | M153: 低調期（充電期） | N153: 下降中 | O153: 0.3639322765 | P153: ↓ | Q153: 高調期（活動期） | R153: 下降中
A154: 1900-05-30 | B154: 1900-05-30 | C154: =SIN(2*PI()*(MOD(($B154-今月バイオリズム!$B$4),C$2))/C$2) -> -0.3984010898 | D154: =SIN(2*PI()*(MOD(($B154-今月バイオリズム!$B$4),D$2))/D$2) -> 0.6234898019 | E154: =SIN(2*PI()*(MOD(($B154-今月バイオリズム!$B$4),E$2))/E$2) -> -0.4582265217 | F154: ↓ | G154: 低調期（充電期） | H154: 下降中 | I154: ↓ | J154: 高調期（活動期） | K154: 下降中 | L154: ↓ | M154: 低調期（充電期） | N154: 下降中 | O154: -0.2331378097 | P154: ↓ | Q154: 要注意
A155: 1900-05-31 | B155: 1900-05-31 | C155: =SIN(2*PI()*(MOD(($B155-今月バイオリズム!$B$4),C$2))/C$2) -> -0.6310879443 | D155: =SIN(2*PI()*(MOD(($B155-今月バイオリズム!$B$4),D$2))/D$2) -> 0.4338837391 | E155: =SIN(2*PI()*(MOD(($B155-今月バイオリズム!$B$4),E$2))/E$2) -> -0.6181589862 | F155: ↓ | G155: 低調期（充電期） | H155: 下降中 | I155: ↓ | J155: 高調期（活動期） | K155: 下降中 | L155: ↓ | M155: 低調期（充電期） | N155: 下降中 | O155: -0.8153631914 | P155: ↓ | Q155: 低調期（充電期） | R155: 下降中
A156: 1900-06-01 | B156: 1900-06-01 | C156: =SIN(2*PI()*(MOD(($B156-今月バイオリズム!$B$4),C$2))/C$2) -> -0.816969893 | D156: =SIN(2*PI()*(MOD(($B156-今月バイオリズム!$B$4),D$2))/D$2) -> 0.222520934 | E156: =SIN(2*PI()*(MOD(($B156-今月バイオリズム!$B$4),E$2))/E$2) -> -0.7557495744 | F156: ↓ | G156: 低調期（充電期） | H156: 下降中 | I156: ↓ | J156: 高調期（活動期） | K156: 下降中 | L156: ↓ | M156: 低調期（充電期） | N156: 下降中 | O156: -1.350198533 | P156: ↓ | Q156: 低調期（充電期） | R156: 下降中
A157: 1900-06-02 | B157: 1900-06-02 | C157: =SIN(2*PI()*(MOD(($B157-今月バイオリズム!$B$4),C$2))/C$2) -> -0.9422609221 | D157: =SIN(2*PI()*(MOD(($B157-今月バイオリズム!$B$4),D$2))/D$2) -> 1.225148455e-16 | E157: =SIN(2*PI()*(MOD(($B157-今月バイオリズム!$B$4),E$2))/E$2) -> -0.8660254038 | F157: ↓ | G157: 低調期（充電期） | H157: 下降中 | I157: ↓ | J157: 高調期（活動期） | K157: 下降中 | L157: ↓ | M157: 低調期（充電期） | N157: 下降中 | O157: -1.808286326 | P157: ↓ | Q157: 低調期（充電期） | R157: 下降中
A158: 1900-06-03 | B158: 1900-06-03 | C158: =SIN(2*PI()*(MOD(($B158-今月バイオリズム!$B$4),C$2))/C$2) -> -0.9976687692 | D158: =SIN(2*PI()*(MOD(($B158-今月バイオリズム!$B$4),D$2))/D$2) -> -0.222520934 | E158: =SIN(2*PI()*(MOD(($B158-今月バイオリズム!$B$4),E$2))/E$2) -> -0.9450008187 | F158: ▲ | G158: 低調期ピーク | H158: 下降中 | I158: ↓ | J158: 要注意 | L158: ↓ | M158: 低調期（充電期） | N158: 下降中 | O158: -2.165190522 | P158: ↓ | Q158: 低調期（充電期） | R158: 下降中
A159: 1900-06-04 | B159: 1900-06-04 | C159: =SIN(2*PI()*(MOD(($B159-今月バイオリズム!$B$4),C$2))/C$2) -> -0.9790840877 | D159: =SIN(2*PI()*(MOD(($B159-今月バイオリズム!$B$4),D$2))/D$2) -> -0.4338837391 | E159: =SIN(2*PI()*(MOD(($B159-今月バイオリズム!$B$4),E$2))/E$2) -> -0.9898214419 | F159: ↑ | G159: 低調期（充電期） | H159: 上昇中 | I159: ↓ | J159: 低調期（充電期） | K159: 下降中 | L159: ↓ | M159: 低調期（充電期） | N159: 下降中 | O159: -2.402789269 | P159: ↓ | Q159: 低調期（充電期） | R159: 下降中
A160: 1900-06-05 | B160: 1900-06-05 | C160: =SIN(2*PI()*(MOD(($B160-今月バイオリズム!$B$4),C$2))/C$2) -> -0.8878852184 | D160: =SIN(2*PI()*(MOD(($B160-今月バイオリズム!$B$4),D$2))/D$2) -> -0.6234898019 | E160: =SIN(2*PI()*(MOD(($B160-今月バイオリズム!$B$4),E$2))/E$2) -> -0.9988673392 | F160: ↑ | G160: 低調期（充電期） | H160: 上昇中 | I160: ↓ | J160: 低調期（充電期） | K160: 下降中 | L160: ▲ | M160: 低調期ピーク | N160: 下降中 | O160: -2.510242359 | P160: ▲ | Q160: 低調期ピーク | R160: 下降中
A161: 1900-06-06 | B161: 1900-06-06 | C161: =SIN(2*PI()*(MOD(($B161-今月バイオリズム!$B$4),C$2))/C$2) -> -0.7308359643 | D161: =SIN(2*PI()*(MOD(($B161-今月バイオリズム!$B$4),D$2))/D$2) -> -0.7818314825 | E161: =SIN(2*PI()*(MOD(($B161-今月バイオリズム!$B$4),E$2))/E$2) -> -0.9718115683 | F161: ↑ | G161: 低調期（充電期） | H161: 上昇中 | I161: ↓ | J161: 低調期（充電期） | K161: 下降中 | L161: ↑ | M161: 低調期（充電期） | N161: 上昇中 | O161: -2.484479015 | P161: ↑ | Q161: 低調期（充電期） | R161: 上昇中
A162: 1900-06-07 | B162: 1900-06-07 | C162: =SIN(2*PI()*(MOD(($B162-今月バイオリズム!$B$4),C$2))/C$2) -> -0.51958395 | D162: =SIN(2*PI()*(MOD(($B162-今月バイオリズム!$B$4),D$2))/D$2) -> -0.9009688679 | E162: =SIN(2*PI()*(MOD(($B162-今月バイオリズム!$B$4),E$2))/E$2) -> -0.9096319954 | F162: ↑ | G162: 低調期（充電期） | H162: 上昇中 | I162: ↓ | J162: 低調期（充電期） | K162: 下降中 | L162: ↑ | M162: 低調期（充電期） | N162: 上昇中 | O162: -2.330184813 | P162: ↑ | Q162: 低調期（充電期） | R162: 上昇中
A163: 1900-06-08 | B163: 1900-06-08 | C163: =SIN(2*PI()*(MOD(($B163-今月バイオリズム!$B$4),C$2))/C$2) -> -0.2697967712 | D163: =SIN(2*PI()*(MOD(($B163-今月バイオリズム!$B$4),D$2))/D$2) -> -0.9749279122 | E163: =SIN(2*PI()*(MOD(($B163-今月バイオリズム!$B$4),E$2))/E$2) -> -0.8145759521 | F163: ↑ | G163: 低調期（充電期） | H163: 上昇中 | I163: ↓ | J163: 低調期（充電期） | K163: 下降中 | L163: ↑ | M163: 低調期（充電期） | N163: 上昇中 | O163: -2.059300635 | P163: ↑ | Q163: 低調期（充電期） | R163: 上昇中
A164: 1900-06-09 | B164: 1900-06-09 | C164: =SIN(2*PI()*(MOD(($B164-今月バイオリズム!$B$4),C$2))/C$2) -> 0 | D164: =SIN(2*PI()*(MOD(($B164-今月バイオリズム!$B$4),D$2))/D$2) -> -1 | E164: =SIN(2*PI()*(MOD(($B164-今月バイオリズム!$B$4),E$2))/E$2) -> -0.6900790115 | F164: ↑ | G164: 要注意 | I164: ▲ | J164: 低調期ピーク | K164: 下降中 | L164: ↑ | M164: 低調期（充電期） | N164: 上昇中 | O164: -1.690079011 | P164: ↑ | Q164: 低調期（充電期） | R164: 上昇中
A165: 1900-06-10 | B165: 1900-06-10 | C165: =SIN(2*PI()*(MOD(($B165-今月バイオリズム!$B$4),C$2))/C$2) -> 0.2697967712 | D165: =SIN(2*PI()*(MOD(($B165-今月バイオリズム!$B$4),D$2))/D$2) -> -0.9749279122 | E165: =SIN(2*PI()*(MOD(($B165-今月バイオリズム!$B$4),E$2))/E$2) -> -0.5406408175 | F165: ↑ | G165: 要注意 | I165: ↑ | J165: 低調期（充電期） | K165: 上昇中 | L165: ↑ | M165: 低調期（充電期） | N165: 上昇中 | O165: -1.245771958 | P165: ↑ | Q165: 低調期（充電期） | R165: 上昇中
A166: 1900-06-11 | B166: 1900-06-11 | C166: =SIN(2*PI()*(MOD(($B166-今月バイオリズム!$B$4),C$2))/C$2) -> 0.51958395 | D166: =SIN(2*PI()*(MOD(($B166-今月バイオリズム!$B$4),D$2))/D$2) -> -0.9009688679 | E166: =SIN(2*PI()*(MOD(($B166-今月バイオリズム!$B$4),E$2))/E$2) -> -0.3716624557 | F166: ↑ | G166: 高調期（活動期） | H166: 上昇中 | I166: ↑ | J166: 低調期（充電期） | K166: 上昇中 | L166: ↑ | M166: 低調期（充電期） | N166: 上昇中 | O166: -0.7530473735 | P166: ↑ | Q166: 低調期（充電期） | R166: 上昇中
A167: 1900-06-12 | B167: 1900-06-12 | C167: =SIN(2*PI()*(MOD(($B167-今月バイオリズム!$B$4),C$2))/C$2) -> 0.7308359643 | D167: =SIN(2*PI()*(MOD(($B167-今月バイオリズム!$B$4),D$2))/D$2) -> -0.7818314825 | E167: =SIN(2*PI()*(MOD(($B167-今月バイオリズム!$B$4),E$2))/E$2) -> -0.1892512444 | F167: ↑ | G167: 高調期（活動期） | H167: 上昇中 | I167: ↑ | J167: 低調期（充電期） | K167: 上昇中 | L167: ↑ | M167: 低調期（充電期） | N167: 上昇中 | O167: -0.2402467626 | P167: ↑ | Q167: 低調期（充電期） | R167: 上昇中
A168: 1900-06-13 | B168: 1900-06-13 | C168: =SIN(2*PI()*(MOD(($B168-今月バイオリズム!$B$4),C$2))/C$2) -> 0.8878852184 | D168: =SIN(2*PI()*(MOD(($B168-今月バイオリズム!$B$4),D$2))/D$2) -> -0.6234898019 | E168: =SIN(2*PI()*(MOD(($B168-今月バイオリズム!$B$4),E$2))/E$2) -> 0 | F168: ↑ | G168: 高調期（活動期） | H168: 上昇中 | I168: ↑ | J168: 低調期（充電期） | K168: 上昇中 | L168: ↑ | M168: 要注意 | O168: 0.2643954165 | P168: ↑ | Q168: 要注意
A169: 1900-06-14 | B169: 1900-06-14 | C169: =SIN(2*PI()*(MOD(($B169-今月バイオリズム!$B$4),C$2))/C$2) -> 0.9790840877 | D169: =SIN(2*PI()*(MOD(($B169-今月バイオリズム!$B$4),D$2))/D$2) -> -0.4338837391 | E169: =SIN(2*PI()*(MOD(($B169-今月バイオリズム!$B$4),E$2))/E$2) -> 0.1892512444 | F169: ↑ | G169: 高調期（活動期） | H169: 上昇中 | I169: ↑ | J169: 低調期（充電期） | K169: 上昇中 | L169: ↑ | M169: 要注意 | O169: 0.7344515929 | P169: ↑ | Q169: 高調期（活動期） | R169: 上昇中
A170: 1900-06-15 | B170: 1900-06-15 | C170: =SIN(2*PI()*(MOD(($B170-今月バイオリズム!$B$4),C$2))/C$2) -> 0.9976687692 | D170: =SIN(2*PI()*(MOD(($B170-今月バイオリズム!$B$4),D$2))/D$2) -> -0.222520934 | E170: =SIN(2*PI()*(MOD(($B170-今月バイオリズム!$B$4),E$2))/E$2) -> 0.3716624557 | F170: ▽ | G170: 高調期ピーク | H170: 下降中 | I170: ↑ | J170: 低調期（充電期） | K170: 上昇中 | L170: ↑ | M170: 高調期（活動期） | N170: 上昇中 | O170: 1.146810291 | P170: ↑ | Q170: 高調期（活動期） | R170: 上昇中
A171: 1900-06-16 | B171: 1900-06-16 | C171: =SIN(2*PI()*(MOD(($B171-今月バイオリズム!$B$4),C$2))/C$2) -> 0.9422609221 | D171: =SIN(2*PI()*(MOD(($B171-今月バイオリズム!$B$4),D$2))/D$2) -> 0 | E171: =SIN(2*PI()*(MOD(($B171-今月バイオリズム!$B$4),E$2))/E$2) -> 0.5406408175 | F171: ↓ | G171: 高調期（活動期） | H171: 下降中 | I171: ↑ | J171: 要注意 | L171: ↑ | M171: 高調期（活動期） | N171: 上昇中 | O171: 1.48290174 | P171: ↑ | Q171: 高調期（活動期） | R171: 上昇中
A172: 1900-06-17 | B172: 1900-06-17 | C172: =SIN(2*PI()*(MOD(($B172-今月バイオリズム!$B$4),C$2))/C$2) -> 0.816969893 | D172: =SIN(2*PI()*(MOD(($B172-今月バイオリズム!$B$4),D$2))/D$2) -> 0.222520934 | E172: =SIN(2*PI()*(MOD(($B172-今月バイオリズム!$B$4),E$2))/E$2) -> 0.6900790115 | F172: ↓ | G172: 高調期（活動期） | H172: 下降中 | I172: ↑ | J172: 要注意 | L172: ↑ | M172: 高調期（活動期） | N172: 上昇中 | O172: 1.729569838 | P172: ↑ | Q172: 高調期（活動期） | R172: 上昇中
A173: 1900-06-18 | B173: 1900-06-18 | C173: =SIN(2*PI()*(MOD(($B173-今月バイオリズム!$B$4),C$2))/C$2) -> 0.6310879443 | D173: =SIN(2*PI()*(MOD(($B173-今月バイオリズム!$B$4),D$2))/D$2) -> 0.4338837391 | E173: =SIN(2*PI()*(MOD(($B173-今月バイオリズム!$B$4),E$2))/E$2) -> 0.8145759521 | F173: ↓ | G173: 高調期（活動期） | H173: 下降中 | I173: ↑ | J173: 高調期（活動期） | K173: 上昇中 | L173: ↑ | M173: 高調期（活動期） | N173: 上昇中 | O173: 1.879547635 | P173: ↑ | Q173: 高調期（活動期） | R173: 上昇中
A174: 1900-06-19 | B174: 1900-06-19 | C174: =SIN(2*PI()*(MOD(($B174-今月バイオリズム!$B$4),C$2))/C$2) -> 0.3984010898 | D174: =SIN(2*PI()*(MOD(($B174-今月バイオリズム!$B$4),D$2))/D$2) -> 0.6234898019 | E174: =SIN(2*PI()*(MOD(($B174-今月バイオリズム!$B$4),E$2))/E$2) -> 0.9096319954 | F174: ↓ | G174: 高調期（活動期） | H174: 下降中 | I174: ↑ | J174: 高調期（活動期） | K174: 上昇中 | L174: ↑ | M174: 高調期（活動期） | N174: 上昇中 | O174: 1.931522887 | P174: ▽ | Q174: 高調期ピーク | R174: 下降中
A175: 1900-06-20 | B175: 1900-06-20 | C175: =SIN(2*PI()*(MOD(($B175-今月バイオリズム!$B$4),C$2))/C$2) -> 0.1361666491 | D175: =SIN(2*PI()*(MOD(($B175-今月バイオリズム!$B$4),D$2))/D$2) -> 0.7818314825 | E175: =SIN(2*PI()*(MOD(($B175-今月バイオリズム!$B$4),E$2))/E$2) -> 0.9718115683 | F175: ↓ | G175: 高調期（活動期） | H175: 下降中 | I175: ↑ | J175: 高調期（活動期） | K175: 上昇中 | L175: ↑ | M175: 高調期（活動期） | N175: 上昇中 | O175: 1.8898097 | P175: ↓ | Q175: 高調期（活動期） | R175: 下降中
A176: 1900-06-21 | B176: 1900-06-21 | C176: =SIN(2*PI()*(MOD(($B176-今月バイオリズム!$B$4),C$2))/C$2) -> -0.1361666491 | D176: =SIN(2*PI()*(MOD(($B176-今月バイオリズム!$B$4),D$2))/D$2) -> 0.9009688679 | E176: =SIN(2*PI()*(MOD(($B176-今月バイオリズム!$B$4),E$2))/E$2) -> 0.9988673392 | F176: ↓ | G176: 要注意 | I176: ↑ | J176: 高調期（活動期） | K176: 上昇中 | L176: ▽ | M176: 高調期ピーク | N176: 下降中 | O176: 1.763669558 | P176: ↓ | Q176: 高調期（活動期） | R176: 下降中
A177: 1900-06-22 | B177: 1900-06-22 | C177: =SIN(2*PI()*(MOD(($B177-今月バイオリズム!$B$4),C$2))/C$2) -> -0.3984010898 | D177: =SIN(2*PI()*(MOD(($B177-今月バイオリズム!$B$4),D$2))/D$2) -> 0.9749279122 | E177: =SIN(2*PI()*(MOD(($B177-今月バイオリズム!$B$4),E$2))/E$2) -> 0.9898214419 | F177: ↓ | G177: 低調期（充電期） | H177: 下降中 | I177: ↑ | J177: 高調期（活動期） | K177: 上昇中 | L177: ↓ | M177: 高調期（活動期） | N177: 下降中 | O177: 1.566348264 | P177: ↓ | Q177: 高調期（活動期） | R177: 下降中
A178: 1900-06-23 | B178: 1900-06-23 | C178: =SIN(2*PI()*(MOD(($B178-今月バイオリズム!$B$4),C$2))/C$2) -> -0.6310879443 | D178: =SIN(2*PI()*(MOD(($B178-今月バイオリズム!$B$4),D$2))/D$2) -> 1 | E178: =SIN(2*PI()*(MOD(($B178-今月バイオリズム!$B$4),E$2))/E$2) -> 0.9450008187 | F178: ↓ | G178: 低調期（充電期） | H178: 下降中 | I178: ▽ | J178: 高調期ピーク | K178: 下降中 | L178: ↓ | M178: 高調期（活動期） | N178: 下降中 | O178: 1.313912874 | P178: ↓ | Q178: 高調期（活動期） | R178: 下降中
A179: 1900-06-24 | B179: 1900-06-24 | C179: =SIN(2*PI()*(MOD(($B179-今月バイオリズム!$B$4),C$2))/C$2) -> -0.816969893 | D179: =SIN(2*PI()*(MOD(($B179-今月バイオリズム!$B$4),D$2))/D$2) -> 0.9749279122 | E179: =SIN(2*PI()*(MOD(($B179-今月バイオリズム!$B$4),E$2))/E$2) -> 0.8660254038 | F179: ↓ | G179: 低調期（充電期） | H179: 下降中 | I179: ↓ | J179: 高調期（活動期） | K179: 下降中 | L179: ↓ | M179: 高調期（活動期） | N179: 下降中 | O179: 1.023983423 | P179: ↓ | Q179: 高調期（活動期） | R179: 下降中
A180: 1900-06-25 | B180: 1900-06-25 | C180: =SIN(2*PI()*(MOD(($B180-今月バイオリズム!$B$4),C$2))/C$2) -> -0.9422609221 | D180: =SIN(2*PI()*(MOD(($B180-今月バイオリズム!$B$4),D$2))/D$2) -> 0.9009688679 | E180: =SIN(2*PI()*(MOD(($B180-今月バイオリズム!$B$4),E$2))/E$2) -> 0.7557495744 | F180: ↓ | G180: 低調期（充電期） | H180: 下降中 | I180: ↓ | J180: 高調期（活動期） | K180: 下降中 | L180: ↓ | M180: 高調期（活動期） | N180: 下降中 | O180: 0.7144575201 | P180: ↓ | Q180: 高調期（活動期） | R180: 下降中
A181: 1900-06-26 | B181: 1900-06-26 | C181: =SIN(2*PI()*(MOD(($B181-今月バイオリズム!$B$4),C$2))/C$2) -> -0.9976687692 | D181: =SIN(2*PI()*(MOD(($B181-今月バイオリズム!$B$4),D$2))/D$2) -> 0.7818314825 | E181: =SIN(2*PI()*(MOD(($B181-今月バイオリズム!$B$4),E$2))/E$2) -> 0.6181589862 | F181: ▲ | G181: 低調期ピーク | H181: 下降中 | I181: ↓ | J181: 高調期（活動期） | K181: 下降中 | L181: ↓ | M181: 高調期（活動期） | N181: 下降中 | O181: 0.4023216995 | P181: ↓ | Q181: 高調期（活動期） | R181: 下降中
A182: 1900-06-27 | B182: 1900-06-27 | C182: =SIN(2*PI()*(MOD(($B182-今月バイオリズム!$B$4),C$2))/C$2) -> -0.9790840877 | D182: =SIN(2*PI()*(MOD(($B182-今月バイオリズム!$B$4),D$2))/D$2) -> 0.6234898019 | E182: =SIN(2*PI()*(MOD(($B182-今月バイオリズム!$B$4),E$2))/E$2) -> 0.4582265217 | F182: ↑ | G182: 低調期（充電期） | H182: 上昇中 | I182: ↓ | J182: 高調期（活動期） | K182: 下降中 | L182: ↓ | M182: 高調期（活動期） | N182: 下降中 | O182: 0.1026322359 | P182: ↓ | Q182: 高調期（活動期） | R182: 下降中
A183: 1900-06-28 | B183: 1900-06-28 | C183: =SIN(2*PI()*(MOD(($B183-今月バイオリズム!$B$4),C$2))/C$2) -> -0.8878852184 | D183: =SIN(2*PI()*(MOD(($B183-今月バイオリズム!$B$4),D$2))/D$2) -> 0.4338837391 | E183: =SIN(2*PI()*(MOD(($B183-今月バイオリズム!$B$4),E$2))/E$2) -> 0.2817325568 | F183: ↑ | G183: 低調期（充電期） | H183: 上昇中 | I183: ↓ | J183: 高調期（活動期） | K183: 下降中 | L183: ↓ | M183: 高調期（活動期） | N183: 下降中 | O183: -0.1722689224 | P183: ↓ | Q183: 要注意
A184: 1900-06-29 | B184: 1900-06-29 | C184: =SIN(2*PI()*(MOD(($B184-今月バイオリズム!$B$4),C$2))/C$2) -> -0.7308359643 | D184: =SIN(2*PI()*(MOD(($B184-今月バイオリズム!$B$4),D$2))/D$2) -> 0.222520934 | E184: =SIN(2*PI()*(MOD(($B184-今月バイオリズム!$B$4),E$2))/E$2) -> 0.0950560433 | F184: ↑ | G184: 低調期（充電期） | H184: 上昇中 | I184: ↓ | J184: 高調期（活動期） | K184: 下降中 | L184: ↓ | M184: 高調期（活動期） | N184: 下降中 | O184: -0.413258987 | Q184: 低調期（充電期） | R184: 下降中
A185: 1900-06-30 | B185: 1900-06-30 | C185: =SIN(2*PI()*(MOD(($B185-今月バイオリズム!$B$4),C$2))/C$2) -> -0.51958395 | D185: =SIN(2*PI()*(MOD(($B185-今月バイオリズム!$B$4),D$2))/D$2) -> 1.225148455e-16 | E185: =SIN(2*PI()*(MOD(($B185-今月バイオリズム!$B$4),E$2))/E$2) -> -0.0950560433 | F185: ↑ | G185: 低調期（充電期） | H185: 上昇中 | I185: ↓ | J185: 高調期（活動期） | K185: 下降中 | L185: ↓ | M185: 要注意 | O185: -0.6146399933 | Q185: 低調期（充電期） | R185: 下降中
A186: 1900-07-01 | B186: 1900-07-01 | C186: =SIN(2*PI()*(MOD(($B186-今月バイオリズム!$B$4),C$2))/C$2) -> -0.2697967712 | D186: =SIN(2*PI()*(MOD(($B186-今月バイオリズム!$B$4),D$2))/D$2) -> -0.222520934 | E186: =SIN(2*PI()*(MOD(($B186-今月バイオリズム!$B$4),E$2))/E$2) -> -0.2817325568 | F186: ↑ | G186: 低調期（充電期） | H186: 上昇中 | I186: ↓ | J186: 要注意 | L186: ↓ | M186: 低調期（充電期） | N186: 下降中 | O186: -0.774050262 | Q186: 低調期（充電期） | R186: 下降中
A187: 1900-07-02 | B187: 1900-07-02 | C187: =SIN(2*PI()*(MOD(($B187-今月バイオリズム!$B$4),C$2))/C$2) -> 0 | D187: =SIN(2*PI()*(MOD(($B187-今月バイオリズム!$B$4),D$2))/D$2) -> -0.4338837391 | E187: =SIN(2*PI()*(MOD(($B187-今月バイオリズム!$B$4),E$2))/E$2) -> -0.4582265217 | F187: ↑ | G187: 要注意 | I187: ↓ | J187: 低調期（充電期） | K187: 下降中 | L187: ↓ | M187: 低調期（充電期） | N187: 下降中 | O187: -0.8921102608 | Q187: 低調期（充電期） | R187: 下降中
A188: 1900-07-03 | B188: 1900-07-03 | C188: =SIN(2*PI()*(MOD(($B188-今月バイオリズム!$B$4),C$2))/C$2) -> 0.2697967712 | D188: =SIN(2*PI()*(MOD(($B188-今月バイオリズム!$B$4),D$2))/D$2) -> -0.6234898019 | E188: =SIN(2*PI()*(MOD(($B188-今月バイオリズム!$B$4),E$2))/E$2) -> -0.6181589862 | F188: ↑ | G188: 要注意 | I188: ↓ | J188: 低調期（充電期） | K188: 下降中 | L188: ↓ | M188: 低調期（充電期） | N188: 下降中 | O188: -0.9718520169 | Q188: 低調期（充電期） | R188: 下降中
A189: 1900-07-04 | B189: 1900-07-04 | C189: =SIN(2*PI()*(MOD(($B189-今月バイオリズム!$B$4),C$2))/C$2) -> 0.51958395 | D189: =SIN(2*PI()*(MOD(($B189-今月バイオリズム!$B$4),D$2))/D$2) -> -0.7818314825 | E189: =SIN(2*PI()*(MOD(($B189-今月バイオリズム!$B$4),E$2))/E$2) -> -0.7557495744 | F189: ↑ | G189: 高調期（活動期） | H189: 上昇中 | I189: ↓ | J189: 低調期（充電期） | K189: 下降中 | L189: ↓ | M189: 低調期（充電期） | N189: 下降中 | O189: -1.017997107 | Q189: 低調期（充電期） | R189: 下降中
A190: 1900-07-05 | B190: 1900-07-05 | C190: =SIN(2*PI()*(MOD(($B190-今月バイオリズム!$B$4),C$2))/C$2) -> 0.7308359643 | D190: =SIN(2*PI()*(MOD(($B190-今月バイオリズム!$B$4),D$2))/D$2) -> -0.9009688679 | E190: =SIN(2*PI()*(MOD(($B190-今月バイオリズム!$B$4),E$2))/E$2) -> -0.8660254038 | F190: ↑ | G190: 高調期（活動期） | H190: 上昇中 | I190: ↓ | J190: 低調期（充電期） | K190: 下降中 | L190: ↓ | M190: 低調期（充電期） | N190: 下降中 | O190: -1.036158307 | Q190: 低調期（充電期） | R190: 下降中
A191: 1900-07-06 | B191: 1900-07-06 | C191: =SIN(2*PI()*(MOD(($B191-今月バイオリズム!$B$4),C$2))/C$2) -> 0.8878852184 | D191: =SIN(2*PI()*(MOD(($B191-今月バイオリズム!$B$4),D$2))/D$2) -> -0.9749279122 | E191: =SIN(2*PI()*(MOD(($B191-今月バイオリズム!$B$4),E$2))/E$2) -> -0.9450008187 | F191: ↑ | G191: 高調期（活動期） | H191: 上昇中 | I191: ↓ | J191: 低調期（充電期） | K191: 下降中 | L191: ↓ | M191: 低調期（充電期） | N191: 下降中 | O191: -1.032043512 | Q191: 低調期（充電期） | R191: 下降中
A192: 1900-07-07 | B192: 1900-07-07 | C192: =SIN(2*PI()*(MOD(($B192-今月バイオリズム!$B$4),C$2))/C$2) -> 0.9790840877 | D192: =SIN(2*PI()*(MOD(($B192-今月バイオリズム!$B$4),D$2))/D$2) -> -1 | E192: =SIN(2*PI()*(MOD(($B192-今月バイオリズム!$B$4),E$2))/E$2) -> -0.9898214419 | F192: ↑ | G192: 高調期（活動期） | H192: 上昇中 | I192: ▲ | J192: 低調期ピーク | K192: 下降中 | L192: ↓ | M192: 低調期（充電期） | N192: 下降中 | O192: -1.010737354 | Q192: 低調期（充電期） | R192: 下降中
A193: 1900-07-08 | B193: 1900-07-08 | C193: =SIN(2*PI()*(MOD(($B193-今月バイオリズム!$B$4),C$2))/C$2) -> 0.9976687692 | D193: =SIN(2*PI()*(MOD(($B193-今月バイオリズム!$B$4),D$2))/D$2) -> -0.9749279122 | E193: =SIN(2*PI()*(MOD(($B193-今月バイオリズム!$B$4),E$2))/E$2) -> -0.9988673392 | F193: ▽ | G193: 高調期ピーク | H193: 下降中 | I193: ↑ | J193: 低調期（充電期） | K193: 上昇中 | L193: ▲ | M193: 低調期ピーク | N193: 下降中 | O193: -0.9761264822 | Q193: 低調期（充電期） | R193: 下降中
A194: 1900-07-09 | B194: 1900-07-09 | C194: =SIN(2*PI()*(MOD(($B194-今月バイオリズム!$B$4),C$2))/C$2) -> 0.9422609221 | D194: =SIN(2*PI()*(MOD(($B194-今月バイオリズム!$B$4),D$2))/D$2) -> -0.9009688679 | E194: =SIN(2*PI()*(MOD(($B194-今月バイオリズム!$B$4),E$2))/E$2) -> -0.9718115683 | F194: ↓ | G194: 高調期（活動期） | H194: 下降中 | I194: ↑ | J194: 低調期（充電期） | K194: 上昇中 | L194: ↑ | M194: 低調期（充電期） | N194: 上昇中 | O194: -0.9305195141 | Q194: 低調期（充電期） | R194: 下降中
A195: 1900-07-10 | B195: 1900-07-10 | C195: =SIN(2*PI()*(MOD(($B195-今月バイオリズム!$B$4),C$2))/C$2) -> 0.816969893 | D195: =SIN(2*PI()*(MOD(($B195-今月バイオリズム!$B$4),D$2))/D$2) -> -0.7818314825 | E195: =SIN(2*PI()*(MOD(($B195-今月バイオリズム!$B$4),E$2))/E$2) -> -0.9096319954 | F195: ↓ | G195: 高調期（活動期） | H195: 下降中 | I195: ↑ | J195: 低調期（充電期） | K195: 上昇中 | L195: ↑ | M195: 低調期（充電期） | N195: 上昇中 | O195: -0.8744935848 | Q195: 低調期（充電期） | R195: 下降中
A196: 1900-07-11 | B196: 1900-07-11 | C196: =SIN(2*PI()*(MOD(($B196-今月バイオリズム!$B$4),C$2))/C$2) -> 0.6310879443 | D196: =SIN(2*PI()*(MOD(($B196-今月バイオリズム!$B$4),D$2))/D$2) -> -0.6234898019 | E196: =SIN(2*PI()*(MOD(($B196-今月バイオリズム!$B$4),E$2))/E$2) -> -0.8145759521 | F196: ↓ | G196: 高調期（活動期） | H196: 下降中 | I196: ↑ | J196: 低調期（充電期） | K196: 上昇中 | L196: ↑ | M196: 低調期（充電期） | N196: 上昇中 | O196: -0.8069778096 | Q196: 低調期（充電期） | R196: 下降中
A197: =B197 -> 1900-07-12 | B197: 1900-07-12 | C197: =SIN(2*PI()*(MOD(($B197-今月バイオリズム!$B$4),C$2))/C$2) -> 0.3984010898 | D197: =SIN(2*PI()*(MOD(($B197-今月バイオリズム!$B$4),D$2))/D$2) -> -0.4338837391 | E197: =SIN(2*PI()*(MOD(($B197-今月バイオリズム!$B$4),E$2))/E$2) -> -0.6900790115 | F197: ↓ | G197: 高調期（活動期） | H197: 下降中 | I197: =IF(D197>0,IF(D196<D197,IF(D198<D197,"▽","↑"),"↓"),IF(D196>D197,IF(D198>D197,"▲","↓"),"↑")) -> ↑ | J197: =IF(OR(AND(D196<=0,D197>=0),AND(D196>=0,D197<=0)),"要注意",IF(D197>0,IF(I197="▽","高調期ピーク","高調期（活動期）"),IF(I197="▲","低調期ピーク","低調期（充電期）"))) -> 低調期（充電期） | K197: 上昇中 | L197: =IF(E197>0,IF(E196<E197,IF(E198<E197,"▽","↑"),"↓"),IF(E196>E197,IF(E198>E197,"▲","↓"),"↑")) -> ↑ | M197: =IF(OR(AND(E196<=0,E197>=0),AND(E196>=0,E197<=0)),"要注意",IF(E197>0,IF(L197="▽","高調期ピーク","高調期（活動期）"),IF(L197="▲","低調期ピーク","低調期（充電期）"))) -> 低調期（充電期） | N197: 上昇中 | O197: =SUM(C197:E197) -> -0.7255616608 | Q197: 低調期（充電期） | R197: 下降中
A198: 1900-07-13 | B198: =B197+1 -> 1900-07-13 | C198: =SIN(2*PI()*(MOD(($B198-今月バイオリズム!$B$4),C$2))/C$2) -> 0.1361666491 | D198: =SIN(2*PI()*(MOD(($B198-今月バイオリズム!$B$4),D$2))/D$2) -> -0.222520934 | E198: =SIN(2*PI()*(MOD(($B198-今月バイオリズム!$B$4),E$2))/E$2) -> -0.5406408175 | F198: ↓ | G198: =IF(OR(AND(C197<=0,C198>=0),AND(C197>=0,C198<=0)),"要注意",IF(C198>0,IF(F198="▽","高調期ピーク","高調期（活動期）"),IF(F198="▲","低調期ピーク","低調期（充電期）"))) -> 高調期（活動期） | H198: 下降中 | I198: ↑ | J198: 低調期（充電期） | K198: =IF(J198="要注意","",IF(I198="↑","上昇中","下降中")) -> 上昇中 | L198: ↑ | M198: 低調期（充電期） | N198: =IF(M198="要注意","",IF(L198="↑","上昇中","下降中")) -> 上昇中 | O198: -0.6269951023 | Q198: 低調期（充電期） | R198: =IF(Q198="要注意","",IF(P198="↑","上昇中","下降中")) -> 下降中
A199: 1900-07-14 | B199: 1900-07-14 | C199: =SIN(2*PI()*(MOD(($B199-今月バイオリズム!$B$4),C$2))/C$2) -> -0.1361666491 | D199: =SIN(2*PI()*(MOD(($B199-今月バイオリズム!$B$4),D$2))/D$2) -> 0 | E199: =SIN(2*PI()*(MOD(($B199-今月バイオリズム!$B$4),E$2))/E$2) -> -0.3716624557 | F199: ↓ | G199: 要注意 | I199: ↑ | J199: 要注意 | L199: ↑ | M199: 低調期（充電期） | N199: 上昇中 | O199: -0.5078291048 | Q199: =IF(OR(AND(O198<=0,O199>=0),AND(O198>=0,O199<=0)),"要注意",IF(O199>0,IF(P199="▽","高調期ピーク","高調期（活動期）"),IF(P199="▲","低調期ピーク","低調期（充電期）"))) -> 低調期（充電期） | R199: 下降中
A200: 1900-07-15 | B200: 1900-07-15 | C200: =SIN(2*PI()*(MOD(($B200-今月バイオリズム!$B$4),C$2))/C$2) -> -0.3984010898 | D200: =SIN(2*PI()*(MOD(($B200-今月バイオリズム!$B$4),D$2))/D$2) -> 0.222520934 | E200: =SIN(2*PI()*(MOD(($B200-今月バイオリズム!$B$4),E$2))/E$2) -> -0.1892512444 | F200: ↓ | G200: 低調期（充電期） | H200: 下降中 | I200: ↑ | J200: 要注意 | L200: ↑ | M200: 低調期（充電期） | N200: 上昇中 | O200: -0.3651314003 | Q200: 低調期（充電期） | R200: 下降中
... 168 more rows
